Body Name,Body,Service Division Label,Service Division Code,Organisational Unit,Expenditure Category,Expenditure Code,CIPFA detailed expenditure type,CIPFA detailed expenditure code,Narrative,Date,Transaction number,Net Amount,Capital and Revenue,Supplier Name,Supplier ID
Chorley Borough Council,http://statistics.data.gov.uk/id/local-authority/30UE,Homelessness,1075,NEW Early Intervention,Computer Software-Maintenance,40107,Communication and Computing,5028,Provision of services as defined in AFR: 2330 -CBL: Hosting for Chorley Borough Council from 01/07/2016 to 30/06/2017. ,22/07/2016,114115,"8,306.00",Revenue,Abritas Ltd,47473
Chorley Borough Council,http://statistics.data.gov.uk/id/local-authority/30UE,Homelessness,1075,NEW Early Intervention,Computer Software-Maintenance,40107,Communication and Computing,5028,Provision of services as defined in AFR:3368 CBL: Software training 1st June 2016 due: Completion of training Provision of services,22/07/2016,114123,"1,038.66",Revenue,Abritas Ltd,47473
Chorley Borough Council,http://statistics.data.gov.uk/id/local-authority/30UE,Democratic Represent and  Mgnt,1007,NEW Policy & Governance,Other Fees,40212,Miscellaneous Expenses,5034,Bar fees for June 2016.,15/07/2016,113927,325.00,Revenue,Ace Bars Ltd,54338
Chorley Borough Council,http://statistics.data.gov.uk/id/local-authority/30UE,Democratic Represent and  Mgnt,1007,NEW Policy & Governance,Other Fees,40212,Miscellaneous Expenses,5034,Bar fees for July 2016 (7 events).,27/07/2016,114250,455.00,Revenue,Ace Bars Ltd,54338
Chorley Borough Council,http://statistics.data.gov.uk/id/local-authority/30UE,Central Support Services,1009,NEW Early Intervention,Rent/Hire Of Premises,20017,Premises Rents,5007,Hire of Clayton Green for Doorstep Sports Club Friday nights in June,01/07/2016,113281,552.00,Revenue,Active Nation UK Ltd,17144
Chorley Borough Council,http://statistics.data.gov.uk/id/local-authority/30UE,Democratic Represent and  Mgnt,1007,NEW Early Intervention,External Contractor - Trust or Charity,50008,Private Contractors,5042,Active Nation Management Fee 2016/17 For the Period May 2016 - March 2017 To be invoiced monthly at the start of each Month.,08/07/2016,113690,"31,722.41",Revenue,Active Nation UK Ltd,17144
Chorley Borough Council,http://statistics.data.gov.uk/id/local-authority/30UE,Central Support Services,1009,NEW Customer & Digital,Other Fees,40212,Miscellaneous Expenses,5034,Free Swimming programme for 16s and under July 25 to 2 September inclusive,27/07/2016,113766,"7,500.00",Revenue,Active Nation UK Ltd,17144
Chorley Borough Council,http://statistics.data.gov.uk/id/local-authority/30UE,Central Support Services,1009,NEW Early Intervention,Rent/Hire Of Premises,20017,Premises Rents,5007,Hire of clayton green for Friday night DSC in July,27/07/2016,114129,414.00,Revenue,Active Nation UK Ltd,17144
Chorley Borough Council,http://statistics.data.gov.uk/id/local-authority/30UE,Unapportionable Central OHeads,1009,NEW Business Development & Growth,General Repairs - Reactive,20004,Repairs Maintenance & Alts,5005,Blanket order for REACTIVE works for 2016.,06/07/2016,113537,"1,451.00",Revenue,ADT Fire & Security,16645
Chorley Borough Council,http://statistics.data.gov.uk/id/local-authority/30UE,Unapportionable Central OHeads,1009,NEW Business Development & Growth,General Repairs - Reactive,20004,Repairs Maintenance & Alts,5005,Blanket order for REACTIVE works for 2016.,06/07/2016,113538,"2,566.00",Revenue,ADT Fire & Security,16645
Chorley Borough Council,http://statistics.data.gov.uk/id/local-authority/30UE,Unapportionable Central OHeads,1009,NEW Business Development & Growth,General Repairs - Reactive,20004,Repairs Maintenance & Alts,5005,Blanket order for REACTIVE works for 2016.,06/07/2016,113616,487.36,Revenue,ADT Fire & Security,16645
Chorley Borough Council,http://statistics.data.gov.uk/id/local-authority/30UE,Community Development,1097,NEW Policy & Governance,Core Funding Grants,40133,Grants and Subscriptions,5031,Core Funding Grants,20/07/2016,113624,"5,000.00",Revenue,Age UK,21252
Chorley Borough Council,http://statistics.data.gov.uk/id/local-authority/30UE,Central Support Services,1009,NEW Customer & Digital,Computer Software-Purchase,40100,Communication and Computing,5028,Purchase of AgilePoint software,25/07/2016,113129,"3,427.06",Revenue,Agilepoint EMEA bvba,75434
Chorley Borough Council,http://statistics.data.gov.uk/id/local-authority/30UE,Central Support Services,1009,NEW Customer & Digital,Consultants` Fees,40077,Services,5027,Training,25/07/2016,113129,"1,500.00",Revenue,Agilepoint EMEA bvba,75434
Chorley Borough Council,http://statistics.data.gov.uk/id/local-authority/30UE,Unapportionable Central OHeads,1009,NEW Policy & Governance,Uniforms,40039,"Clothing, Uniforms and Laundry",5025,"Product code NM5	Flat Front Trousers	QTY 1	Size 36T Colour Black	30.60",29/07/2016,112039,30.60,Revenue,Alexandra RE:MWUK LTD,21752
Chorley Borough Council,http://statistics.data.gov.uk/id/local-authority/30UE,Unapportionable Central OHeads,1009,NEW Policy & Governance,Uniforms,40039,"Clothing, Uniforms and Laundry",5025,"Product code NM90	Easycare shirt QTY 1	Size 15.5	Colour White	10.60",29/07/2016,112039,10.60,Revenue,Alexandra RE:MWUK LTD,21752
Chorley Borough Council,http://statistics.data.gov.uk/id/local-authority/30UE,Unapportionable Central OHeads,1009,NEW Policy & Governance,Uniforms,40039,"Clothing, Uniforms and Laundry",5025,"Product code NM5	Flat Front Trousers	QTY 1	36T	Black	30.60",29/07/2016,112039,30.60,Revenue,Alexandra RE:MWUK LTD,21752
Chorley Borough Council,http://statistics.data.gov.uk/id/local-authority/30UE,Unapportionable Central OHeads,1009,NEW Policy & Governance,Uniforms,40039,"Clothing, Uniforms and Laundry",5025,"NM90	Easycare shirt	QTY 1	16.5	White	10.60",29/07/2016,112039,10.60,Revenue,Alexandra RE:MWUK LTD,21752
Chorley Borough Council,http://statistics.data.gov.uk/id/local-authority/30UE,Unapportionable Central OHeads,1009,NEW Policy & Governance,Uniforms,40039,"Clothing, Uniforms and Laundry",5025,"Product code NM5	Flat Front Trousers	QTY 1	34T	Black	30.60",29/07/2016,112039,30.60,Revenue,Alexandra RE:MWUK LTD,21752
Chorley Borough Council,http://statistics.data.gov.uk/id/local-authority/30UE,Unapportionable Central OHeads,1009,NEW Policy & Governance,Uniforms,40039,"Clothing, Uniforms and Laundry",5025,"Product code NM90	Easycare shirt	QTY 1	15.5	White	10.60",29/07/2016,112039,10.60,Revenue,Alexandra RE:MWUK LTD,21752
Chorley Borough Council,http://statistics.data.gov.uk/id/local-authority/30UE,Unapportionable Central OHeads,1009,NEW Policy & Governance,Uniforms,40039,"Clothing, Uniforms and Laundry",5025,"Product code NF69	Straight leg Trousers	QTY 2	14R	Black	26.35",29/07/2016,112039,52.70,Revenue,Alexandra RE:MWUK LTD,21752
Chorley Borough Council,http://statistics.data.gov.uk/id/local-authority/30UE,Unapportionable Central OHeads,1009,NEW Policy & Governance,Uniforms,40039,"Clothing, Uniforms and Laundry",5025,"Product code NG72	S/Sleeve Oxford shirt	QTY 2	16	White	13.15",29/07/2016,112039,26.30,Revenue,Alexandra RE:MWUK LTD,21752
Chorley Borough Council,http://statistics.data.gov.uk/id/local-authority/30UE,Unapportionable Central OHeads,1009,NEW Policy & Governance,Refreshments,40036,Catering,5024,"Product code NF69	Straight leg Trousers	QTY 1	14R	Black	26.35",29/07/2016,112039,26.35,Revenue,Alexandra RE:MWUK LTD,21752
Chorley Borough Council,http://statistics.data.gov.uk/id/local-authority/30UE,Unapportionable Central OHeads,1009,NEW Policy & Governance,Uniforms,40039,"Clothing, Uniforms and Laundry",5025,"NM6	Waistcoat	QTY 1	40�	Black	22.10",29/07/2016,112039,22.10,Revenue,Alexandra RE:MWUK LTD,21752
Chorley Borough Council,http://statistics.data.gov.uk/id/local-authority/30UE,Unapportionable Central OHeads,1009,NEW Policy & Governance,Uniforms,40039,"Clothing, Uniforms and Laundry",5025,"Product code NG72	S/Sleeve Oxford shirt	QTY 1	14	White	13.15",29/07/2016,112039,13.15,Revenue,Alexandra RE:MWUK LTD,21752
Chorley Borough Council,http://statistics.data.gov.uk/id/local-authority/30UE,Unapportionable Central OHeads,1009,NEW Policy & Governance,Uniforms,40039,"Clothing, Uniforms and Laundry",5025,"Product code NG71	L/Sleeve Oxford Shirt	QTY 1	14	White	14.00",29/07/2016,112039,14.00,Revenue,Alexandra RE:MWUK LTD,21752
Chorley Borough Council,http://statistics.data.gov.uk/id/local-authority/30UE,Unapportionable Central OHeads,1009,NEW Policy & Governance,Uniforms,40039,"Clothing, Uniforms and Laundry",5025,"Product code NF13	Bootleg Trousers	QTY 1	16R	Black	26.35",29/07/2016,112039,26.35,Revenue,Alexandra RE:MWUK LTD,21752
Chorley Borough Council,http://statistics.data.gov.uk/id/local-authority/30UE,Unapportionable Central OHeads,1009,NEW Policy & Governance,Uniforms,40039,"Clothing, Uniforms and Laundry",5025,"Product code NG72	S/Sleeve Oxford shirt	QTY 1	18	White	13.15",29/07/2016,112039,13.15,Revenue,Alexandra RE:MWUK LTD,21752
Chorley Borough Council,http://statistics.data.gov.uk/id/local-authority/30UE,Unapportionable Central OHeads,1009,NEW Policy & Governance,Uniforms,40039,"Clothing, Uniforms and Laundry",5025,"Product code NG71	L/Sleeve Oxford Shirt	QTY 1	18	White	14.00",29/07/2016,112039,14.00,Revenue,Alexandra RE:MWUK LTD,21752
Chorley Borough Council,http://statistics.data.gov.uk/id/local-authority/30UE,Unapportionable Central OHeads,1009,NEW Policy & Governance,Uniforms,40039,"Clothing, Uniforms and Laundry",5025,"Product code NF13	Bootleg Trousers	QTY 1	18R	Black	26.35",29/07/2016,112039,26.35,Revenue,Alexandra RE:MWUK LTD,21752
Chorley Borough Council,http://statistics.data.gov.uk/id/local-authority/30UE,Unapportionable Central OHeads,1009,NEW Policy & Governance,Uniforms,40039,"Clothing, Uniforms and Laundry",5025,"Product code NG72	S/Sleeve Oxford shirt	QTY 1	18	White	13.15",29/07/2016,112039,13.15,Revenue,Alexandra RE:MWUK LTD,21752
Chorley Borough Council,http://statistics.data.gov.uk/id/local-authority/30UE,Unapportionable Central OHeads,1009,NEW Policy & Governance,Uniforms,40039,"Clothing, Uniforms and Laundry",5025,"Product code NF13	Bootleg Trousers	QTY 1	24R	Black	26.35",29/07/2016,112039,26.35,Revenue,Alexandra RE:MWUK LTD,21752
Chorley Borough Council,http://statistics.data.gov.uk/id/local-authority/30UE,Unapportionable Central OHeads,1009,NEW Policy & Governance,Uniforms,40039,"Clothing, Uniforms and Laundry",5025,"Product code NG72	S/Sleeve Oxford shirt	QTY 2	28	White	13.15",29/07/2016,112039,26.30,Revenue,Alexandra RE:MWUK LTD,21752
Chorley Borough Council,http://statistics.data.gov.uk/id/local-authority/30UE,Unapportionable Central OHeads,1009,NEW Policy & Governance,Uniforms,40039,"Clothing, Uniforms and Laundry",5025,"Product code NF14	Skirt	QTY 1	10S	Black	22.10",29/07/2016,112039,35.15,Revenue,Alexandra RE:MWUK LTD,21752
Chorley Borough Council,http://statistics.data.gov.uk/id/local-authority/30UE,Unapportionable Central OHeads,1009,NEW Policy & Governance,Uniforms,40039,"Clothing, Uniforms and Laundry",5025,"Product code NG72	S/Sleeve Oxford shirt	QTY 2	12	White	13.15",29/07/2016,112039,26.30,Revenue,Alexandra RE:MWUK LTD,21752
Chorley Borough Council,http://statistics.data.gov.uk/id/local-authority/30UE,Unapportionable Central OHeads,1009,NEW Customer & Digital,Bank Charges,40151,Miscellaneous Expenses,5034,monthly charges,29/07/2016,114296,"1,882.85",Revenue,Allpay Net Ltd,17242
Chorley Borough Council,http://statistics.data.gov.uk/id/local-authority/30UE,Unapportionable Central OHeads,1009,NEW Policy & Governance,Car Leasing Payment,14100,Direct Employee Expenses,5001,NAME REDACTED,01/07/2016,112315,"2,975.29",Revenue,Alphabet (Uk) Fleet Management Ltd,16651
Chorley Borough Council,http://statistics.data.gov.uk/id/local-authority/30UE,Unapportionable Central OHeads,1009,NEW Policy & Governance,Car Leasing Payment,14100,Direct Employee Expenses,5001,Car lease,01/07/2016,112315,270.72,Revenue,Alphabet (Uk) Fleet Management Ltd,16651
Chorley Borough Council,http://statistics.data.gov.uk/id/local-authority/30UE,Control Accounts,Control,NEW Policy & Governance,Manual Control Account,1,Balance Sheet,Balance,Car lease,01/07/2016,112315,-270.72,Revenue,Alphabet (Uk) Fleet Management Ltd,16651
Chorley Borough Council,http://statistics.data.gov.uk/id/local-authority/30UE,Unapportionable Central OHeads,1009,NEW Policy & Governance,Car Leasing Payment,14100,Direct Employee Expenses,5001,NAME REDACTED,01/07/2016,112315,"2,197.18",Revenue,Alphabet (Uk) Fleet Management Ltd,16651
Chorley Borough Council,http://statistics.data.gov.uk/id/local-authority/30UE,Unapportionable Central OHeads,1009,NEW Policy & Governance,Car Leasing Payment,14100,Direct Employee Expenses,5001,Car lease,01/07/2016,112315,199.63,Revenue,Alphabet (Uk) Fleet Management Ltd,16651
Chorley Borough Council,http://statistics.data.gov.uk/id/local-authority/30UE,Control Accounts,Control,NEW Policy & Governance,Manual Control Account,1,Balance Sheet,Balance,Balance Sheet,01/07/2016,112315,-199.63,Revenue,Alphabet (Uk) Fleet Management Ltd,16651
Chorley Borough Council,http://statistics.data.gov.uk/id/local-authority/30UE,Democratic Represent and  Mgnt,1007,NEW Policy & Governance,Car Leasing Payment,14100,Direct Employee Expenses,5001,NAME REDACTED,01/07/2016,112315,"4,630.15",Revenue,Alphabet (Uk) Fleet Management Ltd,16651
Chorley Borough Council,http://statistics.data.gov.uk/id/local-authority/30UE,Democratic Represent and  Mgnt,1007,NEW Policy & Governance,Car Leasing Payment,14100,Direct Employee Expenses,5001,Car lease,01/07/2016,112315,118.17,Revenue,Alphabet (Uk) Fleet Management Ltd,16651
Chorley Borough Council,http://statistics.data.gov.uk/id/local-authority/30UE,Control Accounts,Control,NEW Policy & Governance,Manual Control Account,1,Balance Sheet,Balance,Balance Sheet,01/07/2016,112315,-118.17,Revenue,Alphabet (Uk) Fleet Management Ltd,16651
Chorley Borough Council,http://statistics.data.gov.uk/id/local-authority/30UE,Central Support Services,1009,NEW Policy & Governance,Car Leasing Payment,14100,Direct Employee Expenses,5001,NAME REDACTED,01/07/2016,112315,"2,889.32",Revenue,Alphabet (Uk) Fleet Management Ltd,16651
Chorley Borough Council,http://statistics.data.gov.uk/id/local-authority/30UE,Central Support Services,1009,NEW Policy & Governance,Car Leasing Payment,14100,Direct Employee Expenses,5001,Car lease,01/07/2016,112315,245.34,Revenue,Alphabet (Uk) Fleet Management Ltd,16651
Chorley Borough Council,http://statistics.data.gov.uk/id/local-authority/30UE,Control Accounts,Control,NEW Policy & Governance,Manual Control Account,1,Balance Sheet,Balance,Balance Sheet,01/07/2016,112315,-245.34,Revenue,Alphabet (Uk) Fleet Management Ltd,16651
Chorley Borough Council,http://statistics.data.gov.uk/id/local-authority/30UE,Economic Development,1096,NEW Policy & Governance,Car Leasing Payment,14100,Direct Employee Expenses,5001,NAME REDACTED,27/07/2016,113655,"3,088.41",Revenue,Alphabet (Uk) Fleet Management Ltd,16651
Chorley Borough Council,http://statistics.data.gov.uk/id/local-authority/30UE,Economic Development,1096,NEW Policy & Governance,Car Leasing Payment,14100,Direct Employee Expenses,5001,Car Lease,27/07/2016,113655,260.34,Revenue,Alphabet (Uk) Fleet Management Ltd,16651
Chorley Borough Council,http://statistics.data.gov.uk/id/local-authority/30UE,Control Accounts,Control,NEW Policy & Governance,Manual Control Account,1,Balance Sheet,Balance,Balance Sheet,27/07/2016,113655,-260.34,Revenue,Alphabet (Uk) Fleet Management Ltd,16651
Chorley Borough Council,http://statistics.data.gov.uk/id/local-authority/30UE,Building Control,1090,NEW Policy & Governance,Car Leasing Payment,14100,Direct Employee Expenses,5001,NAME REDACTED,27/07/2016,113655,"2,269.70",Revenue,Alphabet (Uk) Fleet Management Ltd,16651
Chorley Borough Council,http://statistics.data.gov.uk/id/local-authority/30UE,Building Control,1090,NEW Policy & Governance,Car Leasing Payment,14100,Direct Employee Expenses,5001,Car lease,27/07/2016,113655,189.72,Revenue,Alphabet (Uk) Fleet Management Ltd,16651
Chorley Borough Council,http://statistics.data.gov.uk/id/local-authority/30UE,Control Accounts,Control,NEW Policy & Governance,Manual Control Account,1,Balance Sheet,Balance,Balance Sheet,27/07/2016,113655,-189.72,Revenue,Alphabet (Uk) Fleet Management Ltd,16651
Chorley Borough Council,http://statistics.data.gov.uk/id/local-authority/30UE,Corporate Management,1008,NEW Policy & Governance,Car Leasing Payment,14100,Direct Employee Expenses,5001,NAME REDACTED,27/07/2016,113655,"3,009.63",Revenue,Alphabet (Uk) Fleet Management Ltd,16651
Chorley Borough Council,http://statistics.data.gov.uk/id/local-authority/30UE,Corporate Management,1008,NEW Policy & Governance,Car Leasing Payment,14100,Direct Employee Expenses,5001,Car lease,27/07/2016,113655,272.35,Revenue,Alphabet (Uk) Fleet Management Ltd,16651
Chorley Borough Council,http://statistics.data.gov.uk/id/local-authority/30UE,Control Accounts,Control,NEW Policy & Governance,Manual Control Account,1,Balance Sheet,Balance,Balance Sheet,27/07/2016,113655,-272.35,Revenue,Alphabet (Uk) Fleet Management Ltd,16651
Chorley Borough Council,http://statistics.data.gov.uk/id/local-authority/30UE,Central Support Services,1009,NEW Early Intervention,Children's Activities,40188,Miscellaneous Expenses,5034,Delivery of session as part of Reach Up and Go on Friday 3rd June,01/07/2016,113484,500.00,Revenue,Anderton Centre - LOAI,56108
Chorley Borough Council,http://statistics.data.gov.uk/id/local-authority/30UE,Capital,Capital,NEW Customer & Digital,Other Contractor,3012,Capital Expenditure,Capital,Work to archway in walled garden Astley Park,06/07/2016,113684,750.00,Capital,AP Broom Landscapes,67257
Chorley Borough Council,http://statistics.data.gov.uk/id/local-authority/30UE,Capital,Capital,NEW Business Development & Growth,Main Contractor,3007,Capital Expenditure,Capital,Overlay with new tarmac in front of Tatton Community Centre and key in to existing surface.  Q804980.,13/07/2016,113685,"2,145.00",Capital,AP Broom Landscapes,67257
Chorley Borough Council,http://statistics.data.gov.uk/id/local-authority/30UE,Service Management & Support,1009,NEW Customer & Digital,External Contractor,40198,Miscellaneous Expenses,5034,turfing works to flower beds as requested and stump grinding in Astley Park as per quote number Q805207 works already ,06/07/2016,113686,478.00,Revenue,AP Broom Landscapes,67257
Chorley Borough Council,http://statistics.data.gov.uk/id/local-authority/30UE,Capital,Capital,NEW Customer & Digital,Other Contractor,3012,Capital Expenditure,Capital,Electrical installation to glasshouse in Astley Park,27/07/2016,113863,"1,160.00",Capital,AP Broom Landscapes,67257
Chorley Borough Council,http://statistics.data.gov.uk/id/local-authority/30UE,Elections,1012,NEW Policy & Governance,Rent/Hire Of Premises,20017,Premises Rents,5007,"Hire of room for polling station - St Marys Parish Community Centre, Devonshire Road, Chorley.  Thursday 5 May 2016",13/07/2016,113455,600.00,Revenue,APCMC Ltd,16350
Chorley Borough Council,http://statistics.data.gov.uk/id/local-authority/30UE,Service Management & Support,1009,NEW Customer & Digital,External Contractor,40198,Miscellaneous Expenses,5034,Carryout welding repairs and repainting of perimeter fence at Knowley Brow play area as per quote given to NAME REDACTED,27/07/2016,113785,"3,100.00",Revenue,Ark Welding Ltd,18154
Chorley Borough Council,http://statistics.data.gov.uk/id/local-authority/30UE,Business Support,1095,NEW Business Development & Growth,Grants To Other Organisations,40127,Grants and Subscriptions,5031,refurb grant,01/07/2016,113498,"4,970.00",Revenue,Arnold and Phillips,76086
Chorley Borough Council,http://statistics.data.gov.uk/id/local-authority/30UE,Central Support Services,1009,NEW Policy & Governance,Car Leasing Payment,14100,Direct Employee Expenses,5001,"NAME REDACTED 12000 per year for 3 years Ford Fiesta Titanium X Hatchback Race red Part leather upholstery Dies",01/07/2016,113349,"1,903.56",Revenue,Arnold Clark Finance Ltd,20685
Chorley Borough Council,http://statistics.data.gov.uk/id/local-authority/30UE,Central Support Services,1009,NEW Policy & Governance,Car Leasing Payment,14100,Direct Employee Expenses,5001,Car lease,01/07/2016,113349,153.13,Revenue,Arnold Clark Finance Ltd,20685
Chorley Borough Council,http://statistics.data.gov.uk/id/local-authority/30UE,Control Accounts,Control,NEW Policy & Governance,Manual Control Account,1,Balance Sheet,Balance,Balance Sheet,01/07/2016,113349,-153.13,Revenue,Arnold Clark Finance Ltd,20685
Chorley Borough Council,http://statistics.data.gov.uk/id/local-authority/30UE,Central Support Services,1009,NEW Policy & Governance,Car Leasing Payment,14100,Direct Employee Expenses,5001,NAME REDACTED,27/07/2016,113640,275.38,Revenue,Arnold Clark Finance Ltd,20685
Chorley Borough Council,http://statistics.data.gov.uk/id/local-authority/30UE,Central Support Services,1009,NEW Policy & Governance,Car Leasing Payment,14100,Direct Employee Expenses,5001,Car lease,27/07/2016,113640,22.92,Revenue,Arnold Clark Finance Ltd,20685
Chorley Borough Council,http://statistics.data.gov.uk/id/local-authority/30UE,Control Accounts,Control,NEW Policy & Governance,Manual Control Account,1,Balance Sheet,Balance,Balance Sheet,27/07/2016,113640,-22.92,Revenue,Arnold Clark Finance Ltd,20685
Chorley Borough Council,http://statistics.data.gov.uk/id/local-authority/30UE,Development Control,1091,NEW Policy & Governance,Car Leasing Payment,14100,Direct Employee Expenses,5001,NAME REDACTED,27/07/2016,113642,543.68,Revenue,Arnold Clark Finance Ltd,20685
Chorley Borough Council,http://statistics.data.gov.uk/id/local-authority/30UE,Development Control,1091,NEW Policy & Governance,Car Leasing Payment,14100,Direct Employee Expenses,5001,Car lease,27/07/2016,113642,-71.03,Revenue,Arnold Clark Finance Ltd,20685
Chorley Borough Council,http://statistics.data.gov.uk/id/local-authority/30UE,Control Accounts,Control,NEW Policy & Governance,Manual Control Account,1,Balance Sheet,Balance,Balance Sheet,27/07/2016,113642,71.03,Revenue,Arnold Clark Finance Ltd,20685
Chorley Borough Council,http://statistics.data.gov.uk/id/local-authority/30UE,Corporate Management,1008,NEW Policy & Governance,Car Leasing Payment,14100,Direct Employee Expenses,5001,NAME REDACTED,27/07/2016,113756,348.00,Revenue,Arnold Clark Finance Ltd,20685
Chorley Borough Council,http://statistics.data.gov.uk/id/local-authority/30UE,Corporate Management,1008,NEW Policy & Governance,Car Leasing Payment,14100,Direct Employee Expenses,5001,Car lease,27/07/2016,113756,30.24,Revenue,Arnold Clark Finance Ltd,20685
Chorley Borough Council,http://statistics.data.gov.uk/id/local-authority/30UE,Control Accounts,Control,NEW Policy & Governance,Manual Control Account,1,Balance Sheet,Balance,Balance Sheet,27/07/2016,113756,-30.24,Revenue,Arnold Clark Finance Ltd,20685
Chorley Borough Council,http://statistics.data.gov.uk/id/local-authority/30UE,Homelessness,1075,NEW Policy & Governance,Car Leasing Payment,14100,Direct Employee Expenses,5001,NAME REDACTED,27/07/2016,114175,"3,684.00",Revenue,Arnold Clark Finance Ltd,20685
Chorley Borough Council,http://statistics.data.gov.uk/id/local-authority/30UE,Homelessness,1075,NEW Policy & Governance,Car Leasing Payment,14100,Direct Employee Expenses,5001,Car lease,27/07/2016,114175,313.69,Revenue,Arnold Clark Finance Ltd,20685
Chorley Borough Council,http://statistics.data.gov.uk/id/local-authority/30UE,Control Accounts,Control,NEW Policy & Governance,Manual Control Account,1,Balance Sheet,Balance,Balance Sheet,27/07/2016,114175,-313.69,Revenue,Arnold Clark Finance Ltd,20685
Chorley Borough Council,http://statistics.data.gov.uk/id/local-authority/30UE,Service Management & Support,1009,NEW Policy & Governance,Car Leasing Payment,14100,Direct Employee Expenses,5001,NAME REDACTED,27/07/2016,114176,"2,520.12",Revenue,Arnold Clark Finance Ltd,20685
Chorley Borough Council,http://statistics.data.gov.uk/id/local-authority/30UE,Service Management & Support,1009,NEW Policy & Governance,Car Leasing Payment,14100,Direct Employee Expenses,5001,Car lease,27/07/2016,114176,202.48,Revenue,Arnold Clark Finance Ltd,20685
Chorley Borough Council,http://statistics.data.gov.uk/id/local-authority/30UE,Control Accounts,Control,NEW Policy & Governance,Manual Control Account,1,Balance Sheet,Balance,Balance Sheet,27/07/2016,114176,-202.48,Revenue,Arnold Clark Finance Ltd,20685
Chorley Borough Council,http://statistics.data.gov.uk/id/local-authority/30UE,Corporate Management,1008,NEW Chief Executive,Tools & Equipment - Purchase,40003,"Equipment, Furniture & Materia",5023,Engineer Call out and site survey- Re-establish connection of satellite phone,27/07/2016,114200,857.80,Revenue,AST  Systems Ltd,65123
Chorley Borough Council,http://statistics.data.gov.uk/id/local-authority/30UE,Economic Development,1096,NEW Policy & Governance,Conferences - Staff,40120,Expenses,5030,NAME REDACTED - 29/02/16 - Paypal Dowtowninb NAME REDACTED & NAME REDACTED attending Boost Conference,14/07/2016,113658,137.68,Revenue,Barclaycard Commercial,59848
Chorley Borough Council,http://statistics.data.gov.uk/id/local-authority/30UE,Central Support Services,1009,NEW Policy & Governance,Miscellaneous Expenses,40200,Miscellaneous Expenses,5034,NAME REDACTED - 18/03/16 -Chorley Bottle Gas - Gas for Chorley Grand Prix,14/07/2016,113658,180.00,Revenue,Barclaycard Commercial,59848
Chorley Borough Council,http://statistics.data.gov.uk/id/local-authority/30UE,Central Support Services,1009,NEW Policy & Governance,Miscellaneous Expenses,40200,Miscellaneous Expenses,5034,NAME REDACTED - 18/03/16 -Chorley Bottle Gas - Gas for Chorley Grand Prix,14/07/2016,113658,20.00,Revenue,Barclaycard Commercial,59848
Chorley Borough Council,http://statistics.data.gov.uk/id/local-authority/30UE,Central Support Services,1009,NEW Policy & Governance,Computer Equipment-Purchase,40098,Communication and Computing,5028,NAME REDACTED - 21/03/16 - Vesta EE Top Up - NAME REDACTED Ipad,14/07/2016,113658,15.00,Revenue,Barclaycard Commercial,59848
Chorley Borough Council,http://statistics.data.gov.uk/id/local-authority/30UE,Economic Development,1096,NEW Policy & Governance,Miscellaneous Expenses,40200,Miscellaneous Expenses,5034,NAME REDACTED - 22/03/16 - Asda Stores - NAME REDACTED Vouchers,14/07/2016,113658,150.00,Revenue,Barclaycard Commercial,59848
Chorley Borough Council,http://statistics.data.gov.uk/id/local-authority/30UE,Central Support Services,1009,NEW Policy & Governance,Computer Equipment-Purchase,40098,Communication and Computing,5028,NAME REDACTED - 24/03/16 - Top up for Ipad sim card,14/07/2016,113658,15.00,Revenue,Barclaycard Commercial,59848
Chorley Borough Council,http://statistics.data.gov.uk/id/local-authority/30UE,Central Support Services,1009,NEW Policy & Governance,Computer Equipment-Purchase,40098,Communication and Computing,5028,NAME REDACTED - 24/03/16 - Tempered Glass film screen protector for apple Ipad - SC,14/07/2016,113658,29.90,Revenue,Barclaycard Commercial,59848
Chorley Borough Council,http://statistics.data.gov.uk/id/local-authority/30UE,Unapportionable Central OHeads,1009,NEW Policy & Governance,Legal Fees,40171,Miscellaneous Expenses,5034,NAME REDACTED - 21/03/16 - HM Courts - court fees,14/07/2016,113658,60.00,Revenue,Barclaycard Commercial,59848
Chorley Borough Council,http://statistics.data.gov.uk/id/local-authority/30UE,Unapportionable Central OHeads,1009,NEW Policy & Governance,Legal Fees,40171,Miscellaneous Expenses,5034,NAME REDACTED - 22/03/16 - HM Courts - court fees,14/07/2016,113658,639.00,Revenue,Barclaycard Commercial,59848
Chorley Borough Council,http://statistics.data.gov.uk/id/local-authority/30UE,Public Transport,1067,NEW Policy & Governance,Other Fees,40212,Miscellaneous Expenses,5034,NAME REDACTED - 29/02/16 - Companies House - Annual Return Chorley Interchange Ltd,14/07/2016,113658,13.00,Revenue,Barclaycard Commercial,59848
Chorley Borough Council,http://statistics.data.gov.uk/id/local-authority/30UE,Unapportionable Central OHeads,1009,NEW Policy & Governance,Miscellaneous Expenses,40200,Miscellaneous Expenses,5034,NAME REDACTED - 03/03/16 - Boots Chorley - Gift card purchase for Mothers Day Competition,14/07/2016,113658,100.00,Revenue,Barclaycard Commercial,59848
Chorley Borough Council,http://statistics.data.gov.uk/id/local-authority/30UE,Democratic Represent and  Mgnt,1007,NEW Policy & Governance,Other Fees,40212,Miscellaneous Expenses,5034,NAME REDACTED - 07/03/16 - www.ukwristbands.com - Lancastrian Event,14/07/2016,113658,24.00,Revenue,Barclaycard Commercial,59848
Chorley Borough Council,http://statistics.data.gov.uk/id/local-authority/30UE,Corporate Management,1008,NEW Policy & Governance,Other Fees,40212,Miscellaneous Expenses,5034,NAME REDACTED - 11/03/16 - Trainline - train tickets NAME REDACTED meeting in Preston,14/07/2016,113658,7.50,Revenue,Barclaycard Commercial,59848
Chorley Borough Council,http://statistics.data.gov.uk/id/local-authority/30UE,Service Management & Support,1009,NEW Policy & Governance,Vehicle Maintenance,30045,Direct Transport Costs,5016,NAME REDACTED - 08/03/16 - www.dvla.gov.uk - road tax Compact Sweeper AE14 AXX,14/07/2016,113658,167.50,Revenue,Barclaycard Commercial,59848
Chorley Borough Council,http://statistics.data.gov.uk/id/local-authority/30UE,Service Management & Support,1009,NEW Policy & Governance,Vehicle Maintenance,30045,Direct Transport Costs,5016,NAME REDACTED - 08/03/16 - www.dvla.gov.uk - road tax Compact Sweeper AE14 AXW,14/07/2016,113658,167.50,Revenue,Barclaycard Commercial,59848
Chorley Borough Council,http://statistics.data.gov.uk/id/local-authority/30UE,Central Support Services,1009,NEW Policy & Governance,Miscellaneous Expenses,40200,Miscellaneous Expenses,5034,NAME REDACTED - 29/02/16 - Facebook - Chorley Grand Prix,14/07/2016,113658,65.11,Revenue,Barclaycard Commercial,59848
Chorley Borough Council,http://statistics.data.gov.uk/id/local-authority/30UE,Unapportionable Central OHeads,1009,NEW Policy & Governance,Legal Fees,40171,Miscellaneous Expenses,5034,NAME REDACTED - 23/05/16 - HM Court Fees (78 x 3),25/07/2016,114081,234.00,Revenue,Barclaycard Commercial,59848
Chorley Borough Council,http://statistics.data.gov.uk/id/local-authority/30UE,Central Support Services,1009,NEW Policy & Governance,Computer Equipment-Purchase,40098,Communication and Computing,5028,NAME REDACTED - 06/05/16 - Amazon UK Marketplace - 6xVGA to DHMI adapter convertor with audio support for HDTB PC,25/07/2016,114081,63.54,Revenue,Barclaycard Commercial,59848
Chorley Borough Council,http://statistics.data.gov.uk/id/local-authority/30UE,Central Support Services,1009,NEW Policy & Governance,Computer Software-Purchase,40100,Communication and Computing,5028,NAME REDACTED - 18/05/16 - Amazon UK Marketplace - SQL Recoverty Corporate Licence,25/07/2016,114081,196.46,Revenue,Barclaycard Commercial,59848
Chorley Borough Council,http://statistics.data.gov.uk/id/local-authority/30UE,Unapportionable Central OHeads,1009,NEW Policy & Governance,Legal Fees,40171,Miscellaneous Expenses,5034,NAME REDACTED - 23/05/16 - HM Courts - Court fees (1658 x 3),25/07/2016,114081,"4,974.00",Revenue,Barclaycard Commercial,59848
Chorley Borough Council,http://statistics.data.gov.uk/id/local-authority/30UE,Elections,1012,NEW Policy & Governance,Statutory Notices,40160,Miscellaneous Expenses,5034,NAME REDACTED - 30/04/16 - Facebook - Elections Ads,25/07/2016,114081,130.00,Revenue,Barclaycard Commercial,59848
Chorley Borough Council,http://statistics.data.gov.uk/id/local-authority/30UE,Unapportionable Central OHeads,1009,NEW Policy & Governance,Refreshments,40036,Catering,5024,NAME REDACTED - 13/05/2016 - Wm Morrison Food.com - various supplies,25/07/2016,114081,100.33,Revenue,Barclaycard Commercial,59848
Chorley Borough Council,http://statistics.data.gov.uk/id/local-authority/30UE,Democratic Represent and  Mgnt,1007,NEW Policy & Governance,Staff Rail Fares,30032,Public Transport,5019,NAME REDACTED - 13/05/16 - Trainline -Train fare Wigan to Lodnong 17/05/16,25/07/2016,114081,186.35,Revenue,Barclaycard Commercial,59848
Chorley Borough Council,http://statistics.data.gov.uk/id/local-authority/30UE,Unapportionable Central OHeads,1009,NEW Policy & Governance,Publicity - Advertising,40157,Miscellaneous Expenses,5034,NAME REDACTED - 30/04/16 - Facebook - Ads,25/07/2016,114081,144.09,Revenue,Barclaycard Commercial,59848
Chorley Borough Council,http://statistics.data.gov.uk/id/local-authority/30UE,Unapportionable Central OHeads,1009,NEW Policy & Governance,Promotional Expenses,40159,Miscellaneous Expenses,5034,NAME REDACTED - 20/05/16 - Dreamstime.com - credit card charge,25/07/2016,114081,0.71,Revenue,Barclaycard Commercial,59848
Chorley Borough Council,http://statistics.data.gov.uk/id/local-authority/30UE,Unapportionable Central OHeads,1009,NEW Policy & Governance,Promotional Expenses,40159,Miscellaneous Expenses,5034,NAME REDACTED - 20/05/16 - Dreamstime.com - stock photography,25/07/2016,114081,176.21,Revenue,Barclaycard Commercial,59848
Chorley Borough Council,http://statistics.data.gov.uk/id/local-authority/30UE,Unapportionable Central OHeads,1009,NEW Policy & Governance,Legal Fees,40171,Miscellaneous Expenses,5034,NAME REDACTED - 25/04/16 - HM Court Fees (19 x 3),25/07/2016,114083,57.00,Revenue,Barclaycard Commercial,59848
Chorley Borough Council,http://statistics.data.gov.uk/id/local-authority/30UE,Central Support Services,1009,NEW Policy & Governance,Computer Equipment-Purchase,40098,Communication and Computing,5028,NAME REDACTED - 06/04/16 - Amazon UK Marketplace - Purchase of 3 keyboards,25/07/2016,114083,599.90,Revenue,Barclaycard Commercial,59848
Chorley Borough Council,http://statistics.data.gov.uk/id/local-authority/30UE,Central Support Services,1009,NEW Policy & Governance,Computer Equipment-Purchase,40098,Communication and Computing,5028,NAME REDACTED - 07/04/16 - Amazon UK Marketplace - Prot Max Blue Filter Screen protector x2,25/07/2016,114083,15.75,Revenue,Barclaycard Commercial,59848
Chorley Borough Council,http://statistics.data.gov.uk/id/local-authority/30UE,Central Support Services,1009,NEW Policy & Governance,Computer Equipment-Purchase,40098,Communication and Computing,5028,NAME REDACTED - 07/04/16 - Amazon UK Marketplace - Fintie Microsoft Survace Pro 4 Case,25/07/2016,114083,86.97,Revenue,Barclaycard Commercial,59848
Chorley Borough Council,http://statistics.data.gov.uk/id/local-authority/30UE,Corporate Management,1008,NEW Policy & Governance,Miscellaneous Expenses,40200,Miscellaneous Expenses,5034,"NAME REDACTED - 30/03/16 - The Register Office, Chorley - payment for 3 death certificates",25/07/2016,114083,12.00,Revenue,Barclaycard Commercial,59848
Chorley Borough Council,http://statistics.data.gov.uk/id/local-authority/30UE,Unapportionable Central OHeads,1009,NEW Policy & Governance,Legal Fees,40171,Miscellaneous Expenses,5034,NAME REDACTED - 25/04/16 - HM Courts - Court Fees (265 x 3),25/07/2016,114083,795.00,Revenue,Barclaycard Commercial,59848
Chorley Borough Council,http://statistics.data.gov.uk/id/local-authority/30UE,Business Support,1095,NEW Policy & Governance,Miscellaneous Expenses,40200,Miscellaneous Expenses,5034,NAME REDACTED - 31/03/16 - Conferencebadgescouk - conference badges,25/07/2016,114083,82.50,Revenue,Barclaycard Commercial,59848
Chorley Borough Council,http://statistics.data.gov.uk/id/local-authority/30UE,Service Management & Support,1009,NEW Policy & Governance,Vehicle Maintenance,30045,Direct Transport Costs,5016,NAME REDACTED - 12/04/16 - DVLA - Vehicle Tax,25/07/2016,114083,212.50,Revenue,Barclaycard Commercial,59848
Chorley Borough Council,http://statistics.data.gov.uk/id/local-authority/30UE,Unapportionable Central OHeads,1009,NEW Policy & Governance,Publicity - Advertising,40157,Miscellaneous Expenses,5034,NAME REDACTED - 24/03/16 - Tempered Glass film screen protector for apple Ipad - SC,25/07/2016,114083,133.67,Revenue,Barclaycard Commercial,59848
Chorley Borough Council,http://statistics.data.gov.uk/id/local-authority/30UE,Unapportionable Central OHeads,1009,NEW Policy & Governance,Publicity - Advertising,40157,Miscellaneous Expenses,5034,NAME REDACTED - 21/03/16 - HM Courts - court fees,25/07/2016,114083,166.80,Revenue,Barclaycard Commercial,59848
Chorley Borough Council,http://statistics.data.gov.uk/id/local-authority/30UE,Corporate Management,1008,NEW Policy & Governance,Bank Charges,40151,Miscellaneous Expenses,5034,Bank Charges,14/07/2016,113303,507.47,Revenue,Barclaycard Merchant Services,61601
Chorley Borough Council,http://statistics.data.gov.uk/id/local-authority/30UE,Corporate Management,1008,NEW Policy & Governance,Bank Charges,40151,Miscellaneous Expenses,5034,Bank Charges,14/07/2016,113307,564.60,Revenue,Barclaycard Merchant Services,61601
Chorley Borough Council,http://statistics.data.gov.uk/id/local-authority/30UE,Corporate Management,1008,NEW Policy & Governance,Bank Charges,40151,Miscellaneous Expenses,5034,Bank Charges,25/07/2016,113985,496.00,Revenue,Barclaycard Merchant Services,61601
Chorley Borough Council,http://statistics.data.gov.uk/id/local-authority/30UE,Corporate Management,1008,NEW Policy & Governance,Bank Charges,40151,Miscellaneous Expenses,5034,Bank Charges,25/07/2016,113986,686.92,Revenue,Barclaycard Merchant Services,61601
Chorley Borough Council,http://statistics.data.gov.uk/id/local-authority/30UE,Building Control,1090,NEW Customer & Digital,Miscellaneous Expenses,40200,Miscellaneous Expenses,5034,"ADDRESS REDACTED 1, Build up window opening approx. 1800mmx 1200mm in dense concrete block work laid flat in sand ",29/07/2016,114095,"1,670.00",Revenue,Barlow Construct & Renovation,16609
Chorley Borough Council,http://statistics.data.gov.uk/id/local-authority/30UE,Unapportionable Central OHeads,1009,NEW Customer & Digital,Consultants` Fees,40077,Services,5027,"Support as agreed with Customer, Transactional and ICT services",20/07/2016,113800,"1,500.00",Revenue,REDACTED PERSONAL DATA,22238
Chorley Borough Council,http://statistics.data.gov.uk/id/local-authority/30UE,Service Management & Support,1009,NEW Customer & Digital,Supplies-Grounds Maintenance,40025,"Equipment, Furniture & Materia",5023,Supply 7 memorial plaques as agreed.,08/07/2016,113764,280.00,Revenue,Benegraph & Academie Signs Ltd,17482
Chorley Borough Council,http://statistics.data.gov.uk/id/local-authority/30UE,Local Tax Collection,1010,NEW Policy & Governance,Legal Fees,40171,Miscellaneous Expenses,5034,interim payment,27/07/2016,114249,"13,895.41",Revenue,Bevan Brittan LLP Solicitors,69456
Chorley Borough Council,http://statistics.data.gov.uk/id/local-authority/30UE,Local Tax Collection,1010,NEW Policy & Governance,Legal Fees,40171,Miscellaneous Expenses,5034,Legal Fees,27/07/2016,114258,"10,233.15",Revenue,Bevan Brittan LLP Solicitors,69456
Chorley Borough Council,http://statistics.data.gov.uk/id/local-authority/30UE,Central Support Services,1009,NEW Customer & Digital,Computer Equipment-Purchase,40098,Communication and Computing,5028,55`` JU6000 6 Series Flat UHD Smart LED TV BLACK 4K WI-FI (UE55JU6000K),27/07/2016,112907,"2,001.00",Revenue,BIST,67981
Chorley Borough Council,http://statistics.data.gov.uk/id/local-authority/30UE,Homelessness,1075,NEW Business Development & Growth,Gas,20014,Energy Costs,5006,Energy Costs,13/07/2016,113648,251.09,Revenue,British Gas Business,22242
Chorley Borough Council,http://statistics.data.gov.uk/id/local-authority/30UE,Democratic Represent and  Mgnt,1007,NEW Business Development & Growth,Gas,20014,Energy Costs,5006,Energy Costs,13/07/2016,113648,218.15,Revenue,British Gas Business,22242
Chorley Borough Council,http://statistics.data.gov.uk/id/local-authority/30UE,Community Development,1097,NEW Business Development & Growth,Gas,20014,Energy Costs,5006,Energy Costs,13/07/2016,113648,71.16,Revenue,British Gas Business,22242
Chorley Borough Council,http://statistics.data.gov.uk/id/local-authority/30UE,Unapportionable Central OHeads,1009,NEW Business Development & Growth,Gas,20014,Energy Costs,5006,Energy Costs,13/07/2016,113648,89.43,Revenue,British Gas Business,22242
Chorley Borough Council,http://statistics.data.gov.uk/id/local-authority/30UE,Democratic Represent and  Mgnt,1007,NEW Business Development & Growth,Gas,20014,Energy Costs,5006,Energy Costs,13/07/2016,113648,86.00,Revenue,British Gas Business,22242
Chorley Borough Council,http://statistics.data.gov.uk/id/local-authority/30UE,Democratic Represent and  Mgnt,1007,NEW Business Development & Growth,Gas,20014,Energy Costs,5006,Energy Costs,13/07/2016,113648,93.37,Revenue,British Gas Business,22242
Chorley Borough Council,http://statistics.data.gov.uk/id/local-authority/30UE,Democratic Represent and  Mgnt,1007,NEW Business Development & Growth,Gas,20014,Energy Costs,5006,Energy Costs,13/07/2016,113648,113.96,Revenue,British Gas Business,22242
Chorley Borough Council,http://statistics.data.gov.uk/id/local-authority/30UE,Democratic Represent and  Mgnt,1007,NEW Business Development & Growth,Gas,20014,Energy Costs,5006,Energy Costs,13/07/2016,113648,72.00,Revenue,British Gas Business,22242
Chorley Borough Council,http://statistics.data.gov.uk/id/local-authority/30UE,Democratic Represent and  Mgnt,1007,NEW Business Development & Growth,Gas,20014,Energy Costs,5006,Energy Costs,13/07/2016,113648,121.24,Revenue,British Gas Business,22242
Chorley Borough Council,http://statistics.data.gov.uk/id/local-authority/30UE,Unapportionable Central OHeads,1009,NEW Business Development & Growth,Gas,20014,Energy Costs,5006,Energy Costs,13/07/2016,113648,670.02,Revenue,British Gas Business,22242
Chorley Borough Council,http://statistics.data.gov.uk/id/local-authority/30UE,Democratic Represent and  Mgnt,1007,NEW Business Development & Growth,Gas,20014,Energy Costs,5006,Energy Costs,13/07/2016,113648,542.31,Revenue,British Gas Business,22242
Chorley Borough Council,http://statistics.data.gov.uk/id/local-authority/30UE,Unapportionable Central OHeads,1009,NEW Business Development & Growth,Gas,20014,Energy Costs,5006,Energy Costs,13/07/2016,113648,528.04,Revenue,British Gas Business,22242
Chorley Borough Council,http://statistics.data.gov.uk/id/local-authority/30UE,Homelessness,1075,NEW Business Development & Growth,Gas,20014,Energy Costs,5006,Energy Costs,13/07/2016,113653,"2,303.72",Revenue,British Gas Business,22242
Chorley Borough Council,http://statistics.data.gov.uk/id/local-authority/30UE,Homelessness,1075,NEW Business Development & Growth,Gas,20014,Energy Costs,5006,Energy Costs,13/07/2016,113653,242.99,Revenue,British Gas Business,22242
Chorley Borough Council,http://statistics.data.gov.uk/id/local-authority/30UE,Democratic Represent and  Mgnt,1007,NEW Business Development & Growth,Gas,20014,Energy Costs,5006,Energy Costs,13/07/2016,113653,240.20,Revenue,British Gas Business,22242
Chorley Borough Council,http://statistics.data.gov.uk/id/local-authority/30UE,Democratic Represent and  Mgnt,1007,NEW Business Development & Growth,Gas,20014,Energy Costs,5006,Energy Costs,13/07/2016,113653,518.89,Revenue,British Gas Business,22242
Chorley Borough Council,http://statistics.data.gov.uk/id/local-authority/30UE,Community Development,1097,NEW Business Development & Growth,Gas,20014,Energy Costs,5006,Energy Costs,13/07/2016,113653,69.58,Revenue,British Gas Business,22242
Chorley Borough Council,http://statistics.data.gov.uk/id/local-authority/30UE,Community Development,1097,NEW Business Development & Growth,Gas,20014,Energy Costs,5006,Energy Costs,13/07/2016,113653,149.96,Revenue,British Gas Business,22242
Chorley Borough Council,http://statistics.data.gov.uk/id/local-authority/30UE,Unapportionable Central OHeads,1009,NEW Business Development & Growth,Gas,20014,Energy Costs,5006,Energy Costs,13/07/2016,113653,147.64,Revenue,British Gas Business,22242
Chorley Borough Council,http://statistics.data.gov.uk/id/local-authority/30UE,Unapportionable Central OHeads,1009,NEW Business Development & Growth,Gas,20014,Energy Costs,5006,Energy Costs,13/07/2016,113653,226.35,Revenue,British Gas Business,22242
Chorley Borough Council,http://statistics.data.gov.uk/id/local-authority/30UE,Democratic Represent and  Mgnt,1007,NEW Business Development & Growth,Gas,20014,Energy Costs,5006,Energy Costs,13/07/2016,113653,153.95,Revenue,British Gas Business,22242
Chorley Borough Council,http://statistics.data.gov.uk/id/local-authority/30UE,Democratic Represent and  Mgnt,1007,NEW Business Development & Growth,Gas,20014,Energy Costs,5006,Energy Costs,13/07/2016,113653,154.76,Revenue,British Gas Business,22242
Chorley Borough Council,http://statistics.data.gov.uk/id/local-authority/30UE,Democratic Represent and  Mgnt,1007,NEW Business Development & Growth,Gas,20014,Energy Costs,5006,Energy Costs,13/07/2016,113653,165.03,Revenue,British Gas Business,22242
Chorley Borough Council,http://statistics.data.gov.uk/id/local-authority/30UE,Democratic Represent and  Mgnt,1007,NEW Business Development & Growth,Gas,20014,Energy Costs,5006,Energy Costs,13/07/2016,113653,187.88,Revenue,British Gas Business,22242
Chorley Borough Council,http://statistics.data.gov.uk/id/local-authority/30UE,Democratic Represent and  Mgnt,1007,NEW Business Development & Growth,Gas,20014,Energy Costs,5006,Energy Costs,13/07/2016,113653,187.23,Revenue,British Gas Business,22242
Chorley Borough Council,http://statistics.data.gov.uk/id/local-authority/30UE,Democratic Represent and  Mgnt,1007,NEW Business Development & Growth,Gas,20014,Energy Costs,5006,Energy Costs,13/07/2016,113653,295.31,Revenue,British Gas Business,22242
Chorley Borough Council,http://statistics.data.gov.uk/id/local-authority/30UE,Democratic Represent and  Mgnt,1007,NEW Business Development & Growth,Gas,20014,Energy Costs,5006,Energy Costs,13/07/2016,113653,137.94,Revenue,British Gas Business,22242
Chorley Borough Council,http://statistics.data.gov.uk/id/local-authority/30UE,Democratic Represent and  Mgnt,1007,NEW Business Development & Growth,Gas,20014,Energy Costs,5006,Energy Costs,13/07/2016,113653,85.59,Revenue,British Gas Business,22242
Chorley Borough Council,http://statistics.data.gov.uk/id/local-authority/30UE,Democratic Represent and  Mgnt,1007,NEW Business Development & Growth,Gas,20014,Energy Costs,5006,Energy Costs,13/07/2016,113653,156.00,Revenue,British Gas Business,22242
Chorley Borough Council,http://statistics.data.gov.uk/id/local-authority/30UE,Democratic Represent and  Mgnt,1007,NEW Business Development & Growth,Gas,20014,Energy Costs,5006,Energy Costs,13/07/2016,113653,241.82,Revenue,British Gas Business,22242
Chorley Borough Council,http://statistics.data.gov.uk/id/local-authority/30UE,Unapportionable Central OHeads,1009,NEW Business Development & Growth,Gas,20014,Energy Costs,5006,Energy Costs,13/07/2016,113653,820.28,Revenue,British Gas Business,22242
Chorley Borough Council,http://statistics.data.gov.uk/id/local-authority/30UE,Unapportionable Central OHeads,1009,NEW Business Development & Growth,Gas,20014,Energy Costs,5006,Energy Costs,13/07/2016,113653,"1,509.69",Revenue,British Gas Business,22242
Chorley Borough Council,http://statistics.data.gov.uk/id/local-authority/30UE,Democratic Represent and  Mgnt,1007,NEW Business Development & Growth,Gas,20014,Energy Costs,5006,Energy Costs,13/07/2016,113653,875.66,Revenue,British Gas Business,22242
Chorley Borough Council,http://statistics.data.gov.uk/id/local-authority/30UE,Democratic Represent and  Mgnt,1007,NEW Business Development & Growth,Gas,20014,Energy Costs,5006,Energy Costs,13/07/2016,113653,"1,570.50",Revenue,British Gas Business,22242
Chorley Borough Council,http://statistics.data.gov.uk/id/local-authority/30UE,Unapportionable Central OHeads,1009,NEW Business Development & Growth,Gas,20014,Energy Costs,5006,Energy Costs,13/07/2016,113653,684.84,Revenue,British Gas Business,22242
Chorley Borough Council,http://statistics.data.gov.uk/id/local-authority/30UE,Unapportionable Central OHeads,1009,NEW Business Development & Growth,Gas,20014,Energy Costs,5006,Energy Costs,13/07/2016,113653,"1,300.36",Revenue,British Gas Business,22242
Chorley Borough Council,http://statistics.data.gov.uk/id/local-authority/30UE,Homelessness,1075,NEW Business Development & Growth,Gas,20014,Energy Costs,5006,cotswold house,29/07/2016,114322,242.99,Revenue,British Gas Business,22242
Chorley Borough Council,http://statistics.data.gov.uk/id/local-authority/30UE,Democratic Represent and  Mgnt,1007,NEW Business Development & Growth,Gas,20014,Energy Costs,5006,coach house,29/07/2016,114322,167.76,Revenue,British Gas Business,22242
Chorley Borough Council,http://statistics.data.gov.uk/id/local-authority/30UE,Community Development,1097,NEW Business Development & Growth,Gas,20014,Energy Costs,5006,accountign,29/07/2016,114322,49.16,Revenue,British Gas Business,22242
Chorley Borough Council,http://statistics.data.gov.uk/id/local-authority/30UE,Unapportionable Central OHeads,1009,NEW Business Development & Growth,Gas,20014,Energy Costs,5006,benga; street,29/07/2016,114322,85.31,Revenue,British Gas Business,22242
Chorley Borough Council,http://statistics.data.gov.uk/id/local-authority/30UE,Democratic Represent and  Mgnt,1007,NEW Business Development & Growth,Gas,20014,Energy Costs,5006,astley cottage,29/07/2016,114322,65.57,Revenue,British Gas Business,22242
Chorley Borough Council,http://statistics.data.gov.uk/id/local-authority/30UE,Democratic Represent and  Mgnt,1007,NEW Business Development & Growth,Gas,20014,Energy Costs,5006,clayton brook cc,29/07/2016,114322,59.14,Revenue,British Gas Business,22242
Chorley Borough Council,http://statistics.data.gov.uk/id/local-authority/30UE,Democratic Represent and  Mgnt,1007,NEW Business Development & Growth,Gas,20014,Energy Costs,5006,astley vill cc,29/07/2016,114322,96.29,Revenue,British Gas Business,22242
Chorley Borough Council,http://statistics.data.gov.uk/id/local-authority/30UE,Democratic Represent and  Mgnt,1007,NEW Business Development & Growth,Gas,20014,Energy Costs,5006,farm house,29/07/2016,114322,32.31,Revenue,British Gas Business,22242
Chorley Borough Council,http://statistics.data.gov.uk/id/local-authority/30UE,Democratic Represent and  Mgnt,1007,NEW Business Development & Growth,Gas,20014,Energy Costs,5006,eaves green,29/07/2016,114322,86.10,Revenue,British Gas Business,22242
Chorley Borough Council,http://statistics.data.gov.uk/id/local-authority/30UE,Unapportionable Central OHeads,1009,NEW Business Development & Growth,Gas,20014,Energy Costs,5006,union street,29/07/2016,114322,466.51,Revenue,British Gas Business,22242
Chorley Borough Council,http://statistics.data.gov.uk/id/local-authority/30UE,Democratic Represent and  Mgnt,1007,NEW Business Development & Growth,Gas,20014,Energy Costs,5006,astley hall,29/07/2016,114322,427.62,Revenue,British Gas Business,22242
Chorley Borough Council,http://statistics.data.gov.uk/id/local-authority/30UE,Unapportionable Central OHeads,1009,NEW Business Development & Growth,Gas,20014,Energy Costs,5006,town hall,29/07/2016,114322,214.21,Revenue,British Gas Business,22242
Chorley Borough Council,http://statistics.data.gov.uk/id/local-authority/30UE,Central Support Services,1009,NEW Early Intervention,Training Course Fees,17010,Indirect Employee Expenses,5002,Pest control training for the pest control stewardship for NAMES REDACTED,27/07/2016,113801,450.00,Revenue,British Pest Control Association,75392
Chorley Borough Council,http://statistics.data.gov.uk/id/local-authority/30UE,Culture & Heritage,1036,NEW Early Intervention,Telephones - Rentals,40083,Communication and Computing,5028,redcare vision,13/07/2016,113013,"3,204.68",Revenue,BT Redcare,21115
Chorley Borough Council,http://statistics.data.gov.uk/id/local-authority/30UE,Service Management & Support,1009,NEW Customer & Digital,Supplies-Grounds Maintenance,40025,"Equipment, Furniture & Materia",5023,Supply 20 tonne of grade one topsoil to be delivered to Bengal St depot,27/07/2016,114237,400.00,Revenue,Burt Wesley & Sons ltd,67887
Chorley Borough Council,http://statistics.data.gov.uk/id/local-authority/30UE,Service Management & Support,1009,NEW Customer & Digital,Supplies-Grounds Maintenance,40025,"Equipment, Furniture & Materia",5023,Supply 20 tonne of 20mm to dust sand stone to be delivered to Bengal St depot,27/07/2016,114237,360.00,Revenue,Burt Wesley & Sons ltd,67887
Chorley Borough Council,http://statistics.data.gov.uk/id/local-authority/30UE,Business Support,1095,NEW Business Development & Growth,Miscellaneous Expenses,40200,Miscellaneous Expenses,5034,Miscellaneous Expense,27/07/2016,114016,"4,000.00",Revenue,Business Source Solutions Ltd,76133
Chorley Borough Council,http://statistics.data.gov.uk/id/local-authority/30UE,Unapportionable Central OHeads,1009,NEW Policy & Governance,Exhibitions & Special Events,40158,Miscellaneous Expenses,5034,Tea and coffee for the Somme 100 event x 250 + tablecloths,20/07/2016,113958,770.83,Revenue,Cafe Ambio,22328
Chorley Borough Council,http://statistics.data.gov.uk/id/local-authority/30UE,Unapportionable Central OHeads,1009,NEW Customer & Digital,Emergency Call Out System,40096,Communication and Computing,5028,Out of hours call charges February 2016,20/07/2016,113720,453.52,Revenue,CallCare Ltd,20257
Chorley Borough Council,http://statistics.data.gov.uk/id/local-authority/30UE,Unapportionable Central OHeads,1009,NEW Customer & Digital,Emergency Call Out System,40096,Communication and Computing,5028,Out of hours standing charge April 2016,20/07/2016,113720,120.00,Revenue,CallCare Ltd,20257
Chorley Borough Council,http://statistics.data.gov.uk/id/local-authority/30UE,Unapportionable Central OHeads,1009,NEW Customer & Digital,Emergency Call Out System,40096,Communication and Computing,5028,out of hours chargse,27/07/2016,113871,580.56,Revenue,CallCare Ltd,20257
Chorley Borough Council,http://statistics.data.gov.uk/id/local-authority/30UE,Service Management & Support,1009,NEW Customer & Digital,Gas,20014,Energy Costs,5006,bulk propane,13/07/2016,113635,285.97,Revenue,Calor Gas Limited,22104
Chorley Borough Council,http://statistics.data.gov.uk/id/local-authority/30UE,Economic Development,1096,NEW Business Development & Growth,Miscellaneous Expenses,40200,Miscellaneous Expenses,5034,Buffet for quarterly business network 27 July 2016,29/07/2016,114368,625.50,Revenue,Camerons Restaurant Ltd,53731
Chorley Borough Council,http://statistics.data.gov.uk/id/local-authority/30UE,Central Support Services,1009,NEW Early Intervention,Tools & Equipment - Maintenance,40005,"Equipment, Furniture & Materia",5023,UKAS Calibration of 2 x sound level meters and 2 x sound calibrators plus collect and return carriage.,22/07/2016,113940,504.00,Revenue,Campbell Associates,21084
Chorley Borough Council,http://statistics.data.gov.uk/id/local-authority/30UE,Unapportionable Central OHeads,1009,NEW Policy & Governance,Refuse Collection,20037,Cleaning and Domestic Supplies,5012,All services provided by Cannon Hygiene for all Council sites for the period up to July 2016 invoice number CN19269946,29/07/2016,113972,"1,316.85",Revenue,Cannon Hygiene Limited,18158
Chorley Borough Council,http://statistics.data.gov.uk/id/local-authority/30UE,Unapportionable Central OHeads,1009,NEW Customer & Digital,Photocopier Charges,40047,"Printing, Stationery & General",5026,charges,27/07/2016,114169,"2,626.15",Revenue,Canon (UK) Ltd,17492
Chorley Borough Council,http://statistics.data.gov.uk/id/local-authority/30UE,Central Support Services,1009,NEW Customer & Digital,ICT Software Implementation,40114,Communication and Computing,5028,Revenues and Benefits additional 50K software up front charge period 1.6.16 to 31.3.17. 2 of 2. Inv no. 6003342335,22/07/2016,113279,"41,667.00",Revenue,Capita Business Services Ltd,17151
Chorley Borough Council,http://statistics.data.gov.uk/id/local-authority/30UE,Central Support Services,1009,NEW Customer & Digital,ICT Software Implementation,40114,Communication and Computing,5028,"Revenues and Benefits software -additional - 50K up front split 8,333 1 of 2 1.4.16 - 31.5.16",22/07/2016,113280,"8,333.00",Revenue,Capita Business Services Ltd,17151
Chorley Borough Council,http://statistics.data.gov.uk/id/local-authority/30UE,Unapportionable Central OHeads,1009,NEW Policy & Governance,Consultants` Fees,40077,Services,5027,Calc of the year end accounting entries required to reflect the movement in South Ribble BCs interest in the leisure centre finance,01/07/2016,113267,"1,500.00",Revenue,Capita Treasury Solutions Ltd,16428
Chorley Borough Council,http://statistics.data.gov.uk/id/local-authority/30UE,Business Support,1095,NEW Chief Executive,Miscellaneous Expenses,40200,Miscellaneous Expenses,5034,business grant,13/07/2016,113705,250.00,Revenue,NAME REDACTED,76112
Chorley Borough Council,http://statistics.data.gov.uk/id/local-authority/30UE,Parking Services,1066,NEW Business Development & Growth,External Contractors,50008,Private Contractors,5042,Processing001 - Notice Processing Services April 16 - September 16 @ 2.89 per pcn,13/07/2016,113610,696.49,Revenue,Chipside Ltd,22063
Chorley Borough Council,http://statistics.data.gov.uk/id/local-authority/30UE,Tourism,1039,NEW Customer & Digital,Miscellaneous Expenses,40200,Miscellaneous Expenses,5034,2No. 50-litre cylinders of balloon gas,27/07/2016,114227,364.55,Revenue,Chorley Bottled Gas Ltd,19484
Chorley Borough Council,http://statistics.data.gov.uk/id/local-authority/30UE,Elections,1012,NEW Policy & Governance,Rent/Hire Of Premises,20017,Premises Rents,5007,room hire for polling station for EU Referendum 23 June 2016,27/07/2016,114119,335.00,Revenue,Chorley Methodist Church,18422
Chorley Borough Council,http://statistics.data.gov.uk/id/local-authority/30UE,Elections,1012,NEW Policy & Governance,Rent/Hire Of Premises,20017,Premises Rents,5007,room hire for local and pcc elections 5 May 2016,27/07/2016,114120,335.00,Revenue,Chorley Methodist Church,18422
Chorley Borough Council,http://statistics.data.gov.uk/id/local-authority/30UE,Democratic Represent and  Mgnt,1007,NEW Policy & Governance,Grants To Other Organisations,40127,Grants and Subscriptions,5031,comm funding,15/07/2016,113802,500.00,Revenue,Chorley Play Partnership,20767
Chorley Borough Council,http://statistics.data.gov.uk/id/local-authority/30UE,Business Support,1095,NEW Business Development & Growth,Grants To Other Organisations,40127,Grants and Subscriptions,5031,subsidy 1,29/07/2016,114273,"1,073.00",Revenue,Chorley Vets,75543
Chorley Borough Council,http://statistics.data.gov.uk/id/local-authority/30UE,Democratic Represent and  Mgnt,1007,NEW Early Intervention,Fixtures & Fittings - Purchase,20027,Fixtures and Fittings,5010,Supply & fit to Clayton Brook Village Hall vertical PVC blinds as detailed below in Taupe Pvc Vertical Blinds 1 x 2375 x,27/07/2016,114194,490.00,Revenue,Chorley Window Blinds,54011
Chorley Borough Council,http://statistics.data.gov.uk/id/local-authority/30UE,Economic Development,1096,NEW Business Development & Growth,Tools & Equipment - Purchase,40003,"Equipment, Furniture & Materia",5023,"Parts for Gazebos Chorley Markets 6 x corner legs 150 6 x centre slider 150 1 x 5 foot roll of patching tape 35",29/07/2016,114195,335.00,Revenue,City B Group Ltd,47300
Chorley Borough Council,http://statistics.data.gov.uk/id/local-authority/30UE,Democratic Represent and  Mgnt,1007,NEW Business Development & Growth,Supplies-Grounds Maintenance,40025,"Equipment, Furniture & Materia",5023,Hire of 134 Side sheets for Gazebos. Astley Park flower show event.,29/07/2016,114196,670.00,Revenue,City B Group Ltd,47300
Chorley Borough Council,http://statistics.data.gov.uk/id/local-authority/30UE,Unapportionable Central OHeads,1009,NEW Policy & Governance,IT Software - Annual Licences,40101,Communication and Computing,5028,"3 Year Hosted ICON Contract Renewal beginning 1st April 2016 Year 1 Annual Subscription 14,777.50 Year 2 Annual Subs",01/07/2016,113481,"14,777.50",Revenue,Civica UK Limited,17463
Chorley Borough Council,http://statistics.data.gov.uk/id/local-authority/30UE,Corporate Management,1008,NEW Chief Executive,Consultants` Fees,40077,Services,5027,project,27/07/2016,114106,875.00,Revenue,NAME REDACTED,74445
Chorley Borough Council,http://statistics.data.gov.uk/id/local-authority/30UE,Unapportionable Central OHeads,1009,NEW Business Development & Growth,General Repairs - Reactive,20004,Repairs Maintenance & Alts,5005,Blanket order for Reactive works for 2016.,13/07/2016,113536,296.91,Revenue,Classic Lifts Limited,20897
Chorley Borough Council,http://statistics.data.gov.uk/id/local-authority/30UE,Elections,1012,NEW Policy & Governance,Rent/Hire Of Premises,20017,Premises Rents,5007,Use of School for polling station for LCC By Election 21 July 2016,29/07/2016,114318,"1,465.00",Revenue,Clayton le Woods CE Aided Primary School,76165
Chorley Borough Council,http://statistics.data.gov.uk/id/local-authority/30UE,Elections,1012,NEW Policy & Governance,Rent/Hire Of Premises,20017,Premises Rents,5007,Hire of room for polling station - EU Referendum 23 June 2016,06/07/2016,113587,250.00,Revenue,Clayton-Le-Woods Community Centre,18526
Chorley Borough Council,http://statistics.data.gov.uk/id/local-authority/30UE,Unapportionable Central OHeads,1009,NEW Business Development & Growth,General Repairs - Reactive,20004,Repairs Maintenance & Alts,5005,Blanket order for Reactive works for 2016.,27/07/2016,113818,279.79,Revenue,Corlett Electrical Eng Co Ltd,16271
Chorley Borough Council,http://statistics.data.gov.uk/id/local-authority/30UE,Unapportionable Central OHeads,1009,NEW Business Development & Growth,General Repairs - Reactive,20004,Repairs Maintenance & Alts,5005,Blanket order for Reactive works for 2016.,27/07/2016,113823,449.80,Revenue,Corlett Electrical Eng Co Ltd,16271
Chorley Borough Council,http://statistics.data.gov.uk/id/local-authority/30UE,Service Management & Support,1009,NEW Customer & Digital,Grounds Maintenance Contractor,20043,Grounds Maintenance Costs,5013,Works completed @ ADDRESS REDACTED,27/07/2016,113418,"3,780.00",Revenue,Cornthwaite Tree Care,21250
Chorley Borough Council,http://statistics.data.gov.uk/id/local-authority/30UE,Service Management & Support,1009,NEW Customer & Digital,Grounds Maintenance Contractor,20043,Grounds Maintenance Costs,5013,Works to be carried out - ADDRESSES REDACTED,27/07/2016,113898,"4,050.00",Revenue,Cornthwaite Tree Care,21250
Chorley Borough Council,http://statistics.data.gov.uk/id/local-authority/30UE,Service Management & Support,1009,NEW Customer & Digital,Grounds Maintenance Contractor,20043,Grounds Maintenance Costs,5013,"Works to be carried out in Adlington Cemetery Deadwood trees - Tag 0018, 0012 & 01677",20/07/2016,113899,450.00,Revenue,Cornthwaite Tree Care,21250
Chorley Borough Council,http://statistics.data.gov.uk/id/local-authority/30UE,Other Short Term Debtors,,NEW Policy & Governance,Other Debtors,98,Balance Sheet,Balance,Cycle Scheme for NAME REDACTED,06/07/2016,113618,700.04,Revenue,Cyclescheme Ltd,22390
Chorley Borough Council,http://statistics.data.gov.uk/id/local-authority/30UE,Other Short Term Debtors,,NEW Policy & Governance,Other Debtors,98,Balance Sheet,Balance,cycle scheme for NAME REDACTED,06/07/2016,113618,212.73,Revenue,Cyclescheme Ltd,22390
Chorley Borough Council,http://statistics.data.gov.uk/id/local-authority/30UE,Other Short Term Debtors,,NEW Policy & Governance,Other Debtors,98,Balance Sheet,Balance,helmets,06/07/2016,113618,40.00,Revenue,Cyclescheme Ltd,22390
Chorley Borough Council,http://statistics.data.gov.uk/id/local-authority/30UE,Tourism,1039,NEW Customer & Digital,Tools & Equipment - Hire,40004,"Equipment, Furniture & Materia",5023,Remove 20ft container and relocate to Botany site as per conversation with NAME REDACTED on 14/07/2016 Attend Bengal St ,20/07/2016,114070,250.00,Revenue,D Cain & Son Ltd,21353
Chorley Borough Council,http://statistics.data.gov.uk/id/local-authority/30UE,Unapportionable Central OHeads,1009,NEW Policy & Governance,Mayoral Hospitality,40123,Expenses,5030,mayors civic,15/07/2016,113888,500.00,Revenue,Dance with Passion,48513
Chorley Borough Council,http://statistics.data.gov.uk/id/local-authority/30UE,Corporate Management,1008,NEW Customer & Digital,Other Contributions,40145,Grants and Subscriptions,5031,ADDRESS REDACTED,27/07/2016,114190,"4,203.60",Revenue,NAME REDACTED,76157
Chorley Borough Council,http://statistics.data.gov.uk/id/local-authority/30UE,Corporate Management,1008,NEW Customer & Digital,Other Contributions,40145,Grants and Subscriptions,5031,ADDRESS REDACTED,27/07/2016,114191,"1,367.97",Revenue,NAME REDACTED,74003
Chorley Borough Council,http://statistics.data.gov.uk/id/local-authority/30UE,Central Support Services,1009,NEW Customer & Digital,Computer Equipment-Purchase,40098,Communication and Computing,5028,"Wyse 5020 thin client, CTO",20/07/2016,113924,700.00,Revenue,Dell Corporation Ltd,64387
Chorley Borough Council,http://statistics.data.gov.uk/id/local-authority/30UE,Central Support Services,1009,NEW Customer & Digital,Computer Equipment-Purchase,40098,Communication and Computing,5028,Dell Multimedia Keyboard-KB216 - UK (QWERTY) - Black,20/07/2016,113924,13.00,Revenue,Dell Corporation Ltd,64387
Chorley Borough Council,http://statistics.data.gov.uk/id/local-authority/30UE,Central Support Services,1009,NEW Customer & Digital,Computer Equipment-Purchase,40098,Communication and Computing,5028,Dell Wyse 5490-D90Q10 - G-Series 1.5 GHz - 4 GB - 32 GB,27/07/2016,114181,423.57,Revenue,Dell Corporation Ltd,64387
Chorley Borough Council,http://statistics.data.gov.uk/id/local-authority/30UE,General Government Grants,,NEW Policy & Governance,Revenue Support Grant,69000,Income not in NCOS,,revenue grant,14/07/2016,113504,"-123,318.00",Revenue,Department of Communities and Local Government,16280
Chorley Borough Council,http://statistics.data.gov.uk/id/local-authority/30UE,Collection Fund Revenue Accoun,,NEW Policy & Governance,NNDR Central Share,2034,Precepts & Collection Fund,Precept,central sahre,14/07/2016,113504,"1,309,491.00",Revenue,Department of Communities and Local Government,16280
Chorley Borough Council,http://statistics.data.gov.uk/id/local-authority/30UE,Collection Fund Revenue Accoun,,NEW Policy & Governance,NNDR Central Share,2034,Precepts & Collection Fund,Precept,surplus,14/07/2016,113504,"5,474.00",Revenue,Department of Communities and Local Government,16280
Chorley Borough Council,http://statistics.data.gov.uk/id/local-authority/30UE,Unapportionable Central OHeads,1009,NEW Early Intervention,HR Recruitment Expenses,15200,Indirect Employee Expenses,5002,DBS Checks,25/07/2016,113447,88.00,Revenue,Disclosure & Barring Service,16387
Chorley Borough Council,http://statistics.data.gov.uk/id/local-authority/30UE,Corporate Management,1008,NEW Early Intervention,CRB Disclosure Fees,40070,Services,5027,licencing,25/07/2016,113447,176.00,Revenue,Disclosure & Barring Service,16387
Chorley Borough Council,http://statistics.data.gov.uk/id/local-authority/30UE,Unapportionable Central OHeads,1009,NEW Business Development & Growth,General Repairs - Reactive,20004,Repairs Maintenance & Alts,5005,Blanket Order Reactive Repairs 2016-17,01/07/2016,113343,"2,758.00",Revenue,Drain Alert Ltd,16961
Chorley Borough Council,http://statistics.data.gov.uk/id/local-authority/30UE,Business Support,1095,NEW Business Development & Growth,Miscellaneous Expenses,40200,Miscellaneous Expenses,5034,"3579This invoice includes advice provided in relation to: a)	our meeting to discuss the procurement plan, project anESIF ",15/07/2016,113414,"3,579.00",Revenue,DWF Law,75359
Chorley Borough Council,http://statistics.data.gov.uk/id/local-authority/30UE,Capital,Capital,NEW Business Development & Growth,Surveyors Fees,3021,Capital Expenditure,Capital,Bat Survey ADDRESS REDACTED,13/07/2016,113496,320.50,Capital,Ecology Services,58852
Chorley Borough Council,http://statistics.data.gov.uk/id/local-authority/30UE,Central Support Services,1009,NEW Customer & Digital,Mobile Phones,40086,Communication and Computing,5028,Jul-16,27/07/2016,113788,546.80,Revenue,EE - Orange,16486
Chorley Borough Council,http://statistics.data.gov.uk/id/local-authority/30UE,Central Support Services,1009,NEW Customer & Digital,Mobile Phones,40086,Communication and Computing,5028,May-16,20/07/2016,113638,"2,026.45",Revenue,EE LIMITED,63366
Chorley Borough Council,http://statistics.data.gov.uk/id/local-authority/30UE,Central Support Services,1009,NEW Customer & Digital,Mobile Phones,40086,Communication and Computing,5028,Jun-16,20/07/2016,113731,"2,026.10",Revenue,EE LIMITED,63366
Chorley Borough Council,http://statistics.data.gov.uk/id/local-authority/30UE,Business Support,1095,NEW Business Development & Growth,Miscellaneous Expenses,40200,Miscellaneous Expenses,5034,Produce a comprehensive consultants report to support an ESF funding bid - Chorley Employment Inclusion Project email quote ,27/07/2016,114260,"5,134.50",Revenue,EKOSGEN,71520
Chorley Borough Council,http://statistics.data.gov.uk/id/local-authority/30UE,Community Development,1097,NEW Policy & Governance,Rent/Hire Of Premises,20017,Premises Rents,5007,rent,01/07/2016,113508,582.19,Revenue,Elmwood Property Investments Limited,60926
Chorley Borough Council,http://statistics.data.gov.uk/id/local-authority/30UE,Elections,1012,NEW Customer & Digital,Hire Of Transport,30028,Contrct Hire & Operating Lease,5018,Hire of ford transit van as per discussion with NAME REDACTED from 25/04/2016 to 13/05/2016 for 3 weeks,20/07/2016,113368,416.29,Revenue,Enterprise,74559
Chorley Borough Council,http://statistics.data.gov.uk/id/local-authority/30UE,Unapportionable Central OHeads,1009,NEW Customer & Digital,Stationery,40050,"Printing, Stationery & General",5026,"200 x Pre Printed cards Chorley Council Staff ID Badges = 294.00 Delivery = 9.50",06/07/2016,112882,303.50,Revenue,Essentra Security,66416
Chorley Borough Council,http://statistics.data.gov.uk/id/local-authority/30UE,Business Support,1095,NEW Business Development & Growth,Miscellaneous Expenses,40200,Miscellaneous Expenses,5034,For post-submission work on Digital Health Park project,27/07/2016,114178,"1,424.23",Revenue,Euxton Lane Developments,75650
Chorley Borough Council,http://statistics.data.gov.uk/id/local-authority/30UE,Democratic Represent and  Mgnt,1007,NEW Policy & Governance,Miscellaneous Expenses,40200,Miscellaneous Expenses,5034,Framed marquee 12 x 10 metres to be erected Wednesday 29th June - take down Monday 4th July. 1100.00 (excl. VAT),13/07/2016,113808,"1,100.00",Revenue,Evans Marquee Hire Ltd,69631
Chorley Borough Council,http://statistics.data.gov.uk/id/local-authority/30UE,Democratic Represent and  Mgnt,1007,NEW Customer & Digital,Supplies-Grounds Maintenance,40025,"Equipment, Furniture & Materia",5023,Various herbaceous plants and feature plants for the beds - Front on the Town Hall & Mealhouse Lane,15/07/2016,113745,"1,470.20",Revenue,Everglades Nurseries Ltd,20202
Chorley Borough Council,http://statistics.data.gov.uk/id/local-authority/30UE,Democratic Represent and  Mgnt,1007,NEW Customer & Digital,Supplies-Grounds Maintenance,40025,"Equipment, Furniture & Materia",5023,Various herbaceous plants and feature plants for the beds - Front on the Town Hall & Mealhouse Lane,15/07/2016,113755,"1,299.00",Revenue,Everglades Nurseries Ltd,20202
Chorley Borough Council,http://statistics.data.gov.uk/id/local-authority/30UE,Democratic Represent and  Mgnt,1007,NEW Customer & Digital,Supplies-Grounds Maintenance,40025,"Equipment, Furniture & Materia",5023,120 various Perrenials,13/07/2016,113790,480.00,Revenue,Everglades Nurseries Ltd,20202
Chorley Borough Council,http://statistics.data.gov.uk/id/local-authority/30UE,Democratic Represent and  Mgnt,1007,NEW Customer & Digital,Supplies-Grounds Maintenance,40025,"Equipment, Furniture & Materia",5023,100 various Perrenials,13/07/2016,113792,371.00,Revenue,Everglades Nurseries Ltd,20202
Chorley Borough Council,http://statistics.data.gov.uk/id/local-authority/30UE,Democratic Represent and  Mgnt,1007,NEW Customer & Digital,Supplies-Grounds Maintenance,40025,"Equipment, Furniture & Materia",5023,5ft Herb man sat on a bench,27/07/2016,114192,"2,000.00",Revenue,Everglades Nurseries Ltd,20202
Chorley Borough Council,http://statistics.data.gov.uk/id/local-authority/30UE,Democratic Represent and  Mgnt,1007,NEW Customer & Digital,Supplies-Grounds Maintenance,40025,"Equipment, Furniture & Materia",5023,Various Perennials,27/07/2016,114193,449.70,Revenue,Everglades Nurseries Ltd,20202
Chorley Borough Council,http://statistics.data.gov.uk/id/local-authority/30UE,Unapportionable Central OHeads,1009,NEW Business Development & Growth,General Repairs - Reactive,20004,Repairs Maintenance & Alts,5005,Blanket order for REACTIVE works for 2016.,27/07/2016,113864,611.96,Revenue,Excel Auto Doors Ltd,69444
Chorley Borough Council,http://statistics.data.gov.uk/id/local-authority/30UE,Service Management & Support,1009,NEW Customer & Digital,Hire Of Transport,30028,Contrct Hire & Operating Lease,5018,Hire of tractor and side arm flail at price quote via the chest until 31/03/2017 Please use this order number as from 01/04/2016,27/07/2016,112499,"1,639.84",Revenue,F R Sharrock Ltd,18091
Chorley Borough Council,http://statistics.data.gov.uk/id/local-authority/30UE,Service Management & Support,1009,NEW Customer & Digital,Tools & Equipment - Maintenance,40005,"Equipment, Furniture & Materia",5023,Supply items as on Pro-Forma invoice number 113277 already supplied,06/07/2016,113566,599.81,Revenue,F R Sharrock Ltd,18091
Chorley Borough Council,http://statistics.data.gov.uk/id/local-authority/30UE,Service Management & Support,1009,NEW Customer & Digital,Vehicle Maintenance,30045,Direct Transport Costs,5016,Carryout service on Kubota tractor PO14BFX as on Pro-Forma invoice number 196270 work already carried out,06/07/2016,113687,747.69,Revenue,F R Sharrock Ltd,18091
Chorley Borough Council,http://statistics.data.gov.uk/id/local-authority/30UE,Service Management & Support,1009,NEW Customer & Digital,Vehicle Maintenance,30045,Direct Transport Costs,5016,"Supply and fit 1 X Cab kit 2 - Doors, rear screen, Noise kit 1 X Spring Kit At prices quoted by NAME REDACTED to be fitted to",27/07/2016,113746,"1,236.50",Revenue,F R Sharrock Ltd,18091
Chorley Borough Council,http://statistics.data.gov.uk/id/local-authority/30UE,Service Management & Support,1009,NEW Customer & Digital,Purchase of Plant,40000,"Equipment, Furniture & Materia",5023,Supply of 1 x RTV 900 Utility vehicle as per you quote via the chest to be delivered to Bengal St depot,27/07/2016,113770,"10,797.00",Revenue,F R Sharrock Ltd,18091
Chorley Borough Council,http://statistics.data.gov.uk/id/local-authority/30UE,Service Management & Support,1009,NEW Customer & Digital,Purchase of Plant,40000,"Equipment, Furniture & Materia",5023,non vat,27/07/2016,113770,200.00,Revenue,F R Sharrock Ltd,18091
Chorley Borough Council,http://statistics.data.gov.uk/id/local-authority/30UE,Democratic Represent and  Mgnt,1007,NEW Early Intervention,Grants to Voluntary Organisations,40124,Grants and Subscriptions,5031,Annual grant for  COmm centre as part of S106 agreement,01/07/2016,113416,"8,000.00",Revenue,Fairview Youth & Community Association,20589
Chorley Borough Council,http://statistics.data.gov.uk/id/local-authority/30UE,Elections,1012,NEW Policy & Governance,Rent/Hire Of Premises,20017,Premises Rents,5007,Hire of room for polling station on 5 May 2016 - PCC/Borough Elections and 23 June 2016 - EU Referendum,01/07/2016,113555,256.00,Revenue,Fairview Youth & Community Association,20589
Chorley Borough Council,http://statistics.data.gov.uk/id/local-authority/30UE,Tourism,1039,NEW Customer & Digital,Furniture - Hire,40013,"Equipment, Furniture & Materia",5023,additional items,13/07/2016,113619,271.34,Revenue,Field and Lawn Ltd,74977
Chorley Borough Council,http://statistics.data.gov.uk/id/local-authority/30UE,Tourism,1039,NEW Customer & Digital,Furniture - Hire,40013,"Equipment, Furniture & Materia",5023,"Additional items for Chorley Flower Show, including hire of 9x15m marquee & PVC wall, concrete ballast; generator hire.",15/07/2016,113620,"1,619.58",Revenue,Field and Lawn Ltd,74977
Chorley Borough Council,http://statistics.data.gov.uk/id/local-authority/30UE,Tourism,1039,NEW Policy & Governance,Children's Activities,40188,Miscellaneous Expenses,5034,Mobile farm children`s activity for two days of Chorley Flower Show,27/07/2016,114139,"2,220.00",Revenue,Fishers Mobile Farm,59761
Chorley Borough Council,http://statistics.data.gov.uk/id/local-authority/30UE,Tourism,1039,NEW Policy & Governance,Supplies-Grounds Maintenance,40025,"Equipment, Furniture & Materia",5023,Flowers for displays at Astley Hall for the Chorley Flower Show,29/07/2016,114261,"2,882.38",Revenue,Flowervision,71222
Chorley Borough Council,http://statistics.data.gov.uk/id/local-authority/30UE,Tourism,1039,NEW Policy & Governance,Supplies-Grounds Maintenance,40025,"Equipment, Furniture & Materia",5023,Supplies-Grounds Maintenance,29/07/2016,114261,12.00,Revenue,Flowervision,71222
Chorley Borough Council,http://statistics.data.gov.uk/id/local-authority/30UE,Tourism,1039,NEW Policy & Governance,Supplies-Grounds Maintenance,40025,"Equipment, Furniture & Materia",5023,Sundries to be provided for use at Astley Hall for the Chorley Flower Show,29/07/2016,114262,430.70,Revenue,Flowervision,71222
Chorley Borough Council,http://statistics.data.gov.uk/id/local-authority/30UE,Service Management & Support,1009,NEW Customer & Digital,Freight Transport Assoc Fees,40150,Grants and Subscriptions,5031,Carryout 6 weekly safety inspection on RV14DVB for Olicence compliance,27/07/2016,113357,117.63,Revenue,Freight Transport Assoc Ltd,16333
Chorley Borough Council,http://statistics.data.gov.uk/id/local-authority/30UE,Service Management & Support,1009,NEW Customer & Digital,Freight Transport Assoc Fees,40150,Grants and Subscriptions,5031,Carryout 6 weekly safety inspection on DK07LDE for Olicence compliance,27/07/2016,113357,117.63,Revenue,Freight Transport Assoc Ltd,16333
Chorley Borough Council,http://statistics.data.gov.uk/id/local-authority/30UE,Service Management & Support,1009,NEW Customer & Digital,Freight Transport Assoc Fees,40150,Grants and Subscriptions,5031,Carryout 6 weekly safety inspection on DX55CVG for Olicence compliance,27/07/2016,113357,117.63,Revenue,Freight Transport Assoc Ltd,16333
Chorley Borough Council,http://statistics.data.gov.uk/id/local-authority/30UE,Service Management & Support,1009,NEW Customer & Digital,Freight Transport Assoc Fees,40150,Grants and Subscriptions,5031,Carryout 6 weekly safety inspection on DK05CXG for Olicence compliance,27/07/2016,113357,117.63,Revenue,Freight Transport Assoc Ltd,16333
Chorley Borough Council,http://statistics.data.gov.uk/id/local-authority/30UE,Service Management & Support,1009,NEW Customer & Digital,Freight Transport Assoc Fees,40150,Grants and Subscriptions,5031,Carryout 6 weekly safety inspection on PN02HRL for Olicence compliance,27/07/2016,113357,117.63,Revenue,Freight Transport Assoc Ltd,16333
Chorley Borough Council,http://statistics.data.gov.uk/id/local-authority/30UE,Service Management & Support,1009,NEW Customer & Digital,Freight Transport Assoc Fees,40150,Grants and Subscriptions,5031,Carryout 6 weekly safety inspection on DK56JWL for Olicence compliance,27/07/2016,113357,117.63,Revenue,Freight Transport Assoc Ltd,16333
Chorley Borough Council,http://statistics.data.gov.uk/id/local-authority/30UE,Service Management & Support,1009,NEW Customer & Digital,Freight Transport Assoc Fees,40150,Grants and Subscriptions,5031,Carryout 6 weekly safety inspection on DK07LDE for Olicence compliance,27/07/2016,113357,117.63,Revenue,Freight Transport Assoc Ltd,16333
Chorley Borough Council,http://statistics.data.gov.uk/id/local-authority/30UE,Service Management & Support,1009,NEW Customer & Digital,Freight Transport Assoc Fees,40150,Grants and Subscriptions,5031,Carryout additional safety inspection on RV14DVB,27/07/2016,113357,31.20,Revenue,Freight Transport Assoc Ltd,16333
Chorley Borough Council,http://statistics.data.gov.uk/id/local-authority/30UE,Service Management & Support,1009,NEW Customer & Digital,Freight Transport Assoc Fees,40150,Grants and Subscriptions,5031,Carryout road sweeper inspection on RV14DVB,27/07/2016,113357,87.50,Revenue,Freight Transport Assoc Ltd,16333
Chorley Borough Council,http://statistics.data.gov.uk/id/local-authority/30UE,Service Management & Support,1009,NEW Customer & Digital,Freight Transport Assoc Fees,40150,Grants and Subscriptions,5031,Carryout 6 weekly safety inspection on DK56 JWO for Olicence compliance,27/07/2016,113809,117.63,Revenue,Freight Transport Assoc Ltd,16333
Chorley Borough Council,http://statistics.data.gov.uk/id/local-authority/30UE,Service Management & Support,1009,NEW Customer & Digital,Freight Transport Assoc Fees,40150,Grants and Subscriptions,5031,Carryout yearly transport audit on Chorley Council records as requested,27/07/2016,113809,359.09,Revenue,Freight Transport Assoc Ltd,16333
Chorley Borough Council,http://statistics.data.gov.uk/id/local-authority/30UE,Service Management & Support,1009,NEW Customer & Digital,Freight Transport Assoc Fees,40150,Grants and Subscriptions,5031,Carryout 6 weekly safety inspection on DK05CXG for Olicence compliance,27/07/2016,113809,117.63,Revenue,Freight Transport Assoc Ltd,16333
Chorley Borough Council,http://statistics.data.gov.uk/id/local-authority/30UE,Service Management & Support,1009,NEW Customer & Digital,Freight Transport Assoc Fees,40150,Grants and Subscriptions,5031,Carryout 6 weekly safety inspection on DX55CVG for Olicence compliance,27/07/2016,113809,117.63,Revenue,Freight Transport Assoc Ltd,16333
Chorley Borough Council,http://statistics.data.gov.uk/id/local-authority/30UE,Service Management & Support,1009,NEW Customer & Digital,Freight Transport Assoc Fees,40150,Grants and Subscriptions,5031,Carryout 6 weekly safety inspection on PN02HRL for Olicence compliance,27/07/2016,113809,117.63,Revenue,Freight Transport Assoc Ltd,16333
Chorley Borough Council,http://statistics.data.gov.uk/id/local-authority/30UE,Service Management & Support,1009,NEW Customer & Digital,Freight Transport Assoc Fees,40150,Grants and Subscriptions,5031,Carryout 6 weekly safety inspection on DK56JWL for Olicence compliance,27/07/2016,113809,117.63,Revenue,Freight Transport Assoc Ltd,16333
Chorley Borough Council,http://statistics.data.gov.uk/id/local-authority/30UE,Service Management & Support,1009,NEW Customer & Digital,Freight Transport Assoc Fees,40150,Grants and Subscriptions,5031,Carryout 6 weekly safety inspection on RV14DVB for Olicence compliance,27/07/2016,113809,117.63,Revenue,Freight Transport Assoc Ltd,16333
Chorley Borough Council,http://statistics.data.gov.uk/id/local-authority/30UE,Service Management & Support,1009,NEW Customer & Digital,Freight Transport Assoc Fees,40150,Grants and Subscriptions,5031,Carryout 6 weekly safety inspection on DK56JWO for Olicence compliance,27/07/2016,113809,117.63,Revenue,Freight Transport Assoc Ltd,16333
Chorley Borough Council,http://statistics.data.gov.uk/id/local-authority/30UE,Service Management & Support,1009,NEW Customer & Digital,Vehicle Maintenance,30045,Direct Transport Costs,5016,Axled roadworthiness,29/07/2016,114298,786.30,Revenue,Freight Transport Assoc Ltd,16333
Chorley Borough Council,http://statistics.data.gov.uk/id/local-authority/30UE,Central Support Services,1009,NEW Early Intervention,Impounded Dogs Costs,40207,Miscellaneous Expenses,5034,Kennelling fees for 2016/17,01/07/2016,113144,354.00,Revenue,Glencoe Boarding Kennels,16734
Chorley Borough Council,http://statistics.data.gov.uk/id/local-authority/30UE,Central Support Services,1009,NEW Early Intervention,Impounded Dogs Costs,40207,Miscellaneous Expenses,5034,Kennelling fees for 2016/17,01/07/2016,113145,437.00,Revenue,Glencoe Boarding Kennels,16734
Chorley Borough Council,http://statistics.data.gov.uk/id/local-authority/30UE,Unapportionable Central OHeads,1009,NEW Early Intervention,Exhibitions & Special Events,40158,Miscellaneous Expenses,5034,Provision of activities for Picnic in the Park event on Sunday 26th June,13/07/2016,113695,750.00,Revenue,Goalden Events,18590
Chorley Borough Council,http://statistics.data.gov.uk/id/local-authority/30UE,Central Support Services,1009,NEW Early Intervention,Vandalism Repairs,20005,Repairs Maintenance & Alts,5005,Contract Renewal for Graffiti Removal 1 November 2015 - 31 October 2018,20/07/2016,111635,"1,250.00",Revenue,Graffiti Removal (North) Ltd,17320
Chorley Borough Council,http://statistics.data.gov.uk/id/local-authority/30UE,Democratic Represent and  Mgnt,1007,NEW Policy & Governance,Furniture - Purchase,40012,"Equipment, Furniture & Materia",5023,"10 x ARQ Stacking Chairs Black Plain/Silver @ 22.95 +VAT each Delivery 49 + VAT Total 334.20 including VAT",20/07/2016,113945,278.50,Revenue,Grosvenor Fabrications Limited,21762
Chorley Borough Council,http://statistics.data.gov.uk/id/local-authority/30UE,Other Short Term Creditors,,NEW Policy & Governance,General Balances,100,Balance Sheet,Balance,P11D class 1 A NICA,06/07/2016,113692,"29,711.65",Revenue,H M Revenue & Customs Only,21264
Chorley Borough Council,http://statistics.data.gov.uk/id/local-authority/30UE,Unapportionable Central OHeads,1009,NEW Policy & Governance,Publications,40054,"Printing, Stationery & General",5026,Printing of 17000 copies of the What`s Happening magazine July-October 2016,20/07/2016,113967,"3,456.00",Revenue,Haslam PrintersLtd,21777
Chorley Borough Council,http://statistics.data.gov.uk/id/local-authority/30UE,Business Support,1095,NEW Business Development & Growth,Grants To Other Organisations,40127,Grants and Subscriptions,5031,subsidy 4,01/07/2016,113502,500.00,Revenue,Havana Brasserie Ltd,72660
Chorley Borough Council,http://statistics.data.gov.uk/id/local-authority/30UE,Business Support,1095,NEW Business Development & Growth,Grants To Other Organisations,40127,Grants and Subscriptions,5031,Subsidy 5,29/07/2016,114271,750.00,Revenue,Havana Brasserie Ltd,72660
Chorley Borough Council,http://statistics.data.gov.uk/id/local-authority/30UE,Elections,1012,NEW Policy & Governance,Rent/Hire Of Premises,20017,Premises Rents,5007,room hire for polling station on :- 5 May 2016 - PCC/Borough Elections 23 June 2016- EU Referendum,15/07/2016,113813,500.00,Revenue,Heapey & Wheelton Village Hall,19826
Chorley Borough Council,http://statistics.data.gov.uk/id/local-authority/30UE,Tourism,1039,NEW Customer & Digital,Fences,20052,Grounds Maintenance Costs,5013,Purchase and delivery of Heras fencing: 325No. fence panels 325No. Feet 650No. Couplers 85No. support struts 170No. soil pins,29/07/2016,114311,"9,783.00",Revenue,Heras Readyfence Hire & Sales,74680
Chorley Borough Council,http://statistics.data.gov.uk/id/local-authority/30UE,Capital,Capital,NEW Policy & Governance,Stamp Duty,3026,Capital Expenditure,Capital,stamp duty land tax,06/07/2016,113562,700.00,Capital,HM Revenue & Customs,56499
Chorley Borough Council,http://statistics.data.gov.uk/id/local-authority/30UE,Business Support,1095,NEW Chief Executive,Miscellaneous Expenses,40200,Miscellaneous Expenses,5034,business grant,13/07/2016,113706,250.00,Revenue,NAME REDACTED,76114
Chorley Borough Council,http://statistics.data.gov.uk/id/local-authority/30UE,Central Support Services,1009,NEW Customer & Digital,Consultants` Fees,40077,Services,5027,"Idox technical consultancy to move corporate SDE database to new server and re-configure Uniform, TLC and PA to point ",27/07/2016,113046,950.00,Revenue,IDOX Software Limited,17542
Chorley Borough Council,http://statistics.data.gov.uk/id/local-authority/30UE,Tourism,1039,NEW Policy & Governance,Promotional Expenses,40159,Miscellaneous Expenses,5034,Chorley Flower Show adverts in Gardeners` World and across digital platform,15/07/2016,113925,"3,060.00",Revenue,Immediate Media London Ltd,70473
Chorley Borough Council,http://statistics.data.gov.uk/id/local-authority/30UE,Business Support,1095,NEW Business Development & Growth,Cleaning/Attendants' Services,20041,Cleaning and Domestic Supplies,5012,To provide daily cleaning services to Market Walk Shopping Centre April 206 - March 2017 @ 4310.21 per month,08/07/2016,113611,"4,310.21",Revenue,Interserve,70619
Chorley Borough Council,http://statistics.data.gov.uk/id/local-authority/30UE,Business Support,1095,NEW Business Development & Growth,Refuse Collection,20037,Cleaning and Domestic Supplies,5012,To supply Waste Compactor services toMWSC HD260TR Serial No:  02601707021135 April 2016 - March 2017,22/07/2016,113468,270.00,Revenue,J&H Rentals Limited,70699
Chorley Borough Council,http://statistics.data.gov.uk/id/local-authority/30UE,Business Support,1095,NEW Business Development & Growth,Refuse Collection,20037,Cleaning and Domestic Supplies,5012,To supply Waste Compactor services to MWSC HD260TR Serial No:  02601707021135 April 2016 - March 2017,22/07/2016,113981,270.00,Revenue,J&H Rentals Limited,70699
Chorley Borough Council,http://statistics.data.gov.uk/id/local-authority/30UE,Unapportionable Central OHeads,1009,NEW Policy & Governance,Publicity - Advertising,40157,Miscellaneous Expenses,5034,Full page advert for summer events,01/07/2016,113524,400.00,Revenue,Jam Design and Publications Ltd,76061
Chorley Borough Council,http://statistics.data.gov.uk/id/local-authority/30UE,Corporate Management,1008,NEW Customer & Digital,Other Contributions,40145,Grants and Subscriptions,5031,ADDRESS REDACTED,01/07/2016,113560,"3,440.40",Revenue,NAME REDACTED,73807
Chorley Borough Council,http://statistics.data.gov.uk/id/local-authority/30UE,Unapportionable Central OHeads,1009,NEW Business Development & Growth,General Repairs - Reactive,20004,Repairs Maintenance & Alts,5005,Blanket order for REACTIVE works for 2016.,06/07/2016,112967,"2,852.74",Revenue,NAME REDACTED,20194
Chorley Borough Council,http://statistics.data.gov.uk/id/local-authority/30UE,Service Management & Support,1009,NEW Customer & Digital,Transport Operating Leases,30029,Contrct Hire & Operating Lease,5018,"Rental of Nissan Panel Vans PN15 YWB, PO15 VFZ, PO15 VHD, PO15 VHE & PO15VHF from 31/07/2016 to 30/07/2017",20/07/2016,113417,"9,514.64",Revenue,Jcb Finance Ltd,17684
Chorley Borough Council,http://statistics.data.gov.uk/id/local-authority/30UE,Service Management & Support,1009,NEW Customer & Digital,Transport Operating Leases,30029,Contrct Hire & Operating Lease,5018,Rental from 26th August 2016 to 25th August 2017,27/07/2016,114243,"2,795.36",Revenue,Jcb Finance Ltd,17684
Chorley Borough Council,http://statistics.data.gov.uk/id/local-authority/30UE,Service Management & Support,1009,NEW Customer & Digital,Transport Operating Leases,30029,Contrct Hire & Operating Lease,5018,Rental from 26th August 2016 to 25th August 2017,27/07/2016,114243,"3,791.49",Revenue,Jcb Finance Ltd,17684
Chorley Borough Council,http://statistics.data.gov.uk/id/local-authority/30UE,Service Management & Support,1009,NEW Customer & Digital,Transport Operating Leases,30029,Contrct Hire & Operating Lease,5018,Rental from 26th August 2016 to 25th August 2017,27/07/2016,114244,"3,038.84",Revenue,Jcb Finance Ltd,17684
Chorley Borough Council,http://statistics.data.gov.uk/id/local-authority/30UE,Service Management & Support,1009,NEW Customer & Digital,Transport Operating Leases,30029,Contrct Hire & Operating Lease,5018,Rental from 26th August 2016 to 25th August 2017,27/07/2016,114244,"3,038.84",Revenue,Jcb Finance Ltd,17684
Chorley Borough Council,http://statistics.data.gov.uk/id/local-authority/30UE,Service Management & Support,1009,NEW Customer & Digital,Transport Operating Leases,30029,Contrct Hire & Operating Lease,5018,Rental from 26th August 2016 to 25th August 2017 ,27/07/2016,114244,"3,038.84",Revenue,Jcb Finance Ltd,17684
Chorley Borough Council,http://statistics.data.gov.uk/id/local-authority/30UE,Service Management & Support,1009,NEW Customer & Digital,Transport Operating Leases,30029,Contrct Hire & Operating Lease,5018,Rental from 26th August 2016 to 25th August 2017,27/07/2016,114244,"4,254.38",Revenue,Jcb Finance Ltd,17684
Chorley Borough Council,http://statistics.data.gov.uk/id/local-authority/30UE,Service Management & Support,1009,NEW Customer & Digital,Transport Operating Leases,30029,Contrct Hire & Operating Lease,5018,Rental from 26th August 2016 to 25th August 2017 ,27/07/2016,114244,"3,504.89",Revenue,Jcb Finance Ltd,17684
Chorley Borough Council,http://statistics.data.gov.uk/id/local-authority/30UE,Democratic Represent and  Mgnt,1007,NEW Customer & Digital,Supplies-Grounds Maintenance,40025,"Equipment, Furniture & Materia",5023,36 - 2ft x 1ft Indian Stone Flags,13/07/2016,112574,340.40,Revenue,Jewsons Limited,17844
Chorley Borough Council,http://statistics.data.gov.uk/id/local-authority/30UE,Service Management & Support,1009,NEW Customer & Digital,Supplies-Grounds Maintenance,40025,"Equipment, Furniture & Materia",5023,concrete,20/07/2016,113430,"1,116.00",Revenue,Jewsons Limited,17844
Chorley Borough Council,http://statistics.data.gov.uk/id/local-authority/30UE,Unapportionable Central OHeads,1009,NEW Policy & Governance,HR Recruitment - Advertising,15300,Indirect Employee Expenses,5002,Resourcing Campaign for Director recruitment,06/07/2016,113571,"5,995.00",Revenue,JGP Resourcing Ltd,50012
Chorley Borough Council,http://statistics.data.gov.uk/id/local-authority/30UE,Unapportionable Central OHeads,1009,NEW Policy & Governance,HR Recruitment - Advertising,15300,Indirect Employee Expenses,5002,Advertising for Director post in Guardian/MJ/Planning Jobs,20/07/2016,113893,"5,150.00",Revenue,JGP Resourcing Ltd,50012
Chorley Borough Council,http://statistics.data.gov.uk/id/local-authority/30UE,Capital,Capital,NEW Customer & Digital,Other Contractor,3012,Capital Expenditure,Capital,Provision of bespoke timber planters to the front of the glasshouse Astley walled garden as per quotation of 6/7/16,27/07/2016,114208,"1,268.79",Capital,John Everiss Design Ltd,69632
Chorley Borough Council,http://statistics.data.gov.uk/id/local-authority/30UE,Capital,Capital,NEW Business Development & Growth,Other Capital Related Fees,3024,Capital Expenditure,Capital,Re-design of car park at Cotswold House.,27/07/2016,114141,"1,250.00",Capital,Johnston Consulting Engineers Ltd,75062
Chorley Borough Council,http://statistics.data.gov.uk/id/local-authority/30UE,Development Control,1091,NEW Customer & Digital,Statutory Notices,40160,Miscellaneous Expenses,5034,Planning Public Notices to appear in the Chorley Guardian April 2016 to March 2017,22/07/2016,113696,475.44,Revenue,Johnston Publishing Ltd,20072
Chorley Borough Council,http://statistics.data.gov.uk/id/local-authority/30UE,Economic Development,1096,NEW Customer & Digital,Publicity - Advertising,40157,Miscellaneous Expenses,5034,2 x 1/4 page adverts for the Chorley Guardian to promote Love Your Local Market fortnight,22/07/2016,113697,369.38,Revenue,Johnston Publishing Ltd,20072
Chorley Borough Council,http://statistics.data.gov.uk/id/local-authority/30UE,Development Control,1091,NEW Customer & Digital,Statutory Notices,40160,Miscellaneous Expenses,5034,Planning Public Notices to appear in the Chorley Guardian April 2016 to March 2017,22/07/2016,113747,318.38,Revenue,Johnston Publishing Ltd,20072
Chorley Borough Council,http://statistics.data.gov.uk/id/local-authority/30UE,Development Control,1091,NEW Customer & Digital,Statutory Notices,40160,Miscellaneous Expenses,5034,Planning Public Notices to appear in the Chorley Guardian April 2016 to March 2017,22/07/2016,113747,318.37,Revenue,Johnston Publishing Ltd,20072
Chorley Borough Council,http://statistics.data.gov.uk/id/local-authority/30UE,Development Control,1091,NEW Customer & Digital,Statutory Notices,40160,Miscellaneous Expenses,5034,Planning Public Notices to appear in the Chorley Guardian April 2016 to March 2017,29/07/2016,114289,738.63,Revenue,Johnston Publishing Ltd,20072
Chorley Borough Council,http://statistics.data.gov.uk/id/local-authority/30UE,Service Management & Support,1009,NEW Customer & Digital,Vehicle Maintenance,30045,Direct Transport Costs,5016,Carryout repairs to Johnston sweeper Reg RV14DVB as per order No 8177938,06/07/2016,113583,419.60,Revenue,Johnston Sweepers Limited,20778
Chorley Borough Council,http://statistics.data.gov.uk/id/local-authority/30UE,Democratic Represent and  Mgnt,1007,NEW Policy & Governance,Supplies-Grounds Maintenance,40025,"Equipment, Furniture & Materia",5023,floral decs,08/07/2016,113704,300.00,Revenue,NAME REDACTED,74976
Chorley Borough Council,http://statistics.data.gov.uk/id/local-authority/30UE,Unapportionable Central OHeads,1009,NEW Policy & Governance,Publicity - Advertising,40157,Miscellaneous Expenses,5034,Full page advert promoting Astley Hall in Your Manchester Wedding Magazine,29/07/2016,114360,400.00,Revenue,KD Media Publishing Limited,76101
Chorley Borough Council,http://statistics.data.gov.uk/id/local-authority/30UE,Business Support,1095,NEW Business Development & Growth,Miscellaneous Expenses,40200,Miscellaneous Expenses,5034,For building engineering calculations etc. for Digital Health Park,29/07/2016,114362,"4,950.00",Revenue,KGA Partnership,76162
Chorley Borough Council,http://statistics.data.gov.uk/id/local-authority/30UE,Central Support Services,1009,NEW Early Intervention,Pest Control,20039,Cleaning and Domestic Supplies,5012,Broad spectrum spray for bedbugs and fleas,13/07/2016,113207,230.40,Revenue,Killgerm Chemicals Ltd,16879
Chorley Borough Council,http://statistics.data.gov.uk/id/local-authority/30UE,Central Support Services,1009,NEW Early Intervention,Pest Control,20039,Cleaning and Domestic Supplies,5012,No 4 Cardboard Bait Box Pack 100,13/07/2016,113207,71.28,Revenue,Killgerm Chemicals Ltd,16879
Chorley Borough Council,http://statistics.data.gov.uk/id/local-authority/30UE,Central Support Services,1009,NEW Early Intervention,Pest Control,20039,Cleaning and Domestic Supplies,5012,20g Block indoor use only 0.005% brodifacoum,13/07/2016,113207,39.11,Revenue,Killgerm Chemicals Ltd,16879
Chorley Borough Council,http://statistics.data.gov.uk/id/local-authority/30UE,Central Support Services,1009,NEW Early Intervention,Pest Control,20039,Cleaning and Domestic Supplies,5012,Contrac Super Blox 40 x 225g,13/07/2016,113207,166.16,Revenue,Killgerm Chemicals Ltd,16879
Chorley Borough Council,http://statistics.data.gov.uk/id/local-authority/30UE,Control Accounts,Control,NEW Policy & Governance,General Balances,100,Balance Sheet,Balance,Balance Sheet,01/07/2016,113300,"1,191.26",Revenue,Labour Councillors Association,17577
Chorley Borough Council,http://statistics.data.gov.uk/id/local-authority/30UE,Democratic Represent and  Mgnt,1007,NEW Policy & Governance,Refunds,40220,Miscellaneous Expenses,5034,reimbursement of unspent funds,20/07/2016,113825,500.00,Revenue,Labour Councillors Association,17577
Chorley Borough Council,http://statistics.data.gov.uk/id/local-authority/30UE,Central Support Services,1009,NEW Early Intervention,Miscellaneous Expenses,40200,Miscellaneous Expenses,5034,"Section 59 signs, vehicle nuisance",06/07/2016,113452,"1,135.35",Revenue,Lancashire County Council,20027
Chorley Borough Council,http://statistics.data.gov.uk/id/local-authority/30UE,Central Support Services,1009,NEW Early Intervention,Miscellaneous Expenses,40200,Miscellaneous Expenses,5034,lighting column to new footpath to be installed from Ennerdale to Lakeland Gardens as per quote emailed by NAME REDACTED,13/07/2016,113454,950.23,Revenue,Lancashire County Council,17758
Chorley Borough Council,http://statistics.data.gov.uk/id/local-authority/30UE,Unapportionable Central OHeads,1009,NEW Policy & Governance,Pensions Deficit Recovery Contributions,12003,Direct Employee Expenses,5001,pension recharge,14/07/2016,113887,"18,123.26",Revenue,Lancashire County Council,18386
Chorley Borough Council,http://statistics.data.gov.uk/id/local-authority/30UE,Capital,Capital,NEW Early Intervention,Grants,3002,Capital Expenditure,Capital,ADDRESS REDACTED,20/07/2016,114017,"2,595.00",Capital,Lancashire County Council,17758
Chorley Borough Council,http://statistics.data.gov.uk/id/local-authority/30UE,Democratic Represent and  Mgnt,1007,NEW Customer & Digital,General Repairs - Reactive,20004,Repairs Maintenance & Alts,5005,�replacement of lighting columns and lamps on All Seasons Leisure Centre car park as NAME REDACTED quotation of 19 Oct 15,20/07/2016,114054,"1,275.00",Revenue,Lancashire County Council,17758
Chorley Borough Council,http://statistics.data.gov.uk/id/local-authority/30UE,Public Transport,1067,NEW Policy & Governance,Other Fees,40212,Miscellaneous Expenses,5034,Chorley Interchange income for the period 2015/16 relating to the newsagent kiosk and caf�.,27/07/2016,114075,"17,000.00",Revenue,Lancashire County Council,17758
Chorley Borough Council,http://statistics.data.gov.uk/id/local-authority/30UE,Democratic Represent and  Mgnt,1007,NEW Policy & Governance,Conservation Of Exhibits,40059,Services,5027,Collection Care Training Day - On site at Astley Hall for 12 members of staff Wednesday 13th July 9:30am - 12:30noon 395.00 ,22/07/2016,114089,395.00,Revenue,Lancashire County Council,17758
Chorley Borough Council,http://statistics.data.gov.uk/id/local-authority/30UE,Precepts and Collection Fund,Precepts,NEW Policy & Governance,LCC Precept,2009,Precepts & Collection Fund,Precept,council tax precept,25/07/2016,114156,"4,181,662.00",Revenue,Lancashire County Council,18386
Chorley Borough Council,http://statistics.data.gov.uk/id/local-authority/30UE,Collection Fund Revenue Accoun,,NEW Policy & Governance,NNDR County Share,2036,Precepts & Collection Fund,Precept,business rates,25/07/2016,114156,"262,993.00",Revenue,Lancashire County Council,18386
Chorley Borough Council,http://statistics.data.gov.uk/id/local-authority/30UE,Corporate Management,1008,NEW Policy & Governance,Other Fees,40212,Miscellaneous Expenses,5034,Subsidy to provide meals on wheels in Chorley up to 10 July 2016,20/07/2016,113948,918.91,Revenue,Lancashire Fayre,62967
Chorley Borough Council,http://statistics.data.gov.uk/id/local-authority/30UE,Unapportionable Central OHeads,1009,NEW Chief Executive,Pensions Deficit Recovery Contributions,12003,Direct Employee Expenses,5001,APR DEFICIT,14/07/2016,112976,"79,633.33",Revenue,Lancashire Pensions Services,16696
Chorley Borough Council,http://statistics.data.gov.uk/id/local-authority/30UE,Unapportionable Central OHeads,1009,NEW Policy & Governance,Pensions Deficit Recovery Contributions,12003,Direct Employee Expenses,5001,pension deficit,14/07/2016,113856,"79,633.33",Revenue,Lancashire Pensions Services,16696
Chorley Borough Council,http://statistics.data.gov.uk/id/local-authority/30UE,Unapportionable Central OHeads,1009,NEW Policy & Governance,Service Fees,40056,Services,5027,Occupational Health Fees for May 2016,06/07/2016,113470,744.00,Revenue,Lancashire Teaching Hospitals NHS FT,19003
Chorley Borough Council,http://statistics.data.gov.uk/id/local-authority/30UE,Corporate Management,1008,NEW Customer & Digital,Clinical Waste Collection,50007,Private Contractors,5042,Disposal of Clinical waste from Chorley Households. April 2015 to March 2016 yellow bag collections approx 550 per month..,27/07/2016,114225,754.49,Revenue,Lancashire Teaching Hospitals NHS FT,19003
Chorley Borough Council,http://statistics.data.gov.uk/id/local-authority/30UE,Community Development,1097,NEW Policy & Governance,Grants To Other Organisations,40127,Grants and Subscriptions,5031,Year 3 1st Instalment for the delivery of advice services in Chorley,08/07/2016,113617,"28,400.00",Revenue,Lancashire West Citizens Advice Bureaux,17035
Chorley Borough Council,http://statistics.data.gov.uk/id/local-authority/30UE,Precepts and Collection Fund,Precepts,NEW Policy & Governance,LCFA Precept,2011,Precepts & Collection Fund,Precept,Council tax precept,25/07/2016,114155,"233,211.00",Revenue,Lancs Combined Fire Authority,17768
Chorley Borough Council,http://statistics.data.gov.uk/id/local-authority/30UE,Collection Fund Revenue Accoun,,NEW Policy & Governance,NNDR Fire Share,2037,Precepts & Collection Fund,Precept,business rates,25/07/2016,114155,"29,222.00",Revenue,Lancs Combined Fire Authority,17768
Chorley Borough Council,http://statistics.data.gov.uk/id/local-authority/30UE,Development Control,1091,NEW Policy & Governance,Car Leasing Payment,14100,Direct Employee Expenses,5001,NAME REDACTED,27/07/2016,114174,"2,657.99",Revenue,LeasePlan UK Ltd T/A Automotive Leasing,65197
Chorley Borough Council,http://statistics.data.gov.uk/id/local-authority/30UE,Development Control,1091,NEW Policy & Governance,Car Leasing Payment,14100,Direct Employee Expenses,5001,car lease,27/07/2016,114174,218.92,Revenue,LeasePlan UK Ltd T/A Automotive Leasing,65197
Chorley Borough Council,http://statistics.data.gov.uk/id/local-authority/30UE,Control Accounts,Control,NEW Policy & Governance,Manual Control Account,1,Balance Sheet,Balance,Balance Sheet,27/07/2016,114174,-218.92,Revenue,LeasePlan UK Ltd T/A Automotive Leasing,65197
Chorley Borough Council,http://statistics.data.gov.uk/id/local-authority/30UE,Other Short Term Debtors,,NEW Policy & Governance,Other Debtors,98,Balance Sheet,Balance,Phones,20/07/2016,113625,"1,300.00",Revenue,Lets Connect Limited,68086
Chorley Borough Council,http://statistics.data.gov.uk/id/local-authority/30UE,Other Short Term Debtors,,NEW Policy & Governance,Other Debtors,98,Balance Sheet,Balance,"tvs, ipads etc",27/07/2016,114109,"3,950.60",Revenue,Lets Connect Limited,68086
Chorley Borough Council,http://statistics.data.gov.uk/id/local-authority/30UE,Unapportionable Central OHeads,1009,NEW Customer & Digital,Publications,40054,"Printing, Stationery & General",5026,RYDE ON RATING AND THE COUNCIL TAX 14TH EDITION ISSUE 70,20/07/2016,113873,370.45,Revenue,Lexis Nexis UK,16688
Chorley Borough Council,http://statistics.data.gov.uk/id/local-authority/30UE,Unapportionable Central OHeads,1009,NEW Customer & Digital,Professional Fees,14011,Direct Employee Expenses,5001,business rates review jan to feb,20/07/2016,111477,"10,780.00",Revenue,Liberata (Capacity Grid),67989
Chorley Borough Council,http://statistics.data.gov.uk/id/local-authority/30UE,Unapportionable Central OHeads,1009,NEW Customer & Digital,Professional Fees,14011,Direct Employee Expenses,5001,Capacity Grid Empty Homes Review 2016,20/07/2016,113475,"4,029.00",Revenue,Liberata (Capacity Grid),67989
Chorley Borough Council,http://statistics.data.gov.uk/id/local-authority/30UE,Unapportionable Central OHeads,1009,NEW Customer & Digital,Agency Staff,13000,Direct Employee Expenses,5001,Chorley Council - Empty Homes Review 2015,06/07/2016,113626,"10,531.50",Revenue,Liberata (Capacity Grid),67989
Chorley Borough Council,http://statistics.data.gov.uk/id/local-authority/30UE,Unapportionable Central OHeads,1009,NEW Customer & Digital,Agency Staff,13000,Direct Employee Expenses,5001,empty homes review may 16,20/07/2016,113627,"1,606.50",Revenue,Liberata (Capacity Grid),67989
Chorley Borough Council,http://statistics.data.gov.uk/id/local-authority/30UE,Business Support,1095,NEW Business Development & Growth,Miscellaneous Expenses,40200,Miscellaneous Expenses,5034,sib grant,01/07/2016,112813,250.00,Revenue,NAME REDACTED,75924
Chorley Borough Council,http://statistics.data.gov.uk/id/local-authority/30UE,Local Tax Collection,1010,NEW Policy & Governance,Legal Fees,40171,Miscellaneous Expenses,5034,Property Searches Litigation - APPS litigation and costs dispute 1 October 2015 - 20 February 2016,27/07/2016,114248,566.95,Revenue,Local Government Association,16243
Chorley Borough Council,http://statistics.data.gov.uk/id/local-authority/30UE,Unapportionable Central OHeads,1009,NEW Policy & Governance,Promotional Expenses,40159,Miscellaneous Expenses,5034,Summer events advert in multiple editions,01/07/2016,113533,570.00,Revenue,Local Life 247 Ltd.,63624
Chorley Borough Council,http://statistics.data.gov.uk/id/local-authority/30UE,Democratic Represent and  Mgnt,1007,NEW Customer & Digital,Playground Equipment,40008,"Equipment, Furniture & Materia",5023,Supply and install 3 springy mobile Repair wet pour areas,27/07/2016,113491,"4,997.00",Revenue,Ludus Leisure Limited,71508
Chorley Borough Council,http://statistics.data.gov.uk/id/local-authority/30UE,Democratic Represent and  Mgnt,1007,NEW Chief Executive,Stationery,40050,"Printing, Stationery & General",5026,Callisto A3 Premium Small Office Laminator,15/07/2016,113577,143.99,Revenue,Lyreco UK Ltd,17623
Chorley Borough Council,http://statistics.data.gov.uk/id/local-authority/30UE,Democratic Represent and  Mgnt,1007,NEW Chief Executive,Stationery,40050,"Printing, Stationery & General",5026,LYRECO A3 GLOSS LAMINATING POUCH,15/07/2016,113577,8.96,Revenue,Lyreco UK Ltd,17623
Chorley Borough Council,http://statistics.data.gov.uk/id/local-authority/30UE,Democratic Represent and  Mgnt,1007,NEW Chief Executive,Stationery,40050,"Printing, Stationery & General",5026,Lyreco Drawer Unit,15/07/2016,113577,18.00,Revenue,Lyreco UK Ltd,17623
Chorley Borough Council,http://statistics.data.gov.uk/id/local-authority/30UE,Democratic Represent and  Mgnt,1007,NEW Chief Executive,Stationery,40050,"Printing, Stationery & General",5026,2.578.327 LYRECO 200 TELEPHONE MESSAGE PAD,15/07/2016,113577,5.17,Revenue,Lyreco UK Ltd,17623
Chorley Borough Council,http://statistics.data.gov.uk/id/local-authority/30UE,Democratic Represent and  Mgnt,1007,NEW Chief Executive,Stationery,40050,"Printing, Stationery & General",5026,Lyreco A 4 Ring Binders Red,15/07/2016,113577,4.50,Revenue,Lyreco UK Ltd,17623
Chorley Borough Council,http://statistics.data.gov.uk/id/local-authority/30UE,Democratic Represent and  Mgnt,1007,NEW Chief Executive,Stationery,40050,"Printing, Stationery & General",5026,Hp C8767 No.339 Original Inkjet Cartridge - Black,15/07/2016,113577,45.02,Revenue,Lyreco UK Ltd,17623
Chorley Borough Council,http://statistics.data.gov.uk/id/local-authority/30UE,Democratic Represent and  Mgnt,1007,NEW Chief Executive,Stationery,40050,"Printing, Stationery & General",5026,Hp C9363 No.344 Original Inkjet Cartridge - 3 Colour,15/07/2016,113577,25.06,Revenue,Lyreco UK Ltd,17623
Chorley Borough Council,http://statistics.data.gov.uk/id/local-authority/30UE,Unapportionable Central OHeads,1009,NEW Chief Executive,Stationery,40050,"Printing, Stationery & General",5026,LYRECO 2B PENCILS - BOX OF 12,15/07/2016,113577,0.14,Revenue,Lyreco UK Ltd,17623
Chorley Borough Council,http://statistics.data.gov.uk/id/local-authority/30UE,Unapportionable Central OHeads,1009,NEW Chief Executive,Stationery,40050,"Printing, Stationery & General",5026,Micron Ball Point Black Stick Pens 0.7Mm Line Width - Box Of 50,15/07/2016,113577,3.00,Revenue,Lyreco UK Ltd,17623
Chorley Borough Council,http://statistics.data.gov.uk/id/local-authority/30UE,Unapportionable Central OHeads,1009,NEW Chief Executive,Stationery,40050,"Printing, Stationery & General",5026,Micron Ball Point Blue Stick Pens 0.7Mm Line Width - Box Of 50,15/07/2016,113577,1.50,Revenue,Lyreco UK Ltd,17623
Chorley Borough Council,http://statistics.data.gov.uk/id/local-authority/30UE,Unapportionable Central OHeads,1009,NEW Chief Executive,Stationery,40050,"Printing, Stationery & General",5026,Lyreco Crepe Masking Tape - 25Mm X 50M Roll,15/07/2016,113577,7.68,Revenue,Lyreco UK Ltd,17623
Chorley Borough Council,http://statistics.data.gov.uk/id/local-authority/30UE,Unapportionable Central OHeads,1009,NEW Chief Executive,Stationery,40050,"Printing, Stationery & General",5026,LYRECO A3 GLOSS LAMINATING POUCH,15/07/2016,113577,4.48,Revenue,Lyreco UK Ltd,17623
Chorley Borough Council,http://statistics.data.gov.uk/id/local-authority/30UE,Unapportionable Central OHeads,1009,NEW Chief Executive,Stationery,40050,"Printing, Stationery & General",5026,C5 white non window envelopes,15/07/2016,113577,10.17,Revenue,Lyreco UK Ltd,17623
Chorley Borough Council,http://statistics.data.gov.uk/id/local-authority/30UE,Unapportionable Central OHeads,1009,NEW Chief Executive,Stationery,40050,"Printing, Stationery & General",5026,Lyreco White C4 Self Seal Plain Envelopes 100Gsm - Box Of 250,15/07/2016,113577,3.12,Revenue,Lyreco UK Ltd,17623
Chorley Borough Council,http://statistics.data.gov.uk/id/local-authority/30UE,Unapportionable Central OHeads,1009,NEW Chief Executive,Stationery,40050,"Printing, Stationery & General",5026,Lyreco White C4 Self Seal Window Envelopes 100Gsm - Box Of 250,15/07/2016,113577,3.22,Revenue,Lyreco UK Ltd,17623
Chorley Borough Council,http://statistics.data.gov.uk/id/local-authority/30UE,Unapportionable Central OHeads,1009,NEW Chief Executive,Stationery,40050,"Printing, Stationery & General",5026,Lyreco Glue Stick - Large 40G,15/07/2016,113577,0.48,Revenue,Lyreco UK Ltd,17623
Chorley Borough Council,http://statistics.data.gov.uk/id/local-authority/30UE,Unapportionable Central OHeads,1009,NEW Chief Executive,Stationery,40050,"Printing, Stationery & General",5026,blutack,15/07/2016,113577,3.94,Revenue,Lyreco UK Ltd,17623
Chorley Borough Council,http://statistics.data.gov.uk/id/local-authority/30UE,Unapportionable Central OHeads,1009,NEW Chief Executive,Stationery,40050,"Printing, Stationery & General",5026, A4 Multi-Punched Plastic Pockets 80 Microns - Pack Of 100,15/07/2016,113577,13.50,Revenue,Lyreco UK Ltd,17623
Chorley Borough Council,http://statistics.data.gov.uk/id/local-authority/30UE,Unapportionable Central OHeads,1009,NEW Chief Executive,Stationery,40050,"Printing, Stationery & General",5026,A4 punched pockets A4 side/top opening,15/07/2016,113577,22.50,Revenue,Lyreco UK Ltd,17623
Chorley Borough Council,http://statistics.data.gov.uk/id/local-authority/30UE,Central Support Services,1009,NEW Chief Executive,Stationery,40050,"Printing, Stationery & General",5026,Lyreco Write Once CDs 700MB/80 mins,15/07/2016,113577,47.25,Revenue,Lyreco UK Ltd,17623
Chorley Borough Council,http://statistics.data.gov.uk/id/local-authority/30UE,Central Support Services,1009,NEW Chief Executive,Stationery,40050,"Printing, Stationery & General",5026,2.182.763 PK25 FELLOWES  CD SLIM CASES BLACK,15/07/2016,113577,5.40,Revenue,Lyreco UK Ltd,17623
Chorley Borough Council,http://statistics.data.gov.uk/id/local-authority/30UE,Unapportionable Central OHeads,1009,NEW Chief Executive,Stationery,40050,"Printing, Stationery & General",5026,C5 white non window envelopes,15/07/2016,113577,3.39,Revenue,Lyreco UK Ltd,17623
Chorley Borough Council,http://statistics.data.gov.uk/id/local-authority/30UE,Unapportionable Central OHeads,1009,NEW Chief Executive,Stationery,40050,"Printing, Stationery & General",5026,Lyreco Bullet Tip Black Whiteboard Markers - Box Of 10,15/07/2016,113577,0.80,Revenue,Lyreco UK Ltd,17623
Chorley Borough Council,http://statistics.data.gov.uk/id/local-authority/30UE,Unapportionable Central OHeads,1009,NEW Chief Executive,Stationery,40050,"Printing, Stationery & General",5026,Calculators,15/07/2016,113577,7.86,Revenue,Lyreco UK Ltd,17623
Chorley Borough Council,http://statistics.data.gov.uk/id/local-authority/30UE,Service Management & Support,1009,NEW Customer & Digital,Grounds Maintenance Contractor,20043,Grounds Maintenance Costs,5013,"Work to be carried out @ Draperfield, The Willows & Dale View Deadwooding trees in Astley Park & remove large Oak limb",20/07/2016,113760,"4,075.00",Revenue,NAME REDACTED,62044
Chorley Borough Council,http://statistics.data.gov.uk/id/local-authority/30UE,Service Management & Support,1009,NEW Customer & Digital,Vehicle Maintenance,30045,Direct Transport Costs,5016,Sandblasting and repainting of skip for hooklift wagon at price quoted,20/07/2016,112511,650.00,Revenue,NAME REDACTED,17057
Chorley Borough Council,http://statistics.data.gov.uk/id/local-authority/30UE,Capital,Capital,NEW Early Intervention,Grants,3002,Capital Expenditure,Capital,ADDRESS REDACTED,27/07/2016,114149,"3,180.00",Capital,M.J Park Building Contractors,20367
Chorley Borough Council,http://statistics.data.gov.uk/id/local-authority/30UE,Unapportionable Central OHeads,1009,NEW Policy & Governance,Agency Staff,13000,Direct Employee Expenses,5001,Agency Fees,01/07/2016,113444,431.40,Revenue,Matrix SCM Ltd,22128
Chorley Borough Council,http://statistics.data.gov.uk/id/local-authority/30UE,Unapportionable Central OHeads,1009,NEW Policy & Governance,Agency Staff,13000,Direct Employee Expenses,5001,Agency Fees,01/07/2016,113444,729.00,Revenue,Matrix SCM Ltd,22128
Chorley Borough Council,http://statistics.data.gov.uk/id/local-authority/30UE,Unapportionable Central OHeads,1009,NEW Policy & Governance,Agency Staff,13000,Direct Employee Expenses,5001,Agency Fees,13/07/2016,113630,356.12,Revenue,Matrix SCM Ltd,22128
Chorley Borough Council,http://statistics.data.gov.uk/id/local-authority/30UE,Unapportionable Central OHeads,1009,NEW Policy & Governance,Agency Staff,13000,Direct Employee Expenses,5001,Agency Fees,13/07/2016,113630,729.00,Revenue,Matrix SCM Ltd,22128
Chorley Borough Council,http://statistics.data.gov.uk/id/local-authority/30UE,Unapportionable Central OHeads,1009,NEW Policy & Governance,Agency Staff,13000,Direct Employee Expenses,5001,Agency Fees,20/07/2016,113842,728.99,Revenue,Matrix SCM Ltd,22128
Chorley Borough Council,http://statistics.data.gov.uk/id/local-authority/30UE,Unapportionable Central OHeads,1009,NEW Policy & Governance,Agency Staff,13000,Direct Employee Expenses,5001,Agency Fees,20/07/2016,114006,610.93,Revenue,Matrix SCM Ltd,22128
Chorley Borough Council,http://statistics.data.gov.uk/id/local-authority/30UE,Unapportionable Central OHeads,1009,NEW Policy & Governance,Agency Staff,13000,Direct Employee Expenses,5001,Agency Fees,20/07/2016,114006,437.40,Revenue,Matrix SCM Ltd,22128
Chorley Borough Council,http://statistics.data.gov.uk/id/local-authority/30UE,Unapportionable Central OHeads,1009,NEW Policy & Governance,Agency Staff,13000,Direct Employee Expenses,5001,Agency Fees,27/07/2016,114173,728.99,Revenue,Matrix SCM Ltd,22128
Chorley Borough Council,http://statistics.data.gov.uk/id/local-authority/30UE,Unapportionable Central OHeads,1009,NEW Policy & Governance,Agency Staff,13000,Direct Employee Expenses,5001,Agency Fees,29/07/2016,114303,729.00,Revenue,Matrix SCM Ltd,22128
Chorley Borough Council,http://statistics.data.gov.uk/id/local-authority/30UE,Business Support,1095,NEW Business Development & Growth,Professional Fees,40063,Services,5027,Fee for accountant�s certificate regarding market walk service charge accounts 2015/16,27/07/2016,113647,800.00,Revenue,Menzies LLP,76095
Chorley Borough Council,http://statistics.data.gov.uk/id/local-authority/30UE,Capital,Capital,NEW Customer & Digital,Equipment,3014,Capital Expenditure,Capital,140 litre wheeled bin : Colour Blue,27/07/2016,112542,"5,660.00",Capital,MGB Plastics Ltd,18624
Chorley Borough Council,http://statistics.data.gov.uk/id/local-authority/30UE,Capital,Capital,NEW Customer & Digital,Equipment,3014,Capital Expenditure,Capital,140 litre wheeled bin : colour Brown,27/07/2016,112543,"2,830.00",Capital,MGB Plastics Ltd,18624
Chorley Borough Council,http://statistics.data.gov.uk/id/local-authority/30UE,Capital,Capital,NEW Customer & Digital,Equipment,3014,Capital Expenditure,Capital,140 litre brown wheeled,27/07/2016,112544,"2,730.00",Capital,MGB Plastics Ltd,18624
Chorley Borough Council,http://statistics.data.gov.uk/id/local-authority/30UE,Capital,Capital,NEW Customer & Digital,Equipment,3014,Capital Expenditure,Capital,240 litre Blue wheeled bin with Chorley Council logo,27/07/2016,114108,"9,100.00",Capital,MGB Plastics Ltd,18624
Chorley Borough Council,http://statistics.data.gov.uk/id/local-authority/30UE,Capital,Capital,NEW Customer & Digital,Equipment,3014,Capital Expenditure,Capital,240 litre Blue wheeled bin with Chorley Council logo,27/07/2016,114136,"9,100.00",Capital,MGB Plastics Ltd,18624
Chorley Borough Council,http://statistics.data.gov.uk/id/local-authority/30UE,Business Support,1095,NEW Business Development & Growth,Miscellaneous Expenses,40200,Miscellaneous Expenses,5034,grant,06/07/2016,113650,250.00,Revenue,NAME REDACTED,76075
Chorley Borough Council,http://statistics.data.gov.uk/id/local-authority/30UE,Business Support,1095,NEW Business Development & Growth,Grants To Other Organisations,40127,Grants and Subscriptions,5031,grant,06/07/2016,113649,"3,000.00",Revenue,Microbarology Ltd T/A Latch,76104
Chorley Borough Council,http://statistics.data.gov.uk/id/local-authority/30UE,Business Support,1095,NEW Business Development & Growth,Grants To Other Organisations,40127,Grants and Subscriptions,5031,grant,06/07/2016,113649,"8,051.25",Revenue,Microbarology Ltd T/A Latch,76104
Chorley Borough Council,http://statistics.data.gov.uk/id/local-authority/30UE,Service Management & Support,1009,NEW Customer & Digital,Supplies-Grounds Maintenance,40025,"Equipment, Furniture & Materia",5023,"Supply plants for the troughs, hanging baskets and lamp post baskets",27/07/2016,113474,"6,136.34",Revenue,Midstream (West Lancs) Ltd,20873
Chorley Borough Council,http://statistics.data.gov.uk/id/local-authority/30UE,Capital,Capital,NEW Early Intervention,Grants,3002,Capital Expenditure,Capital,ADDRESS REDACTED,15/07/2016,113862,"3,861.45",Capital,Mint Northwest Ltd,65607
Chorley Borough Council,http://statistics.data.gov.uk/id/local-authority/30UE,Capital,Capital,NEW Early Intervention,Grants,3002,Capital Expenditure,Capital,ADDRESS REDACTED,20/07/2016,114015,"4,411.10",Capital,Mint Northwest Ltd,65607
Chorley Borough Council,http://statistics.data.gov.uk/id/local-authority/30UE,Capital,Capital,NEW Early Intervention,Grants,3002,Capital Expenditure,Capital,ADDRESS REDACTED,27/07/2016,114152,"3,318.90",Capital,Mint Northwest Ltd,65607
Chorley Borough Council,http://statistics.data.gov.uk/id/local-authority/30UE,Private Sector HSG Renewal,1073,NEW Early Intervention,External Contractor,40198,Miscellaneous Expenses,5034,ADDRESS REDACTED,20/07/2016,114022,250.00,Revenue,Mobility Care Services,70841
Chorley Borough Council,http://statistics.data.gov.uk/id/local-authority/30UE,Private Sector HSG Renewal,1073,NEW Early Intervention,External Contractor,40198,Miscellaneous Expenses,5034,ADDRESS REDACTED,20/07/2016,114033,425.00,Revenue,Mobility Care Services,70841
Chorley Borough Council,http://statistics.data.gov.uk/id/local-authority/30UE,Private Sector HSG Renewal,1073,NEW Early Intervention,External Contractor,40198,Miscellaneous Expenses,5034,ADDRESS REDACTED,20/07/2016,114034,400.00,Revenue,Mobility Care Services,70841
Chorley Borough Council,http://statistics.data.gov.uk/id/local-authority/30UE,Homelessness,1075,NEW Early Intervention,Rental Bond Scheme,40241,Miscellaneous Expenses,5034,claim for bond,01/07/2016,113439,260.00,Revenue,NAME REDACTED,76091
Chorley Borough Council,http://statistics.data.gov.uk/id/local-authority/30UE,Building Control,1090,NEW Customer & Digital,Refunds,40220,Miscellaneous Expenses,5034,Refunds,13/07/2016,113651,329.36,Revenue,NAME REDACTED,76105
Chorley Borough Council,http://statistics.data.gov.uk/id/local-authority/30UE,Business Support,1095,NEW Business Development & Growth,Grants To Other Organisations,40127,Grants and Subscriptions,5031,shop front grant,29/07/2016,114272,"2,284.37",Revenue,NAME REDACTED,56396
Chorley Borough Council,http://statistics.data.gov.uk/id/local-authority/30UE,Service Management & Support,1009,NEW Customer & Digital,Grounds Maintenance Contractor,20043,Grounds Maintenance Costs,5013,Work carried out in Chorley Cemetery - Funeral duties,20/07/2016,113908,200.00,Revenue,NAME REDACTED,16710
Chorley Borough Council,http://statistics.data.gov.uk/id/local-authority/30UE,Service Management & Support,1009,NEW Customer & Digital,Grounds Maintenance Contractor,20043,Grounds Maintenance Costs,5013,JCB,20/07/2016,113908,280.00,Revenue,NAME REDACTED,16710
Chorley Borough Council,http://statistics.data.gov.uk/id/local-authority/30UE,Private Sector HSG Renewal,1073,NEW Early Intervention,Miscellaneous Expenses,40200,Miscellaneous Expenses,5034,Provision of Energy Switching Support Service in June 2016,06/07/2016,113556,600.00,Revenue,NAME REDACTED,65606
Chorley Borough Council,http://statistics.data.gov.uk/id/local-authority/30UE,Corporate Management,1008,NEW Customer & Digital,Other Contributions,40145,Grants and Subscriptions,5031,ADDRESS REDACTED,01/07/2016,113561,"4,185.60",Revenue,NAME REDACTED,73935
Chorley Borough Council,http://statistics.data.gov.uk/id/local-authority/30UE,Democratic Represent and  Mgnt,1007,NEW Customer & Digital,Supplies-Grounds Maintenance,40025,"Equipment, Furniture & Materia",5023,payment chorley flower show,15/07/2016,113703,"2,300.00",Revenue,Myerscough College,18214
Chorley Borough Council,http://statistics.data.gov.uk/id/local-authority/30UE,Tourism,1039,NEW Policy & Governance,Promotional Expenses,40159,Miscellaneous Expenses,5034,"1,000 x Chorley Flower Show schedules (re-print)",01/07/2016,113531,378.00,Revenue,N B Colour Print Ltd,17917
Chorley Borough Council,http://statistics.data.gov.uk/id/local-authority/30UE,Unapportionable Central OHeads,1009,NEW Policy & Governance,Miscellaneous Expenses,40200,Miscellaneous Expenses,5034,5000 x leaflets to promote Astley Hall as a visitor attraction,27/07/2016,114135,455.00,Revenue,N B Colour Print Ltd,17917
Chorley Borough Council,http://statistics.data.gov.uk/id/local-authority/30UE,Unapportionable Central OHeads,1009,NEW Chief Executive,Postages,40082,Communication and Computing,5028,Quarterly Rental on 1NFS330 Franking Machine Serial Number NE8002360/DA1243567448 and 1 2kg scales April 206 - March,27/07/2016,114140,631.50,Revenue,Nationwide Capital Finance Ltd,21739
Chorley Borough Council,http://statistics.data.gov.uk/id/local-authority/30UE,Democratic Represent and  Mgnt,1007,NEW Customer & Digital,Supplies-Grounds Maintenance,40025,"Equipment, Furniture & Materia",5023,To hand draw the illustrations for Astley Park reedbed and design the signin size 200cmx50cm produced in our HPL sign panel,27/07/2016,113772,"2,500.00",Revenue,Nature Sign Design,64676
Chorley Borough Council,http://statistics.data.gov.uk/id/local-authority/30UE,Democratic Represent and  Mgnt,1007,NEW Customer & Digital,Supplies-Grounds Maintenance,40025,"Equipment, Furniture & Materia",5023,"To produce a stainless steel framed, galvanised steel legged lectern painted black in with legs 2.5m long to house the Astley",27/07/2016,113773,895.00,Revenue,Nature Sign Design,64676
Chorley Borough Council,http://statistics.data.gov.uk/id/local-authority/30UE,Control Accounts,Control,NEW Policy & Governance,General Balances,100,Balance Sheet,Balance,Balance Sheet,01/07/2016,113297,750.00,Revenue,Natwest Bank Ac 01019432207689,16968
Chorley Borough Council,http://statistics.data.gov.uk/id/local-authority/30UE,Service Management & Support,1009,NEW Customer & Digital,Refuse Collection,20037,Cleaning and Domestic Supplies,5012,skips,20/07/2016,111404,"2,916.03",Revenue,Neales Waste Management,17583
Chorley Borough Council,http://statistics.data.gov.uk/id/local-authority/30UE,Service Management & Support,1009,NEW Customer & Digital,Refuse Collection,20037,Cleaning and Domestic Supplies,5012,Skip Exchange,27/07/2016,112344,"2,359.01",Revenue,Neales Waste Management,17583
Chorley Borough Council,http://statistics.data.gov.uk/id/local-authority/30UE,Central Support Services,1009,NEW Early Intervention,Miscellaneous Expenses,40200,Miscellaneous Expenses,5034,Supply 35 yard skip to ADDRESS REDACTEDon Saturday 7th May 2016 Deliver for 9am remove 1 pm with exchanges if required,01/07/2016,112980,367.06,Revenue,Neales Waste Management,17583
Chorley Borough Council,http://statistics.data.gov.uk/id/local-authority/30UE,Central Support Services,1009,NEW Early Intervention,Miscellaneous Expenses,40200,Miscellaneous Expenses,5034,Supply 35 yard skip on Saturday 21st May 2016 deliver 9am collect 1pm ADDRESS REDACTEDwith exchanges as required,01/07/2016,112981,"1,046.50",Revenue,Neales Waste Management,17583
Chorley Borough Council,http://statistics.data.gov.uk/id/local-authority/30UE,Service Management & Support,1009,NEW Customer & Digital,Refuse Collection,20037,Cleaning and Domestic Supplies,5012,Skip Exchange,27/07/2016,112988,"1,439.49",Revenue,Neales Waste Management,17583
Chorley Borough Council,http://statistics.data.gov.uk/id/local-authority/30UE,Service Management & Support,1009,NEW Customer & Digital,Refuse Collection,20037,Cleaning and Domestic Supplies,5012,Exchange of 35 yrd green waste skip as per your quote from Bengal St depot. Please use this order from 01/04/2016 through to,20/07/2016,112989,544.32,Revenue,Neales Waste Management,17583
Chorley Borough Council,http://statistics.data.gov.uk/id/local-authority/30UE,Corporate Management,1008,NEW Customer & Digital,Other Contributions,40145,Grants and Subscriptions,5031,skip hire croston flood,27/07/2016,113622,450.00,Revenue,Neales Waste Management,17583
Chorley Borough Council,http://statistics.data.gov.uk/id/local-authority/30UE,Service Management & Support,1009,NEW Customer & Digital,Refuse Collection,20037,Cleaning and Domestic Supplies,5012,Skip Exchange,27/07/2016,113909,786.24,Revenue,Neales Waste Management,17583
Chorley Borough Council,http://statistics.data.gov.uk/id/local-authority/30UE,Service Management & Support,1009,NEW Customer & Digital,Refuse Collection,20037,Cleaning and Domestic Supplies,5012,Exchange of 35yrd street cleaning and flytip waste as per your price. Please use this order from 01/04/2016 through to,27/07/2016,113910,"1,358.89",Revenue,Neales Waste Management,17583
Chorley Borough Council,http://statistics.data.gov.uk/id/local-authority/30UE,Unapportionable Central OHeads,1009,NEW Customer & Digital,Refuse Collection,20037,Cleaning and Domestic Supplies,5012,7. Provision of trade waste collections for the Town Hall. 2016 / 2017 (6 x 1100 litre bins per week),20/07/2016,113911,252.20,Revenue,Neales Waste Management,17583
Chorley Borough Council,http://statistics.data.gov.uk/id/local-authority/30UE,Business Support,1095,NEW Business Development & Growth,Refuse Collection,20037,Cleaning and Domestic Supplies,5012,Market Walk YARD 3 - cardboard and plastic film - 35 cubic yard Ro Ro skip,22/07/2016,113914,200.00,Revenue,Neales Waste Management,17583
Chorley Borough Council,http://statistics.data.gov.uk/id/local-authority/30UE,Business Support,1095,NEW Business Development & Growth,Refuse Collection,20037,Cleaning and Domestic Supplies,5012,Market Walk YARD 3 - general waste - x2  8 cubic yard FEL skip Lift Costs,22/07/2016,113914,550.00,Revenue,Neales Waste Management,17583
Chorley Borough Council,http://statistics.data.gov.uk/id/local-authority/30UE,Business Support,1095,NEW Business Development & Growth,Refuse Collection,20037,Cleaning and Domestic Supplies,5012,Market Walk YARD 2 - General Waste - 8 cubic yard FEL skip,22/07/2016,113915,325.00,Revenue,Neales Waste Management,17583
Chorley Borough Council,http://statistics.data.gov.uk/id/local-authority/30UE,Business Support,1095,NEW Business Development & Growth,Refuse Collection,20037,Cleaning and Domestic Supplies,5012,Market Walk YARD 1 - General Waste compacted - 35 Cubic Yard Roll On / Roll Off Skip from Compactor,22/07/2016,113921,302.40,Revenue,Neales Waste Management,17583
Chorley Borough Council,http://statistics.data.gov.uk/id/local-authority/30UE,Business Support,1095,NEW Business Development & Growth,Refuse Collection,20037,Cleaning and Domestic Supplies,5012,Market Walk YARD 1 - General Waste Compacted Disposal Costs per tonne (variable depended on weight collected),22/07/2016,113921,"2,109.38",Revenue,Neales Waste Management,17583
Chorley Borough Council,http://statistics.data.gov.uk/id/local-authority/30UE,Business Support,1095,NEW Business Development & Growth,Refuse Collection,20037,Cleaning and Domestic Supplies,5012,Market Walk YARD 1 - Cardboard and plastic film 35 Cubic yard Ro Ro skip,22/07/2016,113921,130.84,Revenue,Neales Waste Management,17583
Chorley Borough Council,http://statistics.data.gov.uk/id/local-authority/30UE,Unapportionable Central OHeads,1009,NEW Customer & Digital,Refuse Collection,20037,Cleaning and Domestic Supplies,5012,"8. Provision of trade waste collections for the Civic Offices, Union Street, 2016 / 2017 (6 x 1100 litre bins per week)",20/07/2016,113922,252.20,Revenue,Neales Waste Management,17583
Chorley Borough Council,http://statistics.data.gov.uk/id/local-authority/30UE,Central Support Services,1009,NEW Early Intervention,Miscellaneous Expenses,40200,Miscellaneous Expenses,5034,Supply 35 yard skip with exchanges as required during the morning Deliver to ADDRESS REDACTED Deliver 8.30 am & remove,27/07/2016,113923,673.74,Revenue,Neales Waste Management,17583
Chorley Borough Council,http://statistics.data.gov.uk/id/local-authority/30UE,Central Support Services,1009,NEW Customer & Digital,Miscellaneous Expenses,40200,Miscellaneous Expenses,5034,Installation of gateway Scheme to Anderton in accordance with quotation submitted 17th march 2016.,27/07/2016,113929,"8,691.65",Revenue,Newground CIC,22064
Chorley Borough Council,http://statistics.data.gov.uk/id/local-authority/30UE,Capital,Capital,NEW Customer & Digital,Main Contractor,3007,Capital Expenditure,Capital,supply and install grass mat under play equipment as specified on layout drawings and quotation for Grass Mat Surfacing,27/07/2016,113930,"3,067.53",Capital,Newground CIC,22064
Chorley Borough Council,http://statistics.data.gov.uk/id/local-authority/30UE,Unapportionable Central OHeads,1009,NEW Policy & Governance,Miscellaneous Expenses,40200,Miscellaneous Expenses,5034,Summer events advert for Great Days Out publication,08/07/2016,113737,295.00,Revenue,Newsquest (Lancashire) Limited,18117
Chorley Borough Council,http://statistics.data.gov.uk/id/local-authority/30UE,Democratic Represent and  Mgnt,1007,NEW Policy & Governance,Tools & Equipment - Purchase,40003,"Equipment, Furniture & Materia",5023,"D` Type earpiece & inline mic &PPT KA340 8 @ 24.00 Soft leather case for TK 3000T2 TK3000T2P1PO 3 @ 16.00 Strap,",15/07/2016,113931,277.00,Revenue,Nine Hundred Communications,51033
Chorley Borough Council,http://statistics.data.gov.uk/id/local-authority/30UE,Unapportionable Central OHeads,1009,NEW Chief Executive,Stationery,40050,"Printing, Stationery & General",5026,Newspapers supplied to Union Street April 2016 to March 2017,20/07/2016,113857,459.30,Revenue,Nooze `n` Booze,19382
Chorley Borough Council,http://statistics.data.gov.uk/id/local-authority/30UE,Unapportionable Central OHeads,1009,NEW Policy & Governance,Laundry,40042,"Clothing, Uniforms and Laundry",5025,Tablecloths laundered and pressed 30th April 2016,06/07/2016,113597,275.00,Revenue,North West Ironing & Laundry Centre,20450
Chorley Borough Council,http://statistics.data.gov.uk/id/local-authority/30UE,Central Support Services,1009,NEW Customer & Digital,Consultants` Fees,40077,Services,5027,VPN reconfiguration and testing  1 day services,27/07/2016,113774,850.00,Revenue,Northgate Public Services (UK) Limited,18285
Chorley Borough Council,http://statistics.data.gov.uk/id/local-authority/30UE,Service Management & Support,1009,NEW Customer & Digital,Hire Of Transport,30028,Contrct Hire & Operating Lease,5018,Hire of Ford Transit 3.5 tonne crewcab tipper reg NL12OFG for 25 week period as per quote,20/07/2016,112871,509.29,Revenue,Northgate Vehicle Hire (NW) Ltd,17360
Chorley Borough Council,http://statistics.data.gov.uk/id/local-authority/30UE,Service Management & Support,1009,NEW Customer & Digital,Hire Of Transport,30028,Contrct Hire & Operating Lease,5018,Hire of Ford Transit 3.5 tonne crewcab tipper reg NL12ONR for 25 week period as per quote,20/07/2016,112871,509.29,Revenue,Northgate Vehicle Hire (NW) Ltd,17360
Chorley Borough Council,http://statistics.data.gov.uk/id/local-authority/30UE,Service Management & Support,1009,NEW Customer & Digital,Hire Of Transport,30028,Contrct Hire & Operating Lease,5018,Hire of Ford Transit 3.5 tonne crewcab tipper reg NK13YPT for 25 week period as per quote,20/07/2016,112871,509.29,Revenue,Northgate Vehicle Hire (NW) Ltd,17360
Chorley Borough Council,http://statistics.data.gov.uk/id/local-authority/30UE,Service Management & Support,1009,NEW Customer & Digital,Hire Of Transport,30028,Contrct Hire & Operating Lease,5018,Hire of Ford Transit 3.5 tonne tipper reg FE65BRF for 25 week period as per quote,20/07/2016,112871,407.43,Revenue,Northgate Vehicle Hire (NW) Ltd,17360
Chorley Borough Council,http://statistics.data.gov.uk/id/local-authority/30UE,Service Management & Support,1009,NEW Customer & Digital,Hire Of Transport,30028,Contrct Hire & Operating Lease,5018,Hire of Ford Transit 3.5 tonne tipper reg WN65MWW for 25 week period as per quote,20/07/2016,112871,407.43,Revenue,Northgate Vehicle Hire (NW) Ltd,17360
Chorley Borough Council,http://statistics.data.gov.uk/id/local-authority/30UE,Service Management & Support,1009,NEW Customer & Digital,Hire Of Transport,30028,Contrct Hire & Operating Lease,5018,Hire of Ford Transit 3.5 tonne tipper reg WN65MHO for 25 week period as per quote,20/07/2016,112871,407.43,Revenue,Northgate Vehicle Hire (NW) Ltd,17360
Chorley Borough Council,http://statistics.data.gov.uk/id/local-authority/30UE,Service Management & Support,1009,NEW Customer & Digital,Hire Of Transport,30028,Contrct Hire & Operating Lease,5018,Hire of Ford Transit 3.5 tonne tipper reg WN65UBO for 25 week period as per quote,20/07/2016,112871,407.43,Revenue,Northgate Vehicle Hire (NW) Ltd,17360
Chorley Borough Council,http://statistics.data.gov.uk/id/local-authority/30UE,Service Management & Support,1009,NEW Customer & Digital,Hire Of Transport,30028,Contrct Hire & Operating Lease,5018,Hire of Ford Transit 3.5 tonne tipper reg WU65KZZfor 25 week period as per quote,20/07/2016,112871,407.43,Revenue,Northgate Vehicle Hire (NW) Ltd,17360
Chorley Borough Council,http://statistics.data.gov.uk/id/local-authority/30UE,Service Management & Support,1009,NEW Customer & Digital,Hire Of Transport,30028,Contrct Hire & Operating Lease,5018,Hire of Ford Transit 3.5 tonne tipper reg ND63YEG for 25 week period as per quote,20/07/2016,112871,407.43,Revenue,Northgate Vehicle Hire (NW) Ltd,17360
Chorley Borough Council,http://statistics.data.gov.uk/id/local-authority/30UE,Unapportionable Central OHeads,1009,NEW Policy & Governance,Tools & Equipment - Hire,40004,"Equipment, Furniture & Materia",5023,"Hire of 12 portable toilet units, plus 2 disabled units for Picnic in the Park 2016",15/07/2016,113781,970.00,Revenue,Northwest Portables,74432
Chorley Borough Council,http://statistics.data.gov.uk/id/local-authority/30UE,Parking Services,1066,NEW Business Development & Growth,Electricity,20013,Energy Costs,5006,CAR PARK,15/07/2016,113643,2.04,Revenue,Npower Commercial Gas,16814
Chorley Borough Council,http://statistics.data.gov.uk/id/local-authority/30UE,Parking Services,1066,NEW Business Development & Growth,Electricity,20013,Energy Costs,5006,PAY & DISPLAY,15/07/2016,113643,201.52,Revenue,Npower Commercial Gas,16814
Chorley Borough Council,http://statistics.data.gov.uk/id/local-authority/30UE,Culture & Heritage,1036,NEW Business Development & Growth,Electricity,20013,Energy Costs,5006,CCTV,15/07/2016,113643,498.52,Revenue,Npower Commercial Gas,16814
Chorley Borough Council,http://statistics.data.gov.uk/id/local-authority/30UE,Democratic Represent and  Mgnt,1007,NEW Business Development & Growth,Electricity,20013,Energy Costs,5006,tatton rec,15/07/2016,113644,23.51,Revenue,Npower Commercial Gas,16814
Chorley Borough Council,http://statistics.data.gov.uk/id/local-authority/30UE,Democratic Represent and  Mgnt,1007,NEW Business Development & Growth,Electricity,20013,Energy Costs,5006,Astley farm,15/07/2016,113644,75.30,Revenue,Npower Commercial Gas,16814
Chorley Borough Council,http://statistics.data.gov.uk/id/local-authority/30UE,Democratic Represent and  Mgnt,1007,NEW Business Development & Growth,Electricity,20013,Energy Costs,5006,Astley hall,15/07/2016,113644,127.64,Revenue,Npower Commercial Gas,16814
Chorley Borough Council,http://statistics.data.gov.uk/id/local-authority/30UE,Community Development,1097,NEW Business Development & Growth,Electricity,20013,Energy Costs,5006,35 - 39 market st,15/07/2016,113644,67.52,Revenue,Npower Commercial Gas,16814
Chorley Borough Council,http://statistics.data.gov.uk/id/local-authority/30UE,Democratic Represent and  Mgnt,1007,NEW Business Development & Growth,Electricity,20013,Energy Costs,5006,coach house,15/07/2016,113644,"1,671.19",Revenue,Npower Commercial Gas,16814
Chorley Borough Council,http://statistics.data.gov.uk/id/local-authority/30UE,Corporate Management,1008,NEW Business Development & Growth,Electricity,20013,Energy Costs,5006,cemetry chapel,15/07/2016,113644,2.32,Revenue,Npower Commercial Gas,16814
Chorley Borough Council,http://statistics.data.gov.uk/id/local-authority/30UE,Democratic Represent and  Mgnt,1007,NEW Business Development & Growth,Electricity,20013,Energy Costs,5006,astley pak changing,15/07/2016,113644,677.62,Revenue,Npower Commercial Gas,16814
Chorley Borough Council,http://statistics.data.gov.uk/id/local-authority/30UE,Economic Development,1096,NEW Business Development & Growth,Electricity,20013,Energy Costs,5006,market compactor,15/07/2016,113644,298.29,Revenue,Npower Commercial Gas,16814
Chorley Borough Council,http://statistics.data.gov.uk/id/local-authority/30UE,Democratic Represent and  Mgnt,1007,NEW Business Development & Growth,Electricity,20013,Energy Costs,5006,king george fields,15/07/2016,113644,26.89,Revenue,Npower Commercial Gas,16814
Chorley Borough Council,http://statistics.data.gov.uk/id/local-authority/30UE,Unapportionable Central OHeads,1009,NEW Business Development & Growth,Electricity,20013,Energy Costs,5006,union st,15/07/2016,113644,"2,936.44",Revenue,Npower Commercial Gas,16814
Chorley Borough Council,http://statistics.data.gov.uk/id/local-authority/30UE,Unapportionable Central OHeads,1009,NEW Business Development & Growth,Electricity,20013,Energy Costs,5006,union st,15/07/2016,113644,"2,982.14",Revenue,Npower Commercial Gas,16814
Chorley Borough Council,http://statistics.data.gov.uk/id/local-authority/30UE,Unapportionable Central OHeads,1009,NEW Business Development & Growth,Electricity,20013,Energy Costs,5006,bengal st,15/07/2016,113644,557.28,Revenue,Npower Commercial Gas,16814
Chorley Borough Council,http://statistics.data.gov.uk/id/local-authority/30UE,Unapportionable Central OHeads,1009,NEW Business Development & Growth,Electricity,20013,Energy Costs,5006,bengal st,15/07/2016,113644,685.89,Revenue,Npower Commercial Gas,16814
Chorley Borough Council,http://statistics.data.gov.uk/id/local-authority/30UE,Unapportionable Central OHeads,1009,NEW Business Development & Growth,Electricity,20013,Energy Costs,5006,town hall,15/07/2016,113644,"1,817.26",Revenue,Npower Commercial Gas,16814
Chorley Borough Council,http://statistics.data.gov.uk/id/local-authority/30UE,Unapportionable Central OHeads,1009,NEW Business Development & Growth,Electricity,20013,Energy Costs,5006,town hall,15/07/2016,113644,"2,022.00",Revenue,Npower Commercial Gas,16814
Chorley Borough Council,http://statistics.data.gov.uk/id/local-authority/30UE,Homelessness,1075,NEW Business Development & Growth,Electricity,20013,Energy Costs,5006,cotswold house,15/07/2016,113644,191.98,Revenue,Npower Commercial Gas,16814
Chorley Borough Council,http://statistics.data.gov.uk/id/local-authority/30UE,Homelessness,1075,NEW Business Development & Growth,Electricity,20013,Energy Costs,5006,cotswold,15/07/2016,113644,69.78,Revenue,Npower Commercial Gas,16814
Chorley Borough Council,http://statistics.data.gov.uk/id/local-authority/30UE,Democratic Represent and  Mgnt,1007,NEW Business Development & Growth,Electricity,20013,Energy Costs,5006,tunley,15/07/2016,113644,54.58,Revenue,Npower Commercial Gas,16814
Chorley Borough Council,http://statistics.data.gov.uk/id/local-authority/30UE,Democratic Represent and  Mgnt,1007,NEW Business Development & Growth,Electricity,20013,Energy Costs,5006,tunley,15/07/2016,113644,52.41,Revenue,Npower Commercial Gas,16814
Chorley Borough Council,http://statistics.data.gov.uk/id/local-authority/30UE,Business Support,1095,NEW Business Development & Growth,Electricity,20013,Energy Costs,5006,102a market street,15/07/2016,113644,50.17,Revenue,Npower Commercial Gas,16814
Chorley Borough Council,http://statistics.data.gov.uk/id/local-authority/30UE,Parking Services,1066,NEW Business Development & Growth,Electricity,20013,Energy Costs,5006,car park,22/07/2016,113859,1.00,Revenue,Npower Limited,22519
Chorley Borough Council,http://statistics.data.gov.uk/id/local-authority/30UE,Parking Services,1066,NEW Business Development & Growth,Electricity,20013,Energy Costs,5006,pay and display,22/07/2016,113859,99.11,Revenue,Npower Limited,22519
Chorley Borough Council,http://statistics.data.gov.uk/id/local-authority/30UE,Culture & Heritage,1036,NEW Business Development & Growth,Electricity,20013,Energy Costs,5006,cctv,22/07/2016,113859,245.17,Revenue,Npower Limited,22519
Chorley Borough Council,http://statistics.data.gov.uk/id/local-authority/30UE,Parking Services,1066,NEW Business Development & Growth,External Contractors,50008,Private Contractors,5042,"Provision of off street car park enforcement, cash collection, cash counting facilities and third party bulk cash collections April16 ",08/07/2016,113693,"4,057.82",Revenue,NSL Limited,67253
Chorley Borough Council,http://statistics.data.gov.uk/id/local-authority/30UE,Unapportionable Central OHeads,1009,NEW Policy & Governance,HR Recruitment Expenses,15200,Indirect Employee Expenses,5002,Wave Assessments for Director Interviews,01/07/2016,113518,835.00,Revenue,Nwlaeo,17571
Chorley Borough Council,http://statistics.data.gov.uk/id/local-authority/30UE,Democratic Represent and  Mgnt,1007,NEW Policy & Governance,General Subscriptions,40146,Grants and Subscriptions,5031,NWEO - Annual Subscription,06/07/2016,113564,"4,146.86",Revenue,Nwlaeo,17571
Chorley Borough Council,http://statistics.data.gov.uk/id/local-authority/30UE,Central Support Services,1009,NEW Early Intervention,External Contractor,40198,Miscellaneous Expenses,5034,Pest control duties for 2016/17,01/07/2016,113002,255.00,Revenue,Peter L Johnson,16727
Chorley Borough Council,http://statistics.data.gov.uk/id/local-authority/30UE,Central Support Services,1009,NEW Early Intervention,External Contractor,40198,Miscellaneous Expenses,5034,Pest control duties for 2016/17,01/07/2016,113194,340.00,Revenue,Peter L Johnson,16727
Chorley Borough Council,http://statistics.data.gov.uk/id/local-authority/30UE,Central Support Services,1009,NEW Early Intervention,External Contractor,40198,Miscellaneous Expenses,5034,Pest control duties for 2016/17,01/07/2016,113347,340.00,Revenue,Peter L Johnson,16727
Chorley Borough Council,http://statistics.data.gov.uk/id/local-authority/30UE,Central Support Services,1009,NEW Early Intervention,External Contractor,40198,Miscellaneous Expenses,5034,Pest control duties for 2016/17,01/07/2016,113497,340.00,Revenue,Peter L Johnson,16727
Chorley Borough Council,http://statistics.data.gov.uk/id/local-authority/30UE,Central Support Services,1009,NEW Early Intervention,External Contractor,40198,Miscellaneous Expenses,5034,Pest control duties for 2016/17,13/07/2016,113767,340.00,Revenue,Peter L Johnson,16727
Chorley Borough Council,http://statistics.data.gov.uk/id/local-authority/30UE,Central Support Services,1009,NEW Early Intervention,External Contractor,40198,Miscellaneous Expenses,5034,Pest control duties for 2016/17,20/07/2016,113978,340.00,Revenue,Peter L Johnson,16727
Chorley Borough Council,http://statistics.data.gov.uk/id/local-authority/30UE,Central Support Services,1009,NEW Early Intervention,External Contractor,40198,Miscellaneous Expenses,5034,Pest control duties for 2016/17,27/07/2016,114144,340.00,Revenue,Peter L Johnson,16727
Chorley Borough Council,http://statistics.data.gov.uk/id/local-authority/30UE,Service Management & Support,1009,NEW Customer & Digital,Diesel/Derv,30007,Direct Transport Costs,5016,Supply 1000 litres of road diesel delivered to Bengal St depot at price quoted,27/07/2016,113892,"1,098.00",Revenue,Pilkington Oils,18075
Chorley Borough Council,http://statistics.data.gov.uk/id/local-authority/30UE,Capital,Capital,NEW Policy & Governance,Purchase Money,3027,Capital Expenditure,Capital,Deed of Covenant with Aldi Stores Limited relating to the Buckshaw Community Centre,06/07/2016,113567,408.10,Capital,Pinsent Masons LLP,75757
Chorley Borough Council,http://statistics.data.gov.uk/id/local-authority/30UE,Capital,Capital,NEW Business Development & Growth,Main Contractor,3007,Capital Expenditure,Capital,"RIBA Stage 3 - 24,040",01/07/2016,113525,"2,025.00",Capital,Planit IE Limited,62532
Chorley Borough Council,http://statistics.data.gov.uk/id/local-authority/30UE,Capital,Capital,NEW Business Development & Growth,Main Contractor,3007,Capital Expenditure,Capital,"5 visualisations - 4,912",01/07/2016,113525,"2,353.99",Capital,Planit IE Limited,62532
Chorley Borough Council,http://statistics.data.gov.uk/id/local-authority/30UE,Democratic Represent and  Mgnt,1007,NEW Customer & Digital,Signs:Provision & Maintenance,20065,Grounds Maintenance Costs,5013,Trim trail Sign - Ladder walk and Parallel Bar including post. Delivery only,01/07/2016,113510,414.00,Revenue,Playdale Playgrounds Limited,18672
Chorley Borough Council,http://statistics.data.gov.uk/id/local-authority/30UE,Business Support,1095,NEW Customer & Digital,Fixtures & Fittings - Purchase,20027,Fixtures and Fittings,5010,25 wicker hanging baskets,20/07/2016,113557,291.46,Revenue,Pole Green Nurseries,20641
Chorley Borough Council,http://statistics.data.gov.uk/id/local-authority/30UE,Service Management & Support,1009,NEW Customer & Digital,Supplies-Grounds Maintenance,40025,"Equipment, Furniture & Materia",5023,2 large planters,27/07/2016,113634,108.98,Revenue,Pole Green Nurseries,20641
Chorley Borough Council,http://statistics.data.gov.uk/id/local-authority/30UE,Service Management & Support,1009,NEW Customer & Digital,Supplies-Grounds Maintenance,40025,"Equipment, Furniture & Materia",5023,1000 Red Begonias 1500 Multi mix Begonias,27/07/2016,113634,"1,000.00",Revenue,Pole Green Nurseries,20641
Chorley Borough Council,http://statistics.data.gov.uk/id/local-authority/30UE,Corporate Management,1008,NEW Chief Executive,Training Course Fees,17010,Indirect Employee Expenses,5002,LRF SECRETARY CONTRIBUTION 2016/17 FROM CHORLEY BOROUGH COUNCIL,27/07/2016,113178,780.47,Revenue,Police & Crime Commissioner,17548
Chorley Borough Council,http://statistics.data.gov.uk/id/local-authority/30UE,Precepts and Collection Fund,Precepts,NEW Policy & Governance,LPA Precept,2010,Precepts & Collection Fund,Precept,council tax precept,25/07/2016,114157,"577,515.00",Revenue,Police & Crime Commissioner,17438
Chorley Borough Council,http://statistics.data.gov.uk/id/local-authority/30UE,Central Support Services,1009,NEW Early Intervention,Safety Signs And Posters,40017,"Equipment, Furniture & Materia",5023,Clean it up and dogs on leads/bag it bin it stickers,01/07/2016,113358,"1,094.95",Revenue,Poppy Signs Ltd,21898
Chorley Borough Council,http://statistics.data.gov.uk/id/local-authority/30UE,Central Support Services,1009,NEW Early Intervention,Safety Signs And Posters,40017,"Equipment, Furniture & Materia",5023,"3 580mm x 250mm, 3mm thick laser cut acrylic",13/07/2016,113721,280.65,Revenue,Poppy Signs Ltd,21898
Chorley Borough Council,http://statistics.data.gov.uk/id/local-authority/30UE,Tourism,1039,NEW Policy & Governance,Safety Signs And Posters,40017,"Equipment, Furniture & Materia",5023,Boards and banners for parking arrangements and directional boards for the Chorley Flower Show,20/07/2016,114052,260.30,Revenue,Poppy Signs Ltd,21898
Chorley Borough Council,http://statistics.data.gov.uk/id/local-authority/30UE,Tourism,1039,NEW Policy & Governance,Promotional Expenses,40159,Miscellaneous Expenses,5034,5 x A1 aluminium composite signs for the Chorley Flower Show,29/07/2016,114132,540.36,Revenue,Poppy Signs Ltd,21898
Chorley Borough Council,http://statistics.data.gov.uk/id/local-authority/30UE,Elections,1012,NEW Policy & Governance,Rent/Hire Of Premises,20017,Premises Rents,5007,"As per quote 220129363 Hire of SL082 Portakabin with 2 tables and 2 chairs, Chemical toilet, delivery  Tuesday 21st June 2016",06/07/2016,113569,"1,277.00",Revenue,Portakabin Limited,51521
Chorley Borough Council,http://statistics.data.gov.uk/id/local-authority/30UE,Unapportionable Central OHeads,1009,NEW Policy & Governance,HR Approved Training Expenses,17001,Indirect Employee Expenses,5002,Developing & Managing a Culture of Trust 24 June 2016,20/07/2016,113663,990.00,Revenue,Potential Unearthed,22243
Chorley Borough Council,http://statistics.data.gov.uk/id/local-authority/30UE,Unapportionable Central OHeads,1009,NEW Policy & Governance,Photocopier Consumables,40049,"Printing, Stationery & General",5026,"Evolution Everyday A4 80gsm, Box 2500",27/07/2016,114093,454.00,Revenue,Premier Paper Group,54451
Chorley Borough Council,http://statistics.data.gov.uk/id/local-authority/30UE,Unapportionable Central OHeads,1009,NEW Policy & Governance,Photocopier Consumables,40049,"Printing, Stationery & General",5026,Evolution Everyday A3 80gsm box 2500,27/07/2016,114093,23.08,Revenue,Premier Paper Group,54451
Chorley Borough Council,http://statistics.data.gov.uk/id/local-authority/30UE,Unapportionable Central OHeads,1009,NEW Policy & Governance,Photocopier Consumables,40049,"Printing, Stationery & General",5026,White Card A4 250gsm,27/07/2016,114093,44.96,Revenue,Premier Paper Group,54451
Chorley Borough Council,http://statistics.data.gov.uk/id/local-authority/30UE,Unapportionable Central OHeads,1009,NEW Policy & Governance,Refreshments,40036,Catering,5024,Quarterly sanitisation and supply of water machines and supply of bottled water 314.50 net value of combined invoices,29/07/2016,113607,306.00,Revenue,Pressure Coolers Ltd T/A Maestro International Ltd,19767
Chorley Borough Council,http://statistics.data.gov.uk/id/local-authority/30UE,Private Sector HSG Renewal,1073,NEW Early Intervention,External Contractor,40198,Miscellaneous Expenses,5034,Provision of Handyperson service (funded by LCC IHIS scheme) for q2 2016-2017,15/07/2016,113885,"7,225.00",Revenue,Preston Care and Repair,50018
Chorley Borough Council,http://statistics.data.gov.uk/id/local-authority/30UE,Development Control,1091,NEW Customer & Digital,Refunds,40220,Miscellaneous Expenses,5034,WDN of application,29/07/2016,114275,648.00,Revenue,Primrose Holdings 1995 Ltd,17786
Chorley Borough Council,http://statistics.data.gov.uk/id/local-authority/30UE,Elections,1012,NEW Policy & Governance,Postages,40082,Communication and Computing,5028,Poll card postage for LCC By Election Poll cards - Chorley Rural North,08/07/2016,113738,"3,115.14",Revenue,Print Image Facilities LLP,57870
Chorley Borough Council,http://statistics.data.gov.uk/id/local-authority/30UE,Elections,1012,NEW Policy & Governance,Printing,40043,"Printing, Stationery & General",5026,Postal Vote packs for EU Referendum,06/07/2016,113532,"21,094.19",Revenue,Print Image Network,21171
Chorley Borough Council,http://statistics.data.gov.uk/id/local-authority/30UE,Elections,1012,NEW Policy & Governance,Printing,40043,"Printing, Stationery & General",5026,Poll cards for Chorley Rural North Division,20/07/2016,114059,"1,895.00",Revenue,Print Image Network,21171
Chorley Borough Council,http://statistics.data.gov.uk/id/local-authority/30UE,Elections,1012,NEW Policy & Governance,Printing,40043,"Printing, Stationery & General",5026,Chorley Rural North - By Election Ballot books,29/07/2016,114312,"1,252.76",Revenue,Print Image Network,21171
Chorley Borough Council,http://statistics.data.gov.uk/id/local-authority/30UE,Elections,1012,NEW Policy & Governance,Printing,40043,"Printing, Stationery & General",5026,Chorley Rural North - LCC By Election Postal Vote Packs,29/07/2016,114313,"2,432.50",Revenue,Print Image Network,21171
Chorley Borough Council,http://statistics.data.gov.uk/id/local-authority/30UE,Central Support Services,1009,NEW Early Intervention,Community Develop Initiatives,40185,Miscellaneous Expenses,5034,Return transport to Blackpool as part of Lunch club programme celebration booked by NAME REDACTED,13/07/2016,112914,495.00,Revenue,R S Tyrer Ltd,16255
Chorley Borough Council,http://statistics.data.gov.uk/id/local-authority/30UE,Control Accounts,Control,NEW Policy & Governance,General Balances,100,Balance Sheet,Balance,Childcare Vouchers,25/07/2016,113700,"5,175.93",Revenue,Reward Gateway (UK) Ltd,66814
Chorley Borough Council,http://statistics.data.gov.uk/id/local-authority/30UE,Non Domestic Rates Redistribut,,NEW Policy & Governance,Tariff to Business Rates Pool,49002,Expenditure not in NCOS,,bus rates pool,14/07/2016,113505,"707,100.00",Revenue,Ribble Valley Borough Council,21100
Chorley Borough Council,http://statistics.data.gov.uk/id/local-authority/30UE,Democratic Represent and  Mgnt,1007,NEW Policy & Governance,Supplies-Grounds Maintenance,40025,"Equipment, Furniture & Materia",5023,Advert for the Chorley Flower Show in the Tatton Flower Show programme.,22/07/2016,114088,430.00,Revenue,Royal Horticultural Society,63518
Chorley Borough Council,http://statistics.data.gov.uk/id/local-authority/30UE,Elections,1012,NEW Policy & Governance,Postages,40082,Communication and Computing,5028,EU Postal Vote Returns -,20/07/2016,113906,"2,165.63",Revenue,Royal Mail Group Plc,17522
Chorley Borough Council,http://statistics.data.gov.uk/id/local-authority/30UE,Elections,1012,NEW Policy & Governance,Postages,40082,Communication and Computing,5028,Business reply April 2016 - Setpember 2016 - RRHA-KZCB-CAXA,20/07/2016,113907,393.71,Revenue,Royal Mail Group Plc,17522
Chorley Borough Council,http://statistics.data.gov.uk/id/local-authority/30UE,Elections,1012,NEW Policy & Governance,Postages,40082,Communication and Computing,5028,EU Postal Vote Returns -,27/07/2016,114201,"1,946.19",Revenue,Royal Mail Group Plc,17522
Chorley Borough Council,http://statistics.data.gov.uk/id/local-authority/30UE,Elections,1012,NEW Policy & Governance,Postages,40082,Communication and Computing,5028,Postages,27/07/2016,114201,39.00,Revenue,Royal Mail Group Plc,17522
Chorley Borough Council,http://statistics.data.gov.uk/id/local-authority/30UE,Elections,1012,NEW Policy & Governance,Postages,40082,Communication and Computing,5028,Postages,27/07/2016,114201,14.21,Revenue,Royal Mail Group Plc,17522
Chorley Borough Council,http://statistics.data.gov.uk/id/local-authority/30UE,Elections,1012,NEW Policy & Governance,Postages,40082,Communication and Computing,5028,Timed delivery for postal votes 5 May 2016 and Eu Referendum 23 June 2016 plus mail centre sweeps and Saturday delivery,29/07/2016,114267,"2,613.50",Revenue,Royal Mail Group Plc,17522
Chorley Borough Council,http://statistics.data.gov.uk/id/local-authority/30UE,Tourism,1039,NEW Policy & Governance,Tools & Equipment - Hire,40004,"Equipment, Furniture & Materia",5023,Provision and hire of floral staging equipment for the Chorley Flower Show,08/07/2016,113573,"4,000.00",Revenue,RPM Events,70613
Chorley Borough Council,http://statistics.data.gov.uk/id/local-authority/30UE,Economic Development,1096,NEW Business Development & Growth,Professional Fees,40063,Services,5027,Speaker fee for 27th July,06/07/2016,113579,"1,000.00",Revenue,Ruth Badger Consultancy Ltd,76090
Chorley Borough Council,http://statistics.data.gov.uk/id/local-authority/30UE,Business Support,1095,NEW Policy & Governance,Electricity,20013,Energy Costs,5006,Gillibrand Street,20/07/2016,93617,"3,249.50",Revenue,Scottish Power,19010
Chorley Borough Council,http://statistics.data.gov.uk/id/local-authority/30UE,Democratic Represent and  Mgnt,1007,NEW Business Development & Growth,Electricity,20013,Energy Costs,5006,Tatton cc,20/07/2016,113836,579.87,Revenue,Scottish Power,19010
Chorley Borough Council,http://statistics.data.gov.uk/id/local-authority/30UE,Homelessness,1075,NEW Early Intervention,External Contractor,40198,Miscellaneous Expenses,5034,"For Concierge Service at Cotswold Supported Housing, Cotswold Road, Chorley, Lancashire, PR7 3HW. period April",06/07/2016,113615,"2,246.40",Revenue,Sector Security Services,19269
Chorley Borough Council,http://statistics.data.gov.uk/id/local-authority/30UE,Homelessness,1075,NEW Early Intervention,External Contractor,40198,Miscellaneous Expenses,5034,"For Concierge Service at Cotswold Supported Housing, Cotswold Road, Chorley, Lancashire, PR7 3HW. period April",20/07/2016,113889,"2,381.60",Revenue,Sector Security Services,19269
Chorley Borough Council,http://statistics.data.gov.uk/id/local-authority/30UE,Business Support,1095,NEW Business Development & Growth,Security Service,40062,Services,5027,To provide Security Services to Market Walk Shopping Centre April 2016 to March 2017,27/07/2016,113348,"5,728.69",Revenue,Securitas Security Services (UK) Ltd,70693
Chorley Borough Council,http://statistics.data.gov.uk/id/local-authority/30UE,Business Support,1095,NEW Business Development & Growth,Security Service,40062,Services,5027,To provide Security Services to Market Walk Shopping Centre April 2016 to March 2017,27/07/2016,114096,"5,728.69",Revenue,Securitas Security Services (UK) Ltd,70693
Chorley Borough Council,http://statistics.data.gov.uk/id/local-authority/30UE,Central Support Services,1009,NEW Early Intervention,External Contractor,40198,Miscellaneous Expenses,5034,Author costs for  DHR review May 2016 8 days,20/07/2016,112892,"3,600.00",Revenue,Serious Case Reviews Ltd,66411
Chorley Borough Council,http://statistics.data.gov.uk/id/local-authority/30UE,Service Management & Support,1009,NEW Customer & Digital,External Contractor,40198,Miscellaneous Expenses,5034,Carryout footpath repairs as per your quotation to footpaths around Adlington War memorial on Railway Rd,27/07/2016,113282,"2,801.80",Revenue,Shiloh Surfacing,61457
Chorley Borough Council,http://statistics.data.gov.uk/id/local-authority/30UE,Economic Development,1096,NEW Business Development & Growth,Protective Clothing,40040,"Clothing, Uniforms and Laundry",5025,CSR33 - x1 Hi Viz Over Trousers size XL,01/07/2016,113472,24.30,Revenue,Smart Image Workwear,21064
Chorley Borough Council,http://statistics.data.gov.uk/id/local-authority/30UE,Economic Development,1096,NEW Business Development & Growth,Protective Clothing,40040,"Clothing, Uniforms and Laundry",5025,x 10 CSR38 in the following sizes: x2 32 Regular x2 34 Short x2 34 Regular x4 34 Long,01/07/2016,113472,129.00,Revenue,Smart Image Workwear,21064
Chorley Borough Council,http://statistics.data.gov.uk/id/local-authority/30UE,Economic Development,1096,NEW Business Development & Growth,Protective Clothing,40040,"Clothing, Uniforms and Laundry",5025,X6 CSR 34 XL with logos,01/07/2016,113472,36.00,Revenue,Smart Image Workwear,21064
Chorley Borough Council,http://statistics.data.gov.uk/id/local-authority/30UE,Economic Development,1096,NEW Business Development & Growth,Protective Clothing,40040,"Clothing, Uniforms and Laundry",5025,x6 CSR36 XL with logo`s,01/07/2016,113472,50.40,Revenue,Smart Image Workwear,21064
Chorley Borough Council,http://statistics.data.gov.uk/id/local-authority/30UE,Economic Development,1096,NEW Business Development & Growth,Protective Clothing,40040,"Clothing, Uniforms and Laundry",5025,x6 CSR50 XL with logo`s,01/07/2016,113472,64.80,Revenue,Smart Image Workwear,21064
Chorley Borough Council,http://statistics.data.gov.uk/id/local-authority/30UE,Service Management & Support,1009,NEW Customer & Digital,Protective Clothing,40040,"Clothing, Uniforms and Laundry",5025,Supply 750mm Triangle roll up signs including text as ref No CHOR160511 supplied by NAME REDACTED,27/07/2016,113743,706.80,Revenue,Smart Image Workwear,21064
Chorley Borough Council,http://statistics.data.gov.uk/id/local-authority/30UE,Service Management & Support,1009,NEW Customer & Digital,Protective Clothing,40040,"Clothing, Uniforms and Laundry",5025,Supply signs to attach 750mm signs GRASS CUTTING IN PROGRESS at price quoted on Ref CHOR160511 NAME REDACTED,27/07/2016,113743,98.40,Revenue,Smart Image Workwear,21064
Chorley Borough Council,http://statistics.data.gov.uk/id/local-authority/30UE,Service Management & Support,1009,NEW Customer & Digital,Protective Clothing,40040,"Clothing, Uniforms and Laundry",5025,Supply supplementary signs to attach 750mm signs saying SWEEPING IN PROGRESS at price quoted from NAME REDACTED,27/07/2016,113743,98.40,Revenue,Smart Image Workwear,21064
Chorley Borough Council,http://statistics.data.gov.uk/id/local-authority/30UE,Service Management & Support,1009,NEW Customer & Digital,Protective Clothing,40040,"Clothing, Uniforms and Laundry",5025,Supply supplementary signs to attach 750mm signs saying LITTER PICKING IN PROGRESS at price from NAME REDACTED,27/07/2016,113743,98.40,Revenue,Smart Image Workwear,21064
Chorley Borough Council,http://statistics.data.gov.uk/id/local-authority/30UE,Central Support Services,1009,NEW Customer & Digital,IT Software - Annual Licences,40101,Communication and Computing,5028,"Citrix XenDesktop Platinum Edition � Per User Reinstatement: Subscription Advantage x400: Mar 31, 2016 to Mar 31, 2018 Citrix",27/07/2016,113509,"18,907.22",Revenue,Softcat Ltd,69996
Chorley Borough Council,http://statistics.data.gov.uk/id/local-authority/30UE,Unapportionable Central OHeads,1009,NEW Policy & Governance,Service Fees to other Local Authorities,40076,Services,5027,Provision of Shared Assurance Services in 2016/17,27/07/2016,113933,"44,686.75",Revenue,South Ribble Borough Council,17889
Chorley Borough Council,http://statistics.data.gov.uk/id/local-authority/30UE,Unapportionable Central OHeads,1009,NEW Policy & Governance,IT Software - Annual Licences,40101,Communication and Computing,5028,Civica Financial System - Licence support and maintenance for the period 01/04/16 to 31/03/17,27/07/2016,114097,"15,131.95",Revenue,South Ribble Borough Council,17889
Chorley Borough Council,http://statistics.data.gov.uk/id/local-authority/30UE,Business Support,1095,NEW Business Development & Growth,Miscellaneous Expenses,40200,Miscellaneous Expenses,5034,Architectural Services to develop the Digital Office Park at Euxton Lane,15/07/2016,113932,"26,904.07",Revenue,Spring Architects,75047
Chorley Borough Council,http://statistics.data.gov.uk/id/local-authority/30UE,Business Support,1095,NEW Business Development & Growth,Miscellaneous Expenses,40200,Miscellaneous Expenses,5034,EXPENSES,15/07/2016,113932,24.00,Revenue,Spring Architects,75047
Chorley Borough Council,http://statistics.data.gov.uk/id/local-authority/30UE,Unapportionable Central OHeads,1009,NEW Policy & Governance,Exhibitions & Special Events,40158,Miscellaneous Expenses,5034,Provision and set up of sound equipment for the Somme 100 Commemoration on Saturday 2 July 2016,15/07/2016,113722,445.00,Revenue,Star Drive Music,16840
Chorley Borough Council,http://statistics.data.gov.uk/id/local-authority/30UE,Capital,Capital,NEW Customer & Digital,Equipment,3014,Capital Expenditure,Capital,40 litre inner caddy. Black with Chorley Logo,27/07/2016,113514,"3,906.00",Capital,Straight Plc,17633
Chorley Borough Council,http://statistics.data.gov.uk/id/local-authority/30UE,Unapportionable Central OHeads,1009,NEW Business Development & Growth,General Repairs - Reactive,20004,Repairs Maintenance & Alts,5005,Blanket Order for reactive works 2016-17,01/07/2016,113398,731.87,Revenue,Stringfellow Bldg Cntrctrs Ltd,17893
Chorley Borough Council,http://statistics.data.gov.uk/id/local-authority/30UE,Unapportionable Central OHeads,1009,NEW Business Development & Growth,General Repairs - Reactive,20004,Repairs Maintenance & Alts,5005,Blanket Order for reactive works 2016-17,01/07/2016,113462,747.09,Revenue,Stringfellow Bldg Cntrctrs Ltd,17893
Chorley Borough Council,http://statistics.data.gov.uk/id/local-authority/30UE,Unapportionable Central OHeads,1009,NEW Business Development & Growth,General Repairs - Reactive,20004,Repairs Maintenance & Alts,5005,Blanket Order for reactive works 2016-17,01/07/2016,113463,"1,641.59",Revenue,Stringfellow Bldg Cntrctrs Ltd,17893
Chorley Borough Council,http://statistics.data.gov.uk/id/local-authority/30UE,Unapportionable Central OHeads,1009,NEW Business Development & Growth,General Repairs - Reactive,20004,Repairs Maintenance & Alts,5005,Blanket Order for reactive works 2016-17,01/07/2016,113465,310.00,Revenue,Stringfellow Bldg Cntrctrs Ltd,17893
Chorley Borough Council,http://statistics.data.gov.uk/id/local-authority/30UE,Elections,1012,NEW Policy & Governance,Rent/Hire Of Premises,20017,Premises Rents,5007,"Election works in May 2016 as per quote Ramps, generator and flooring with reserve generator.",01/07/2016,113512,"1,050.00",Revenue,Stringfellow Bldg Cntrctrs Ltd,17893
,http://statistics.data.gov.uk/id/local-authority/30UE,Elections,1012,NEW Policy & Governance,Rent/Hire Of Premises,20017,Premises Rents,5007,"Election works in June 2016 Ramps, generator, flooring and reserve generator",01/07/2016,113512,"1,000.00",Revenue,Stringfellow Bldg Cntrctrs Ltd,17893
Chorley Borough Council,http://statistics.data.gov.uk/id/local-authority/30UE,Unapportionable Central OHeads,1009,NEW Business Development & Growth,General Repairs - Reactive,20004,Repairs Maintenance & Alts,5005,Blanket Order for reactive works 2016-17,06/07/2016,113598,795.00,Revenue,Stringfellow Bldg Cntrctrs Ltd,17893
Chorley Borough Council,http://statistics.data.gov.uk/id/local-authority/30UE,Unapportionable Central OHeads,1009,NEW Business Development & Growth,General Repairs - Reactive,20004,Repairs Maintenance & Alts,5005,Blanket Order for reactive works 2016-17,27/07/2016,113855,495.05,Revenue,Stringfellow Bldg Cntrctrs Ltd,17893
Chorley Borough Council,http://statistics.data.gov.uk/id/local-authority/30UE,Unapportionable Central OHeads,1009,NEW Business Development & Growth,General Repairs - Reactive,20004,Repairs Maintenance & Alts,5005,Blanket Order for reactive works 2016-17,27/07/2016,113970,462.10,Revenue,Stringfellow Bldg Cntrctrs Ltd,17893
Chorley Borough Council,http://statistics.data.gov.uk/id/local-authority/30UE,Capital,Capital,NEW Early Intervention,Grants,3002,Capital Expenditure,Capital,ADDRESS REDACTED,20/07/2016,114014,"2,915.00",Capital,Stringfellow Bldg Cntrctrs Ltd,17893
Chorley Borough Council,http://statistics.data.gov.uk/id/local-authority/30UE,Unapportionable Central OHeads,1009,NEW Business Development & Growth,General Repairs - Reactive,20004,Repairs Maintenance & Alts,5005,Blanket Order for reactive works 2016-17,29/07/2016,114137,412.64,Revenue,Stringfellow Bldg Cntrctrs Ltd,17893
Chorley Borough Council,http://statistics.data.gov.uk/id/local-authority/30UE,Unapportionable Central OHeads,1009,NEW Business Development & Growth,General Repairs - Reactive,20004,Repairs Maintenance & Alts,5005,Blanket Order for reactive works 2016-17,29/07/2016,114138,301.09,Revenue,Stringfellow Bldg Cntrctrs Ltd,17893
Chorley Borough Council,http://statistics.data.gov.uk/id/local-authority/30UE,Capital,Capital,NEW Early Intervention,Grants,3002,Capital Expenditure,Capital,ADDRESS REDACTED,27/07/2016,114151,750.00,Capital,Stringfellow Bldg Cntrctrs Ltd,17893
Chorley Borough Council,http://statistics.data.gov.uk/id/local-authority/30UE,Business Support,1095,NEW Business Development & Growth,Miscellaneous Expenses,40200,Miscellaneous Expenses,5034,To carry out a topographical survey of the United Reformed Church site,20/07/2016,113939,550.00,Revenue,Survey Operations Ltd,55910
Chorley Borough Council,http://statistics.data.gov.uk/id/local-authority/30UE,Economic Development,1096,NEW Business Development & Growth,Cleaning Materials,40019,"Equipment, Furniture & Materia",5023,Cleaning products and PPE for the covered market,22/07/2016,113431,459.09,Revenue,Swiftkleen Ltd,17933
Chorley Borough Council,http://statistics.data.gov.uk/id/local-authority/30UE,Unapportionable Central OHeads,1009,NEW Policy & Governance,Cleaning Materials,40019,"Equipment, Furniture & Materia",5023,LTR soft toilet rolls 7.83 per box QTY 7,20/07/2016,114069,41.09,Revenue,Swiftkleen Ltd,17933
Chorley Borough Council,http://statistics.data.gov.uk/id/local-authority/30UE,Unapportionable Central OHeads,1009,NEW Policy & Governance,Cleaning Materials,40019,"Equipment, Furniture & Materia",5023,Paper towels 3600 green 1 fold QTY 15 boxes 10.10 per box,20/07/2016,114069,151.50,Revenue,Swiftkleen Ltd,17933
Chorley Borough Council,http://statistics.data.gov.uk/id/local-authority/30UE,Unapportionable Central OHeads,1009,NEW Policy & Governance,Cleaning Materials,40019,"Equipment, Furniture & Materia",5023,TB Atlas thick bleach 5ltr QTY 4 boxes @ 2.25 per box,20/07/2016,114069,6.20,Revenue,Swiftkleen Ltd,17933
Chorley Borough Council,http://statistics.data.gov.uk/id/local-authority/30UE,Unapportionable Central OHeads,1009,NEW Policy & Governance,Cleaning Materials,40019,"Equipment, Furniture & Materia",5023,HSC hard surface cleaner 5litre QTY 4   at 5.28 each,20/07/2016,114069,17.96,Revenue,Swiftkleen Ltd,17933
Chorley Borough Council,http://statistics.data.gov.uk/id/local-authority/30UE,Unapportionable Central OHeads,1009,NEW Policy & Governance,Cleaning Materials,40019,"Equipment, Furniture & Materia",5023,Trigon foam cartridges 4 boxes at 14.12,20/07/2016,114069,76.32,Revenue,Swiftkleen Ltd,17933
Chorley Borough Council,http://statistics.data.gov.uk/id/local-authority/30UE,Unapportionable Central OHeads,1009,NEW Policy & Governance,Cleaning Materials,40019,"Equipment, Furniture & Materia",5023,SAF Stand up air freshener QTY 12 @ 1.19 each,20/07/2016,114069,3.36,Revenue,Swiftkleen Ltd,17933
Chorley Borough Council,http://statistics.data.gov.uk/id/local-authority/30UE,Unapportionable Central OHeads,1009,NEW Policy & Governance,Cleaning Materials,40019,"Equipment, Furniture & Materia",5023,EVER Everfresh Evens toilet cleaner apple 5L QTY 6,20/07/2016,114069,26.94,Revenue,Swiftkleen Ltd,17933
Chorley Borough Council,http://statistics.data.gov.uk/id/local-authority/30UE,Unapportionable Central OHeads,1009,NEW Policy & Governance,Cleaning Materials,40019,"Equipment, Furniture & Materia",5023,WG Clear Evens window and glass cleaner 5L QTY 2,20/07/2016,114069,8.72,Revenue,Swiftkleen Ltd,17933
Chorley Borough Council,http://statistics.data.gov.uk/id/local-authority/30UE,Unapportionable Central OHeads,1009,NEW Policy & Governance,Cleaning Materials,40019,"Equipment, Furniture & Materia",5023,EX250 Excel Mop Head � red QTY 10,20/07/2016,114069,13.70,Revenue,Swiftkleen Ltd,17933
Chorley Borough Council,http://statistics.data.gov.uk/id/local-authority/30UE,Unapportionable Central OHeads,1009,NEW Policy & Governance,Cleaning Materials,40019,"Equipment, Furniture & Materia",5023,WBC Window Cleaning bucket QTY 1 8.28,20/07/2016,114069,8.28,Revenue,Swiftkleen Ltd,17933
Chorley Borough Council,http://statistics.data.gov.uk/id/local-authority/30UE,Unapportionable Central OHeads,1009,NEW Policy & Governance,Cleaning Materials,40019,"Equipment, Furniture & Materia",5023,14WSC Window squeegee channel and blade 3.89 QTY 1,20/07/2016,114069,3.89,Revenue,Swiftkleen Ltd,17933
Chorley Borough Council,http://statistics.data.gov.uk/id/local-authority/30UE,Unapportionable Central OHeads,1009,NEW Policy & Governance,Cleaning Materials,40019,"Equipment, Furniture & Materia",5023,14RR 14� replacement rubber blade 1.12 QTY 1,20/07/2016,114069,1.12,Revenue,Swiftkleen Ltd,17933
Chorley Borough Council,http://statistics.data.gov.uk/id/local-authority/30UE,Unapportionable Central OHeads,1009,NEW Policy & Governance,Cleaning Materials,40019,"Equipment, Furniture & Materia",5023,WSH Handle for squeegee 5.41 QTY 1,20/07/2016,114069,5.41,Revenue,Swiftkleen Ltd,17933
Chorley Borough Council,http://statistics.data.gov.uk/id/local-authority/30UE,Unapportionable Central OHeads,1009,NEW Policy & Governance,Cleaning Materials,40019,"Equipment, Furniture & Materia",5023,14T 14� Tiger Sleeve and T Bar 11.30 QTY 1,20/07/2016,114069,11.29,Revenue,Swiftkleen Ltd,17933
Chorley Borough Council,http://statistics.data.gov.uk/id/local-authority/30UE,Unapportionable Central OHeads,1009,NEW Policy & Governance,Cleaning Materials,40019,"Equipment, Furniture & Materia",5023,14TS replacement tiger sleeve 7.36 QTY 1,20/07/2016,114069,7.36,Revenue,Swiftkleen Ltd,17933
Chorley Borough Council,http://statistics.data.gov.uk/id/local-authority/30UE,Economic Development,1096,NEW Business Development & Growth,Cleaning Materials,40019,"Equipment, Furniture & Materia",5023,products for covered market toilets + PPE,27/07/2016,114235,438.05,Revenue,Swiftkleen Ltd,17933
Chorley Borough Council,http://statistics.data.gov.uk/id/local-authority/30UE,Unapportionable Central OHeads,1009,NEW Policy & Governance,Miscellaneous Expenses,40200,Miscellaneous Expenses,5034,Leaflets promoting Astley Hall for distribution to tourist information centres,27/07/2016,114099,300.00,Revenue,Take One Media,21807
Chorley Borough Council,http://statistics.data.gov.uk/id/local-authority/30UE,Unapportionable Central OHeads,1009,NEW Chief Executive,General Subscriptions,40146,Grants and Subscriptions,5031,iNetwork Membership 2016 - 2017,06/07/2016,113529,"1,600.00",Revenue,Tameside MBC,19554
Chorley Borough Council,http://statistics.data.gov.uk/id/local-authority/30UE,Economic Development,1096,NEW Business Development & Growth,Publicity - Advertising,40157,Miscellaneous Expenses,5034,Provide a double page advert in the handy Home Handbook July 2016,01/07/2016,113471,625.00,Revenue,Team Barnes Publishing,73052
Chorley Borough Council,http://statistics.data.gov.uk/id/local-authority/30UE,Economic Development,1096,NEW Business Development & Growth,Publicity - Advertising,40157,Miscellaneous Expenses,5034,Provide a double page advert in the handy Home Handbook September 2016,13/07/2016,113834,625.00,Revenue,Team Barnes Publishing,73052
Chorley Borough Council,http://statistics.data.gov.uk/id/local-authority/30UE,Central Support Services,1009,NEW Early Intervention,Tools & Equipment - Maintenance,40005,"Equipment, Furniture & Materia",5023,Service and maintenance correcting faults for CCTV,01/07/2016,112973,805.70,Revenue,Technology Solutions,72376
Chorley Borough Council,http://statistics.data.gov.uk/id/local-authority/30UE,Central Support Services,1009,NEW Early Intervention,Tools & Equipment - Maintenance,40005,"Equipment, Furniture & Materia",5023,Service and maintenance correcting faults for CCTV,01/07/2016,112974,"1,240.00",Revenue,Technology Solutions,72376
Chorley Borough Council,http://statistics.data.gov.uk/id/local-authority/30UE,Business Support,1095,NEW Business Development & Growth,Grants To Other Organisations,40127,Grants and Subscriptions,5031,subsidy 7,01/07/2016,113500,530.00,Revenue,The Buttonhole,18367
Chorley Borough Council,http://statistics.data.gov.uk/id/local-authority/30UE,Business Support,1095,NEW Chief Executive,Grants To Other Organisations,40127,Grants and Subscriptions,5031,grants,20/07/2016,113694,529.00,Revenue,The Buttonhole,18367
Chorley Borough Council,http://statistics.data.gov.uk/id/local-authority/30UE,Tourism,1039,NEW Policy & Governance,Children's Activities,40188,Miscellaneous Expenses,5034,"Two days of children`s craft and activities, staff and materials, for the Chorley Flower Show",08/07/2016,113549,465.00,Revenue,The Creation Station Merseyside,71522
Chorley Borough Council,http://statistics.data.gov.uk/id/local-authority/30UE,Unapportionable Central OHeads,1009,NEW Business Development & Growth,General Repairs - Reactive,20004,Repairs Maintenance & Alts,5005,Blanket order for REACTIVE works for 2016.,01/07/2016,113407,570.00,Revenue,The Guardian Shutter Co LTD,21769
Chorley Borough Council,http://statistics.data.gov.uk/id/local-authority/30UE,Unapportionable Central OHeads,1009,NEW Policy & Governance,Promotional Expenses,40159,Miscellaneous Expenses,5034,48 x posters promoting summer events for bus stops in the borough and other display boards,08/07/2016,113728,365.00,Revenue,The Print Quarter,17987
Chorley Borough Council,http://statistics.data.gov.uk/id/local-authority/30UE,Elections,1012,NEW Policy & Governance,Rent/Hire Of Premises,20017,Premises Rents,5007,Use of car park for polling station for local/PCC Elections 5 May 2016 and EU Referendum 23 June 2016,29/07/2016,114320,300.00,Revenue,The White Horse,76166
Chorley Borough Council,http://statistics.data.gov.uk/id/local-authority/30UE,Democratic Represent and  Mgnt,1007,NEW Business Development & Growth,Playground Equipment,40008,"Equipment, Furniture & Materia",5023,Union Street Play Area Whittle-le-Woods - Removal of Merry Roundabout and installation of Gravity Bowl with associated safety ,08/07/2016,113718,650.00,Revenue,Thompson Groundworks of Yorkshire,68711
Chorley Borough Council,http://statistics.data.gov.uk/id/local-authority/30UE,Capital,Capital,NEW Business Development & Growth,Main Contractor,3007,Capital Expenditure,Capital,"36 linear metres (12 x 3m panels) Herpetosure temporary upright newt fence and delivery to Chorley Council, Bengal Street Depot",27/07/2016,114134,339.00,Capital,Three Shires Ltd,76110
Chorley Borough Council,http://statistics.data.gov.uk/id/local-authority/30UE,Tourism,1039,NEW Policy & Governance,Promotional Expenses,40159,Miscellaneous Expenses,5034,Advert for the Chorley Flower Show,29/07/2016,114307,280.00,Revenue,Time Inc (UK) Ltd,70838
Chorley Borough Council,http://statistics.data.gov.uk/id/local-authority/30UE,Business Support,1095,NEW Business Development & Growth,Miscellaneous Expenses,40200,Miscellaneous Expenses,5034,Quantity Surveyor and Project Management Services to develop the Digital Office Park at Euxton Lane to RIBA 3 Stage - Staged,22/07/2016,114091,"7,896.60",Revenue,Todd and Ledson,75048
Chorley Borough Council,http://statistics.data.gov.uk/id/local-authority/30UE,Business Support,1095,NEW Business Development & Growth,Miscellaneous Expenses,40200,Miscellaneous Expenses,5034,Quantity Surveyor and Project Management Services to develop the Digital Office Park at Euxton Lane to RIBA 3 Stage - Staged,22/07/2016,114092,"27,074.40",Revenue,Todd and Ledson,75048
Chorley Borough Council,http://statistics.data.gov.uk/id/local-authority/30UE,Business Support,1095,NEW Chief Executive,Miscellaneous Expenses,40200,Miscellaneous Expenses,5034,business grant,13/07/2016,113707,250.00,Revenue,NAME REDACTED,76113
Chorley Borough Council,http://statistics.data.gov.uk/id/local-authority/30UE,Service Management & Support,1009,NEW Customer & Digital,Grounds Maintenance Contractor,20043,Grounds Maintenance Costs,5013,Work completed @ Chorley Cemetery deadwood 2 large Oaks Reduce crown  - 1 large Oak Remove 2 dead Sycamores,20/07/2016,112721,360.00,Revenue,Treescape North West Ltd,17688
Chorley Borough Council,http://statistics.data.gov.uk/id/local-authority/30UE,Service Management & Support,1009,NEW Customer & Digital,Grounds Maintenance Contractor,20043,Grounds Maintenance Costs,5013,Work carried out at Chorley Cemetery - 5 days work,27/07/2016,114110,"3,100.00",Revenue,Treescape North West Ltd,17688
Chorley Borough Council,http://statistics.data.gov.uk/id/local-authority/30UE,Service Management & Support,1009,NEW Customer & Digital,Grounds Maintenance Contractor,20043,Grounds Maintenance Costs,5013,Work to be carried out at Coronation Rec. Prune six Beech trees,27/07/2016,114111,"1,860.00",Revenue,Treescape North West Ltd,17688
Chorley Borough Council,http://statistics.data.gov.uk/id/local-authority/30UE,Service Management & Support,1009,NEW Customer & Digital,Grounds Maintenance Contractor,20043,Grounds Maintenance Costs,5013,Work carried out at ADDRESS REDACTED,27/07/2016,114112,"1,240.00",Revenue,Treescape North West Ltd,17688
Chorley Borough Council,http://statistics.data.gov.uk/id/local-authority/30UE,Service Management & Support,1009,NEW Customer & Digital,Petrol,30005,Direct Transport Costs,5016,Jun-16,25/07/2016,113631,586.00,Revenue,Uk Fuels Ltd,57996
Chorley Borough Council,http://statistics.data.gov.uk/id/local-authority/30UE,Unapportionable Central OHeads,1009,NEW Policy & Governance,Miscellaneous Expenses,40200,Miscellaneous Expenses,5034,Levels 1-5,20/07/2016,113708,"1,433.23",Revenue,UK Healthcare (BDHSC),17241
Chorley Borough Council,http://statistics.data.gov.uk/id/local-authority/30UE,Control Accounts,Control,NEW Policy & Governance,General Balances,100,Balance Sheet,Balance,Top ups,20/07/2016,113708,632.94,Revenue,UK Healthcare (BDHSC),17241
Chorley Borough Council,http://statistics.data.gov.uk/id/local-authority/30UE,Unapportionable Central OHeads,1009,NEW Customer & Digital,Postages,40082,Communication and Computing,5028,Imail Eco Business mono Letters - Hybrid,06/07/2016,113580,"1,348.15",Revenue,UKMAIL Ltd (Mail),57758
Chorley Borough Council,http://statistics.data.gov.uk/id/local-authority/30UE,Unapportionable Central OHeads,1009,NEW Customer & Digital,Postages,40082,Communication and Computing,5028,Imail Eco Business mono Letters - Hybrid,06/07/2016,113589,789.76,Revenue,UKMAIL Ltd (Mail),57758
Chorley Borough Council,http://statistics.data.gov.uk/id/local-authority/30UE,Unapportionable Central OHeads,1009,NEW Customer & Digital,Postages,40082,Communication and Computing,5028,Imail Eco Business mono Letters - Hybrid,06/07/2016,113590,565.45,Revenue,UKMAIL Ltd (Mail),57758
Chorley Borough Council,http://statistics.data.gov.uk/id/local-authority/30UE,Unapportionable Central OHeads,1009,NEW Customer & Digital,Postages,40082,Communication and Computing,5028,Imail Eco Business mono Letters - Hybrid,06/07/2016,113591,771.59,Revenue,UKMAIL Ltd (Mail),57758
Chorley Borough Council,http://statistics.data.gov.uk/id/local-authority/30UE,Unapportionable Central OHeads,1009,NEW Customer & Digital,Postages,40082,Communication and Computing,5028,Imail Eco Business mono Letters - Hybrid,06/07/2016,113592,563.59,Revenue,UKMAIL Ltd (Mail),57758
Chorley Borough Council,http://statistics.data.gov.uk/id/local-authority/30UE,Unapportionable Central OHeads,1009,NEW Customer & Digital,Postages,40082,Communication and Computing,5028,Imail Eco Business mono Letters - Hybrid,06/07/2016,113593,438.66,Revenue,UKMAIL Ltd (Mail),57758
Chorley Borough Council,http://statistics.data.gov.uk/id/local-authority/30UE,Unapportionable Central OHeads,1009,NEW Customer & Digital,Postages,40082,Communication and Computing,5028,Imail Eco Business mono Letters - Hybrid,06/07/2016,113594,530.15,Revenue,UKMAIL Ltd (Mail),57758
Chorley Borough Council,http://statistics.data.gov.uk/id/local-authority/30UE,Unapportionable Central OHeads,1009,NEW Customer & Digital,Postages,40082,Communication and Computing,5028,Imail Eco Business mono Letters - Hybrid,27/07/2016,114085,992.93,Revenue,UKMAIL Ltd (Mail),57758
Chorley Borough Council,http://statistics.data.gov.uk/id/local-authority/30UE,Unapportionable Central OHeads,1009,NEW Customer & Digital,Postages,40082,Communication and Computing,5028,Imail Eco Business mono Letters - Hybrid,27/07/2016,114143,495.60,Revenue,UKMAIL Ltd (Mail),57758
Chorley Borough Council,http://statistics.data.gov.uk/id/local-authority/30UE,Control Accounts,Control,NEW Policy & Governance,General Balances,100,Balance Sheet,Balance,salary ded 16,14/07/2016,113252,"1,877.40",Revenue,Unify Credit Union Ltd,55509
Chorley Borough Council,http://statistics.data.gov.uk/id/local-authority/30UE,Control Accounts,Control,NEW Policy & Governance,General Balances,100,Balance Sheet,Balance,ded july,13/07/2016,113805,"1,777.40",Revenue,Unify Credit Union Ltd,55509
Chorley Borough Council,http://statistics.data.gov.uk/id/local-authority/30UE,Democratic Represent and  Mgnt,1007,NEW Business Development & Growth,Water - Metered Supplies,20022,Water Services,5009,Water Services,13/07/2016,113636,807.45,Revenue,United Utilities Water Plc,17926
Chorley Borough Council,http://statistics.data.gov.uk/id/local-authority/30UE,Corporate Management,1008,NEW Business Development & Growth,Water - Metered Supplies,20022,Water Services,5009,Water Services,13/07/2016,113639,"1,467.83",Revenue,United Utilities Water Plc,17926
Chorley Borough Council,http://statistics.data.gov.uk/id/local-authority/30UE,Democratic Represent and  Mgnt,1007,NEW Business Development & Growth,Water - Metered Supplies,20022,Water Services,5009,Astley Hall,20/07/2016,114079,511.99,Revenue,United Utilities Water Plc,17926
Chorley Borough Council,http://statistics.data.gov.uk/id/local-authority/30UE,Democratic Represent and  Mgnt,1007,NEW Business Development & Growth,Water - Metered Supplies,20022,Water Services,5009,Astley park village centre,27/07/2016,114161,550.25,Revenue,United Utilities Water Plc,17926
Chorley Borough Council,http://statistics.data.gov.uk/id/local-authority/30UE,Economic Development,1096,NEW Business Development & Growth,Water - Metered Supplies,20022,Water Services,5009,Market stall 1,27/07/2016,114162,488.20,Revenue,United Utilities Water Plc,17926
Chorley Borough Council,http://statistics.data.gov.uk/id/local-authority/30UE,Parking Services,1066,NEW Business Development & Growth,Water - Unmetered Supply,20023,Water Services,5009,car park,29/07/2016,114305,329.33,Revenue,United Utilities Water Plc,17926
Chorley Borough Council,http://statistics.data.gov.uk/id/local-authority/30UE,Central Support Services,1009,NEW Early Intervention,Miscellaneous Expenses,40200,Miscellaneous Expenses,5034,Staff education from the university of Kent-Prevent Training,01/07/2016,113408,"3,480.00",Revenue,University of Kent,75442
Chorley Borough Council,http://statistics.data.gov.uk/id/local-authority/30UE,Unapportionable Central OHeads,1009,NEW Policy & Governance,Exhibitions & Special Events,40158,Miscellaneous Expenses,5034,"Provision of traffic safety and management for a Freedom of the Borough Parade to be held on Saturday, 2 July 2016.",15/07/2016,113833,965.00,Revenue,Ventbrook Ltd,69891
Chorley Borough Council,http://statistics.data.gov.uk/id/local-authority/30UE,Corporate Management,1008,NEW Customer & Digital,Unitary Payment(S),50009,Private Contractors,5042,Provision of household waste and recycling collection and ancillary services for 2016/17.,20/07/2016,113436,"287,044.24",Revenue,Veolia ES (UK) Ltd,20748
Chorley Borough Council,http://statistics.data.gov.uk/id/local-authority/30UE,Corporate Management,1008,NEW Customer & Digital,Unitary Payment(S),50009,Private Contractors,5042,Provision of household waste and recycling collection and ancillary services for 2016/17.,27/07/2016,113971,"287,044.24",Revenue,Veolia ES (UK) Ltd,20748
Chorley Borough Council,http://statistics.data.gov.uk/id/local-authority/30UE,Democratic Represent and  Mgnt,1007,NEW Customer & Digital,Hospitality,40201,Miscellaneous Expenses,5034,Astley Park Walled Garden - Glasshouse and associated work,20/07/2016,113420,"22,779.23",Revenue,Victorian Greenhouses UK Ltd,74967
Chorley Borough Council,http://statistics.data.gov.uk/id/local-authority/30UE,Capital,Capital,NEW Business Development & Growth,Main Contractor,3007,Capital Expenditure,Capital,"Glasshouse interior to include for hard wood staging, brick planters and copings, pointing and lime wash or rear wall as per email ",01/07/2016,113523,"6,666.67",Capital,Victorian Greenhouses UK Ltd,74967
Chorley Borough Council,http://statistics.data.gov.uk/id/local-authority/30UE,Capital,Capital,NEW Customer & Digital,Main Contractor,3007,Capital Expenditure,Capital,Material and path work relating to glasshouse Astley Park,27/07/2016,114114,"1,333.33",Capital,Victorian Greenhouses UK Ltd,74967
Chorley Borough Council,http://statistics.data.gov.uk/id/local-authority/30UE,Central Support Services,1009,NEW Customer & Digital,Telephones - Rentals,40083,Communication and Computing,5028,cctv clayton brook,20/07/2016,113443,"2,145.00",Revenue,Virgin Media Payments Ltd,17632
Chorley Borough Council,http://statistics.data.gov.uk/id/local-authority/30UE,Central Support Services,1009,NEW Customer & Digital,Network Line Rental,40248,Communication and Computing,5028,ivic - astley,27/07/2016,113879,"3,247.20",Revenue,Virgin Media Payments Ltd,17632
Chorley Borough Council,http://statistics.data.gov.uk/id/local-authority/30UE,Central Support Services,1009,NEW Customer & Digital,Network Line Rental,40248,Communication and Computing,5028,union - astlery,20/07/2016,113880,"2,952.00",Revenue,Virgin Media Payments Ltd,17632
Chorley Borough Council,http://statistics.data.gov.uk/id/local-authority/30UE,Central Support Services,1009,NEW Customer & Digital,Internet Charges,40104,Communication and Computing,5028,Jun-16,27/07/2016,114164,"1,115.77",Revenue,Virgin Media Payments Ltd,17632
Chorley Borough Council,http://statistics.data.gov.uk/id/local-authority/30UE,Central Support Services,1009,NEW Customer & Digital,Internet Charges,40104,Communication and Computing,5028,Jul-16,27/07/2016,114165,"1,192.58",Revenue,Virgin Media Payments Ltd,17632
Chorley Borough Council,http://statistics.data.gov.uk/id/local-authority/30UE,Central Support Services,1009,NEW Customer & Digital,Computer Equipment - Security,40106,Communication and Computing,5028,computer equipment,27/07/2016,113832,"2,416.55",Revenue,Vodafone Ltd,60180
Chorley Borough Council,http://statistics.data.gov.uk/id/local-authority/30UE,Central Support Services,1009,NEW Customer & Digital,Computer Equipment-Purchase,40098,Communication and Computing,5028,Samsung UE55KU6000K - 55`` Class - 6 Series LED TV - Smart TV - 4K UHD (2160p) - black,27/07/2016,114116,"1,845.00",Revenue,Vohkus Limited,67630
Chorley Borough Council,http://statistics.data.gov.uk/id/local-authority/30UE,Central Support Services,1009,NEW Customer & Digital,Computer Equipment-Purchase,40098,Communication and Computing,5028,SmartMountXT Universal Tilt Wall Mount - Wall Mount for LCD Display ( Low Profile,27/07/2016,114116,270.00,Revenue,Vohkus Limited,67630
Chorley Borough Council,http://statistics.data.gov.uk/id/local-authority/30UE,Service Management & Support,1009,NEW Customer & Digital,Supplies-Grounds Maintenance,40025,"Equipment, Furniture & Materia",5023,Summer Bedding Plants for 2016,27/07/2016,113288,"7,689.32",Revenue,Walkers Oakfield Nurseries,63090
Chorley Borough Council,http://statistics.data.gov.uk/id/local-authority/30UE,Service Management & Support,1009,NEW Customer & Digital,Supplies-Grounds Maintenance,40025,"Equipment, Furniture & Materia",5023,1000 Begonia non stop mixed 500 Begonia non stop red,08/07/2016,113749,370.50,Revenue,Walkers Oakfield Nurseries,63090
Chorley Borough Council,http://statistics.data.gov.uk/id/local-authority/30UE,Capital,Capital,NEW Business Development & Growth,Other Capital Related Fees,3024,Capital Expenditure,Capital,Extension and refurbishment of Cotswold House as per Emailed quote on 16/3/16.,27/07/2016,113831,959.73,Capital,Walmsley Associates Ltd,75156
Chorley Borough Council,http://statistics.data.gov.uk/id/local-authority/30UE,Service Management & Support,1009,NEW Customer & Digital,Diesel/Derv,30007,Direct Transport Costs,5016,Supply 4000litres of Gas oil delivered to Bengal St depot as per your quote via the chest,27/07/2016,114094,"1,739.57",Revenue,Watsons Fuels,22184
Chorley Borough Council,http://statistics.data.gov.uk/id/local-authority/30UE,Service Management & Support,1009,NEW Customer & Digital,Diesel/Derv,30007,Direct Transport Costs,5016,Supply 8000 litres of road diesel delivered to Bengal St depot as per your quote via the chest,27/07/2016,114130,"7,247.09",Revenue,Watsons Fuels,22184
Chorley Borough Council,http://statistics.data.gov.uk/id/local-authority/30UE,Unapportionable Central OHeads,1009,NEW Policy & Governance,Service Fees,40056,Services,5027,Printed water bottles,13/07/2016,113526,372.50,Revenue,WeBrand4You,68716
Chorley Borough Council,http://statistics.data.gov.uk/id/local-authority/30UE,Tourism,1039,NEW Policy & Governance,Promotional Expenses,40159,Miscellaneous Expenses,5034,1500 x carrier bags for Chorley Flower Show,08/07/2016,113689,305.00,Revenue,WeBrand4You,68716
Chorley Borough Council,http://statistics.data.gov.uk/id/local-authority/30UE,Unapportionable Central OHeads,1009,NEW Policy & Governance,Miscellaneous Expenses,40200,Miscellaneous Expenses,5034,25 x branded umbrellas,27/07/2016,114207,453.75,Revenue,WeBrand4You,68716
Chorley Borough Council,http://statistics.data.gov.uk/id/local-authority/30UE,Control Accounts,Control,NEW Policy & Governance,Manual Control Account,1,Balance Sheet,Balance,Balance Sheet,06/07/2016,112774,"1,080.00",Revenue,Westmorland School,71223
Chorley Borough Council,http://statistics.data.gov.uk/id/local-authority/30UE,Unapportionable Central OHeads,1009,NEW Chief Executive,Postages,40082,Communication and Computing,5028,"Mail Collection for Town Hall and Union Street, April 2016 - March 2017",27/07/2016,114247,"1,456.66",Revenue,Whistl North Limited,67256
Chorley Borough Council,http://statistics.data.gov.uk/id/local-authority/30UE,Unapportionable Central OHeads,1009,NEW Chief Executive,Postages,40082,Communication and Computing,5028,"Mail Collection for Town Hall and Union Street, April 2016 - March 2017",27/07/2016,114256,749.07,Revenue,Whistl North Limited,67256
Chorley Borough Council,http://statistics.data.gov.uk/id/local-authority/30UE,Unapportionable Central OHeads,1009,NEW Chief Executive,Postages,40082,Communication and Computing,5028,"Mail Collection for Town Hall and Union Street, April 2016 - March 2017",27/07/2016,114257,303.43,Revenue,Whistl North Limited,67256
Chorley Borough Council,http://statistics.data.gov.uk/id/local-authority/30UE,Unapportionable Central OHeads,1009,NEW Chief Executive,Postages,40082,Communication and Computing,5028,"Mail Collection for Town Hall and Union Street, April 2016 - March 2017",29/07/2016,114361,280.73,Revenue,Whistl North Limited,67256
Chorley Borough Council,http://statistics.data.gov.uk/id/local-authority/30UE,Unapportionable Central OHeads,1009,NEW Chief Executive,Postages,40082,Communication and Computing,5028,"Mail Collection for Town Hall and Union Street, April 2016 - March 2017",29/07/2016,114366,268.36,Revenue,Whistl North Limited,67256
Chorley Borough Council,http://statistics.data.gov.uk/id/local-authority/30UE,Democratic Represent and  Mgnt,1007,NEW Policy & Governance,Exhibitions & Special Events,40158,Miscellaneous Expenses,5034,"For curatorial services on the Sacrifice Project in June 2016: 3 days @ 104.33 [June 1st, 25th & 27th] 13 hours @13.91 [June",27/07/2016,114103,493.82,Revenue,Whittle and Draper Fine Art,52271
Chorley Borough Council,http://statistics.data.gov.uk/id/local-authority/30UE,Business Support,1095,NEW Business Development & Growth,Rent/Hire Of Premises,20017,Premises Rents,5007,Annual rent for the Royal Oak.,27/07/2016,113829,"13,750.00",Revenue,Whittle Jones Group Ltd,75356
Chorley Borough Council,http://statistics.data.gov.uk/id/local-authority/30UE,Business Support,1095,NEW Business Development & Growth,Rent/Hire Of Premises,20017,Premises Rents,5007,Annual rent for the Royal Oak.,27/07/2016,113928,"1,250.21",Revenue,Whittle Jones Group Ltd,75356
Chorley Borough Council,http://statistics.data.gov.uk/id/local-authority/30UE,Unapportionable Central OHeads,1009,NEW Customer & Digital,Photocopier Charges,40047,"Printing, Stationery & General",5026,july charge,27/07/2016,114163,407.72,Revenue,Xeretec Document Solutions,20052
